Workbook

Sheet model structure
D2: golden drug vs no treatment for illness

Sheet start page
B2: model type | D2: age group | F2: time horizon | H2: perspective
E8: Incremental | G8: ICER
C9: Costs (SEK) | D9: QALYs | E9: Costs (SEK) | F9: QALYs | G9: (SEK/QALY)
B10: Golden drug | C10: =total_costs_golden_drug -> 2483268.496 | D10: =total_qalys_golden_drug -> 8.745357606 | E10: =C10-C11 -> 269676.5315 | F10: =D10-D11 -> 0.4815972077 | G10: =IFERROR(E10/F10,"NA") -> 559962.822
B11: No treatment | C11: =total_costs_no_treat -> 2213591.964 | D11: =total_qalys_no_treat -> 8.263760398

Sheet input data
C2: model value | H2: mean value | I2: se | J2: alpha | K2: beta | L2: distribution | M2: formula
B4: Start age
B5: 40y-49y | C5: =IF(model_type=1,H5,M5) -> 45 | H5: 45 | I5: 0.5264209 | L5: normal | M5: =NORMINV(RAND(),H5,I5) -> 44.86843107
B6: 50y-59y | C6: =IF(model_type=1,H6,M6) -> 55 | H6: 55 | I6: 2.402331 | L6: normal | M6: =NORMINV(RAND(),H6,I6) -> 53.76513947
B7: 60y-69y | C7: =IF(model_type=1,H7,M7) -> 65 | H7: 65 | I7: 0.482296 | L7: normal | M7: 65.20863357
B8: ≥70y | C8: =IF(model_type=1,H8,M8) -> 78 | H8: 78 | I8: 0.2350178 | L8: normal | M8: 77.88819829
B10: Costs (annual costs per patient)
B11: cost of golden drug (SEK) | C11: =IF(model_type=1,H11,M11) -> 20000 | D11: c_golden_drug | H11: 20000 | I11: 2000 | J11: =(H11/I11)^2 -> 100 | K11: =(I11^2)/H11 -> 200 | L11: gamma | M11: =GAMMAINV(RAND(),J11,K11) -> 18742.27341
B12: costs ill 1st year (SEK) | C12: =IF(model_type=1,H12,M12) -> 150000 | D12: c_ill_1y | H12: 150000 | I12: 40000 | J12: =(H12/I12)^2 -> 14.0625 | K12: =(I12^2)/H12 -> 10666.66667 | L12: gamma | M12: =GAMMAINV(RAND(),J12,K12) -> 132942.9281
B13: costs ill >1st year (SEK) | C13: =IF(model_type=1,H13,M13) -> 50000 | D13: c_ill_after1y | H13: 50000 | I13: 10000 | J13: 25 | K13: 2000 | L13: gamma | M13: 40926.83782
B14: costs very ill (SEK) | C14: =IF(model_type=1,H14,M14) -> 100000 | D14: c_very_ill | H14: 100000 | I14: 15000 | J14: 44.44444444 | K14: 2250 | L14: gamma | M14: 121835.1425
B16: Utilities
B17: utility healthy | C17: =IF(model_type=1,H17,M17) -> 0.9 | D17: u_healthy | H17: 0.9 | I17: 0.1 | J17: =H17*(H17*(1-H17)/(I17^2)-1) -> 7.2 | K17: =H17*(1-H17)/(I17^2)-1-J17 -> 0.8 | L17: beta | M17: =BETAINV(RAND(),J17,K17) -> 0.8914093506
B18: utility ill 1st year | C18: =IF(model_type=1,H18,M18) -> 0.6 | D18: u_ill_1y | H18: 0.6 | I18: 0.15 | J18: =H18*(H18*(1-H18)/(I18^2)-1) -> 5.8 | K18: =H18*(1-H18)/(I18^2)-1-J18 -> 3.866666667 | L18: beta | M18: =BETAINV(RAND(),J18,K18) -> 0.7061120359
B19: utility ill >1st year | C19: =IF(model_type=1,H19,M19) -> 0.7 | D19: u_ill_after_1y | H19: 0.7 | I19: 0.1 | J19: =H19*(H19*(1-H19)/(I19^2)-1) -> 14 | K19: 6 | L19: beta | M19: 0.5124506467
B20: utility very ill | C20: =IF(model_type=1,H20,M20) -> 0.5 | D20: u_very_ill | H20: 0.5 | I20: 0.2 | J20: 2.625 | K20: 2.625 | L20: beta | M20: 0.5219609977
B22: Treatment effect
B23: RR for illness | C23: =IF(model_type=1,H23,M23) -> 0.8 | D23: RR_illness | H23: 0.8 | I23: 0.05 | L23: normal | M23: =NORMINV(RAND(),H23,I23) -> 0.8070430145
B25: Discount rates
B26: discount rate costs | C26: 0.03 | D26: disc_rate_costs
B27: discount rate effects | C27: 0.03 | D27: disc_rate_effects

Sheet tables
B2: table_get_ill | E2: table_get_very_ill | H2: table_mort_healthy | K2: table_mort_ill_1y | N2: table_mort_ill_after1y | Q2: table_mort_very_ill
B3: age | C3: get ill | E3: age | F3: get very ill | H3: age | I3: die healthy | K3: age | L3: die ill 1y | N3: age | O3: die ill >1y | Q3: age | R3: die very ill
B5: 40 | C5: 0.01 | E5: 40 | F5: 0.0002 | H5: 40 | I5: 0.001 | K5: 40 | L5: 0.03 | N5: 40 | O5: 0.01 | Q5: 40 | R5: 0.03
B6: 41 | C6: 0.011 | E6: 41 | F6: 0.0003 | H6: 41 | I6: 0.0015 | K6: 41 | L6: 0.031 | N6: 41 | O6: 0.0125 | Q6: 41 | R6: 0.04
B7: 42 | C7: 0.012 | E7: 42 | F7: 0.0004 | H7: 42 | I7: 0.002 | K7: 42 | L7: 0.032 | N7: 42 | O7: 0.015 | Q7: 42 | R7: 0.05
B8: 43 | C8: 0.013 | E8: 43 | F8: 0.0005 | H8: 43 | I8: 0.0025 | K8: 43 | L8: 0.033 | N8: 43 | O8: 0.0175 | Q8: 43 | R8: 0.06
B9: 44 | C9: 0.014 | E9: 44 | F9: 0.0006 | H9: 44 | I9: 0.003 | K9: 44 | L9: 0.034 | N9: 44 | O9: 0.02 | Q9: 44 | R9: 0.07
B10: 45 | C10: 0.015 | E10: 45 | F10: 0.0007 | H10: 45 | I10: 0.0035 | K10: 45 | L10: 0.035 | N10: 45 | O10: 0.0225 | Q10: 45 | R10: 0.08
B11: 46 | C11: 0.016 | E11: 46 | F11: 0.0008 | H11: 46 | I11: 0.004 | K11: 46 | L11: 0.036 | N11: 46 | O11: 0.025 | Q11: 46 | R11: 0.09
B12: 47 | C12: 0.017 | E12: 47 | F12: 0.0009 | H12: 47 | I12: 0.0045 | K12: 47 | L12: 0.037 | N12: 47 | O12: 0.0275 | Q12: 47 | R12: 0.1
B13: 48 | C13: 0.018 | E13: 48 | F13: 0.001 | H13: 48 | I13: 0.005 | K13: 48 | L13: 0.038 | N13: 48 | O13: 0.03 | Q13: 48 | R13: 0.11
B14: 49 | C14: 0.019 | E14: 49 | F14: 0.0011 | H14: 49 | I14: 0.0055 | K14: 49 | L14: 0.039 | N14: 49 | O14: 0.0325 | Q14: 49 | R14: 0.12
B15: 50 | C15: 0.02 | E15: 50 | F15: 0.0025 | H15: 50 | I15: 0.006 | K15: 50 | L15: 0.04 | N15: 50 | O15: 0.035 | Q15: 50 | R15: 0.13
B16: 51 | C16: 0.021 | E16: 51 | F16: 0.005 | H16: 51 | I16: 0.0065 | K16: 51 | L16: 0.041 | N16: 51 | O16: 0.0375 | Q16: 51 | R16: 0.14
B17: 52 | C17: 0.022 | E17: 52 | F17: 0.0075 | H17: 52 | I17: 0.007 | K17: 52 | L17: 0.042 | N17: 52 | O17: 0.04 | Q17: 52 | R17: 0.15
B18: 53 | C18: 0.023 | E18: 53 | F18: 0.01 | H18: 53 | I18: 0.0075 | K18: 53 | L18: 0.043 | N18: 53 | O18: 0.0425 | Q18: 53 | R18: 0.16
B19: 54 | C19: 0.024 | E19: 54 | F19: 0.0125 | H19: 54 | I19: 0.008 | K19: 54 | L19: 0.044 | N19: 54 | O19: 0.045 | Q19: 54 | R19: 0.17
B20: 55 | C20: 0.025 | E20: 55 | F20: 0.015 | H20: 55 | I20: 0.0085 | K20: 55 | L20: 0.045 | N20: 55 | O20: 0.0475 | Q20: 55 | R20: 0.18
B21: 56 | C21: 0.026 | E21: 56 | F21: 0.0175 | H21: 56 | I21: 0.009 | K21: 56 | L21: 0.046 | N21: 56 | O21: 0.05 | Q21: 56 | R21: 0.19
B22: 57 | C22: 0.027 | E22: 57 | F22: 0.02 | H22: 57 | I22: 0.0095 | K22: 57 | L22: 0.047 | N22: 57 | O22: 0.0525 | Q22: 57 | R22: 0.2
B23: 58 | C23: 0.028 | E23: 58 | F23: 0.0225 | H23: 58 | I23: 0.01 | K23: 58 | L23: 0.048 | N23: 58 | O23: 0.055 | Q23: 58 | R23: 0.21
B24: 59 | C24: 0.029 | E24: 59 | F24: 0.025 | H24: 59 | I24: 0.0105 | K24: 59 | L24: 0.049 | N24: 59 | O24: 0.0575 | Q24: 59 | R24: 0.22
B25: 60 | C25: 0.03 | E25: 60 | F25: 0.0275 | H25: 60 | I25: 0.0115 | K25: 60 | L25: 0.05 | N25: 60 | O25: 0.06 | Q25: 60 | R25: 0.23
B26: 61 | C26: 0.031 | E26: 61 | F26: 0.03 | H26: 61 | I26: 0.0125 | K26: 61 | L26: 0.052 | N26: 61 | O26: 0.0625 | Q26: 61 | R26: 0.24
B27: 62 | C27: 0.032 | E27: 62 | F27: 0.0325 | H27: 62 | I27: 0.0135 | K27: 62 | L27: 0.054 | N27: 62 | O27: 0.065 | Q27: 62 | R27: 0.25
B28: 63 | C28: 0.033 | E28: 63 | F28: 0.035 | H28: 63 | I28: 0.0145 | K28: 63 | L28: 0.056 | N28: 63 | O28: 0.0675 | Q28: 63 | R28: 0.26
B29: 64 | C29: 0.034 | E29: 64 | F29: 0.0375 | H29: 64 | I29: 0.0155 | K29: 64 | L29: 0.058 | N29: 64 | O29: 0.07 | Q29: 64 | R29: 0.27
B30: 65 | C30: 0.035 | E30: 65 | F30: 0.04 | H30: 65 | I30: 0.0165 | K30: 65 | L30: 0.06 | N30: 65 | O30: 0.0725 | Q30: 65 | R30: 0.28
B31: 66 | C31: 0.036 | E31: 66 | F31: 0.0425 | H31: 66 | I31: 0.0175 | K31: 66 | L31: 0.062 | N31: 66 | O31: 0.075 | Q31: 66 | R31: 0.29
B32: 67 | C32: 0.037 | E32: 67 | F32: 0.045 | H32: 67 | I32: 0.0185 | K32: 67 | L32: 0.064 | N32: 67 | O32: 0.0775 | Q32: 67 | R32: 0.3
B33: 68 | C33: 0.038 | E33: 68 | F33: 0.0475 | H33: 68 | I33: 0.0195 | K33: 68 | L33: 0.066 | N33: 68 | O33: 0.08 | Q33: 68 | R33: 0.31
B34: 69 | C34: 0.039 | E34: 69 | F34: 0.05 | H34: 69 | I34: 0.0205 | K34: 69 | L34: 0.068 | N34: 69 | O34: 0.0825 | Q34: 69 | R34: 0.32
B35: 70 | C35: 0.04 | E35: 70 | F35: 0.1 | H35: 70 | I35: 0.0215 | K35: 70 | L35: 0.07 | N35: 70 | O35: 0.085 | Q35: 70 | R35: 0.33
B36: 71 | C36: 0.041 | E36: 71 | F36: 0.11 | H36: 71 | I36: 0.0225 | K36: 71 | L36: 0.072 | N36: 71 | O36: 0.0875 | Q36: 71 | R36: 0.34
B37: 72 | C37: 0.042 | E37: 72 | F37: 0.12 | H37: 72 | I37: 0.0235 | K37: 72 | L37: 0.074 | N37: 72 | O37: 0.09 | Q37: 72 | R37: 0.35
B38: 73 | C38: 0.043 | E38: 73 | F38: 0.13 | H38: 73 | I38: 0.0245 | K38: 73 | L38: 0.076 | N38: 73 | O38: 0.0925 | Q38: 73 | R38: 0.36
B39: 74 | C39: 0.044 | E39: 74 | F39: 0.14 | H39: 74 | I39: 0.0255 | K39: 74 | L39: 0.078 | N39: 74 | O39: 0.095 | Q39: 74 | R39: 0.37
B40: 75 | C40: 0.045 | E40: 75 | F40: 0.15 | H40: 75 | I40: 0.0265 | K40: 75 | L40: 0.08 | N40: 75 | O40: 0.0975 | Q40: 75 | R40: 0.38
B41: 76 | C41: 0.046 | E41: 76 | F41: 0.16 | H41: 76 | I41: 0.0275 | K41: 76 | L41: 0.082 | N41: 76 | O41: 0.1 | Q41: 76 | R41: 0.39
B42: 77 | C42: 0.047 | E42: 77 | F42: 0.17 | H42: 77 | I42: 0.0285 | K42: 77 | L42: 0.084 | N42: 77 | O42: 0.1025 | Q42: 77 | R42: 0.4
B43: 78 | C43: 0.048 | E43: 78 | F43: 0.18 | H43: 78 | I43: 0.0295 | K43: 78 | L43: 0.086 | N43: 78 | O43: 0.105 | Q43: 78 | R43: 0.41
B44: 79 | C44: 0.049 | E44: 79 | F44: 0.19 | H44: 79 | I44: 0.0305 | K44: 79 | L44: 0.09 | N44: 79 | O44: 0.1075 | Q44: 79 | R44: 0.42
B45: 80 | C45: 0.06 | E45: 80 | F45: 0.2 | H45: 80 | I45: 0.0315 | K45: 80 | L45: 0.094 | N45: 80 | O45: 0.11 | Q45: 80 | R45: 0.43
B46: 81 | C46: 0.062 | E46: 81 | F46: 0.21 | H46: 81 | I46: 0.0325 | K46: 81 | L46: 0.098 | N46: 81 | O46: 0.1125 | Q46: 81 | R46: 0.44
B47: 82 | C47: 0.064 | E47: 82 | F47: 0.22 | H47: 82 | I47: 0.0335 | K47: 82 | L47: 0.102 | N47: 82 | O47: 0.115 | Q47: 82 | R47: 0.45
B48: 83 | C48: 0.066 | E48: 83 | F48: 0.23 | H48: 83 | I48: 0.0345 | K48: 83 | L48: 0.106 | N48: 83 | O48: 0.1175 | Q48: 83 | R48: 0.46
B49: 84 | C49: 0.068 | E49: 84 | F49: 0.24 | H49: 84 | I49: 0.0355 | K49: 84 | L49: 0.11 | N49: 84 | O49: 0.12 | Q49: 84 | R49: 0.47
B50: 85 | C50: 0.07 | E50: 85 | F50: 0.25 | H50: 85 | I50: 0.0365 | K50: 85 | L50: 0.114 | N50: 85 | O50: 0.1225 | Q50: 85 | R50: 0.48
B51: 86 | C51: 0.072 | E51: 86 | F51: 0.26 | H51: 86 | I51: 0.0375 | K51: 86 | L51: 0.118 | N51: 86 | O51: 0.125 | Q51: 86 | R51: 0.49
B52: 87 | C52: 0.074 | E52: 87 | F52: 0.27 | H52: 87 | I52: 0.0385 | K52: 87 | L52: 0.122 | N52: 87 | O52: 0.1275 | Q52: 87 | R52: 0.5
B53: 88 | C53: 0.076 | E53: 88 | F53: 0.28 | H53: 88 | I53: 0.04 | K53: 88 | L53: 0.126 | N53: 88 | O53: 0.13 | Q53: 88 | R53: 0.51
B54: 89 | C54: 0.078 | E54: 89 | F54: 0.29 | H54: 89 | I54: 0.0415 | K54: 89 | L54: 0.13 | N54: 89 | O54: 0.1325 | Q54: 89 | R54: 0.52
B55: 90 | C55: 0.08 | E55: 90 | F55: 0.3 | H55: 90 | I55: 0.043 | K55: 90 | L55: 0.134 | N55: 90 | O55: 0.135 | Q55: 90 | R55: 0.53
B56: 91 | C56: 0.082 | E56: 91 | F56: 0.31 | H56: 91 | I56: 0.0445 | K56: 91 | L56: 0.138 | N56: 91 | O56: 0.1375 | Q56: 91 | R56: 0.54
B57: 92 | C57: 0.084 | E57: 92 | F57: 0.32 | H57: 92 | I57: 0.046 | K57: 92 | L57: 0.142 | N57: 92 | O57: 0.14 | Q57: 92 | R57: 0.55
B58: 93 | C58: 0.086 | E58: 93 | F58: 0.33 | H58: 93 | I58: 0.0475 | K58: 93 | L58: 0.146 | N58: 93 | O58: 0.1425 | Q58: 93 | R58: 0.56
B59: 94 | C59: 0.088 | E59: 94 | F59: 0.34 | H59: 94 | I59: 0.049 | K59: 94 | L59: 0.15 | N59: 94 | O59: 0.145 | Q59: 94 | R59: 0.57
B60: 95 | C60: 0.09 | E60: 95 | F60: 0.35 | H60: 95 | I60: 0.0505 | K60: 95 | L60: 0.154 | N60: 95 | O60: 0.1475 | Q60: 95 | R60: 0.58
B61: 96 | C61: 0.092 | E61: 96 | F61: 0.36 | H61: 96 | I61: 0.052 | K61: 96 | L61: 0.158 | N61: 96 | O61: 0.15 | Q61: 96 | R61: 0.59
B62: 97 | C62: 0.094 | E62: 97 | F62: 0.37 | H62: 97 | I62: 0.0535 | K62: 97 | L62: 0.162 | N62: 97 | O62: 0.1525 | Q62: 97 | R62: 0.6
B63: 98 | C63: 0.096 | E63: 98 | F63: 0.38 | H63: 98 | I63: 0.055 | K63: 98 | L63: 0.166 | N63: 98 | O63: 0.155 | Q63: 98 | R63: 0.61
B64: 99 | C64: 0.098 | E64: 99 | F64: 0.39 | H64: 99 | I64: 0.0565 | K64: 99 | L64: 0.17 | N64: 99 | O64: 0.1575 | Q64: 99 | R64: 0.62
B65: 100 | C65: 0.1 | E65: 100 | F65: 0.4 | H65: 100 | I65: 0.058 | K65: 100 | L65: 0.174 | N65: 100 | O65: 0.16 | Q65: 100 | R65: 0.63
B66: 101 | C66: 0.102 | E66: 101 | F66: 0.41 | H66: 101 | I66: 0.0595 | K66: 101 | L66: 0.178 | N66: 101 | O66: 0.1625 | Q66: 101 | R66: 0.64
B67: 102 | C67: 0.104 | E67: 102 | F67: 0.42 | H67: 102 | I67: 0.08 | K67: 102 | L67: 0.182 | N67: 102 | O67: 0.165 | Q67: 102 | R67: 0.65
B68: 103 | C68: 0.106 | E68: 103 | F68: 0.43 | H68: 103 | I68: 0.1005 | K68: 103 | L68: 0.186 | N68: 103 | O68: 0.1675 | Q68: 103 | R68: 0.66
B69: 104 | C69: 0.108 | E69: 104 | F69: 0.44 | H69: 104 | I69: 0.121 | K69: 104 | L69: 0.19 | N69: 104 | O69: 0.17 | Q69: 104 | R69: 0.67
B70: 105 | C70: 0.11 | E70: 105 | F70: 0.45 | H70: 105 | I70: 0.1415 | K70: 105 | L70: 0.194 | N70: 105 | O70: 0.1725 | Q70: 105 | R70: 0.68
B71: 106 | C71: 0.112 | E71: 106 | F71: 0.46 | H71: 106 | I71: 0.162 | K71: 106 | L71: 0.198 | N71: 106 | O71: 0.175 | Q71: 106 | R71: 0.69
B72: 107 | C72: 0.114 | E72: 107 | F72: 0.47 | H72: 107 | I72: 0.1825 | K72: 107 | L72: 0.202 | N72: 107 | O72: 0.1775 | Q72: 107 | R72: 0.7
B73: 108 | C73: 0.116 | E73: 108 | F73: 0.48 | H73: 108 | I73: 0.203 | K73: 108 | L73: 0.206 | N73: 108 | O73: 0.18 | Q73: 108 | R73: 0.71
B74: 109 | C74: 0.118 | E74: 109 | F74: 0.49 | H74: 109 | I74: 0.2235 | K74: 109 | L74: 0.21 | N74: 109 | O74: 0.1825 | Q74: 109 | R74: 0.72
B75: 110 | C75: 0.12 | E75: 110 | F75: 0.5 | H75: 110 | I75: 1 | K75: 110 | L75: 1 | N75: 110 | O75: 1 | Q75: 110 | R75: 1

Sheet no treatment
G2: Time dependent risks | P2: Health state distribution | Y2: Costs | AQ2: QALYs
Y4: healthy | AC4: ill 1y | AF4: ill >1y | AI4: very ill | AL4: dead
G5: illness | I5: mortality risks | Q5: tunnel | Y5: drug | Z5: health care | AA5: consumption | AB5: prodloss | AC5: health care | AD5: consumption | AE5: prodloss | AF5: health care | AG5: consumption | AH5: prodloss | AI5: health care | AJ5: consumption | AK5: prodloss | AL5: prodloss | AM5: TOTAL | AQ5: healthy | AR5: ill 1y | AS5: ill >1y | AT5: very ill | AU5: TOTAL
B6: cycle | C6: age | G6: get ill | H6: get very ill | I6: healthy | J6: ill 1y | K6: ill >1y | L6: very ill | P6: healthy | Q6: ill 1y | R6: ill >1y | S6: very ill | T6: dead | U6: check | Y6: =SUM(OFFSET(Y8,,,time_horizon,)) -> 0 | Z6: 0 | AA6: 1575288.56 | AB6: 0 | AC6: 74387.96778 | AD6: 107118.7307 | AE6: 0 | AF6: 50696.87671 | AG6: 232985.9986 | AH6: 0 | AI6: 49677.50735 | AJ6: 123436.3229 | AK6: 0 | AL6: 0 | AM6: 2213591.964 | AQ6: =SUM(OFFSET(AQ8,,,time_horizon,)) -> 7.008064716 | AR6: =SUM(OFFSET(AR8,,,time_horizon,)) -> 0.2975518711 | AS6: =SUM(OFFSET(AS8,,,time_horizon,)) -> 0.709756274 | AT6: =SUM(OFFSET(AT8,,,time_horizon,)) -> 0.2483875368 | AU6: =SUM(OFFSET(AU8,,,time_horizon,)) -> 8.263760398
B8: 0 | C8: =start_age+cycle -> 78 | G8: =VLOOKUP(current_age,table_get_ill,2) -> 0.048 | H8: =VLOOKUP(current_age,table_get_very_ill,2) -> 0.18 | I8: =VLOOKUP(current_age,table_mort_healthy,2) -> 0.0295 | J8: =VLOOKUP(current_age,table_mort_ill_1y,2) -> 0.086 | K8: =VLOOKUP(current_age,table_mort_ill_after1y,2) -> 0.105 | L8: =VLOOKUP(current_age,table_mort_very_ill,2) -> 0.41 | P8: 1 | Q8: 0 | R8: 0 | S8: 0 | T8: 0 | U8: =SUM(P8:T8) -> 1 | Y8: 0 | Z8: 0 | AA8: =(P8*VLOOKUP(current_age,table_consumption,2))/(1+disc_rate_costs)^cycle -> 167766.4945 | AB8: 0 | AC8: =(Q8*c_ill_1y)/(1+disc_rate_costs)^cycle -> 0 | AD8: =(Q8*VLOOKUP(current_age,table_consumption,2))/(1+disc_rate_costs)^cycle -> 0 | AE8: =(Q8*VLOOKUP(current_age,table_prodloss,2))/(1+disc_rate_costs)^cycle -> 0 | AF8: =(R8*c_ill_after1y)/(1+disc_rate_costs)^cycle -> 0 | AG8: =(R8*VLOOKUP(current_age,table_consumption,2))/(1+disc_rate_costs)^cycle -> 0 | AH8: =(R8*VLOOKUP(current_age,table_prodloss,2))/(1+disc_rate_costs)^cycle -> 0 | AI8: =(S8*c_very_ill)/(1+disc_rate_costs)^cycle -> 0 | AJ8: =(S8*VLOOKUP(current_age,table_consumption,2))/(1+disc_rate_costs)^cycle -> 0 | AK8: =(S8*VLOOKUP(current_age,table_prodloss,2))/(1+disc_rate_costs)^cycle -> 0 | AL8: =(T8*VLOOKUP(current_age,table_prodloss,2))/(1+disc_rate_costs)^cycle -> 0 | AM8: =SUM(Y8:AL8) -> 167766.4945 | AQ8: =(P8*u_healthy)/(1+disc_rate_effects)^cycle -> 0.9 | AR8: =(Q8*u_ill_1y)/(1+disc_rate_effects)^cycle -> 0 | AS8: =(R8*u_ill_after_1y)/(1+disc_rate_effects)^cycle -> 0 | AT8: =(S8*u_very_ill)/(1+disc_rate_effects)^cycle -> 0 | AU8: =SUM(AQ8:AT8) -> 0.9
B9: 1 | C9: 79 | G9: 0.049 | H9: 0.19 | I9: 0.0305 | J9: 0.09 | K9: 0.1075 | L9: 0.42 | P9: =P8+(0)-((P8*G8)+(P8*I8)) -> 0.9225 | Q9: =P8*G8 -> 0.048 | R9: =R8+(Q8-(Q8*J8))-((R8*H8)+(R8*K8)) -> 0 | S9: =S8+(R8*H8)-(S8*L8) -> 0 | T9: =T8+(P8*I8)+(Q8*J8)+(R8*K8)+(S8*L8) -> 0.0295 | U9: =SUM(P9:T9) -> 1 | Y9: 0 | Z9: 0 | AA9: 150256.8847 | AB9: 0 | AC9: 6990.291262 | AD9: 7818.244405 | AE9: 0 | AF9: 0 | AG9: 0 | AH9: 0 | AI9: 0 | AJ9: 0 | AK9: 0 | AL9: 0 | AM9: =SUM(Y9:AL9) -> 165065.4203 | AQ9: 0.8060679612 | AR9: 0.02796116505 | AS9: 0 | AT9: 0 | AU9: =SUM(AQ9:AT9) -> 0.8340291262
B10: 2 | C10: 80 | G10: 0.06 | H10: 0.2 | I10: 0.0315 | J10: 0.094 | K10: 0.11 | L10: 0.43 | P10: =P9+(0)-((P9*G9)+(P9*I9)) -> 0.84916125 | Q10: =P9*G9 -> 0.0452025 | R10: =R9+(Q9-(Q9*J9))-((R9*H9)+(R9*K9)) -> 0.04368 | S10: =S9+(R9*H9)-(S9*L9) -> 0 | T10: =T9+(P9*I9)+(Q9*J9)+(R9*K9)+(S9*L9) -> 0.06195625 | U10: =SUM(P10:T10) -> 1 | Y10: 0 | Z10: 0 | AA10: 134282.9731 | AB10: 0 | AC10: 6391.153737 | AD10: 7148.143056 | AE10: 0 | AF10: 2058.629466 | AG10: 6907.380979 | AH10: 0 | AI10: 0 | AJ10: 0 | AK10: 0 | AL10: 0 | AM10: 156788.2804 | AQ10: 0.7203743284 | AR10: 0.02556461495 | AS10: 0.02882081252 | AT10: 0 | AU10: 0.7747597559
B11: 3 | C11: 81 | G11: 0.062 | H11: 0.21 | I11: 0.0325 | J11: 0.098 | K11: 0.1125 | L11: 0.44 | P11: =P10+(0)-((P10*G10)+(P10*I10)) -> 0.7714629956 | Q11: =P10*G10 -> 0.050949675 | R11: =R10+(Q10-(Q10*J10))-((R10*H10)+(R10*K10)) -> 0.071092665 | S11: =S10+(R10*H10)-(S10*L10) -> 0.008736 | T11: =T10+(P10*I10)+(Q10*J10)+(R10*K10)+(S10*L10) -> 0.09775866437 | U11: =SUM(P11:T11) -> 1 | Y11: 0 | Z11: 0 | AA11: 118442.7972 | AB11: 0 | AC11: 6993.925518 | AD11: 7822.309114 | AE11: 0 | AF11: 3252.992971 | AG11: 10914.86455 | AH11: 0 | AI11: 799.4677536 | AJ11: 1341.239025 | AK11: 0 | AL11: 0 | AM11: 149567.5961 | AQ11: 0.6353981334 | AR11: 0.02797570207 | AS11: 0.04554190159 | AT11: 0.003997338768 | AU11: 0.7129130758
B12: 4 | C12: 82 | G12: 0.064 | H12: 0.22 | I12: 0.0335 | J12: 0.102 | K12: 0.115 | L12: 0.45 | P12: =P11+(0)-((P11*G11)+(P11*I11)) -> 0.6985597425 | Q12: =P11*G11 -> 0.04783070573 | R12: =R11+(Q11-(Q11*J11))-((R11*H11)+(R11*K11)) -> 0.09412188739 | S12: =S11+(R11*H11)-(S11*L11) -> 0.01982161965 | T12: =T11+(P11*I11)+(Q11*J11)+(R11*K11)+(S11*L11) -> 0.1396660447 | U12: =SUM(P12:T12) -> 1 | Y12: 0 | Z12: 0 | AA12: 104126.1678 | AB12: 0 | AC12: 6374.54438 | AD12: 7129.566432 | AE12: 0 | AF12: 4181.303893 | AG12: 14029.65393 | AH12: 0 | AI12: 1761.125233 | AJ12: 2954.578067 | AK12: 0 | AL12: 0 | AM12: 140556.9397 | AQ12: 0.5585951551 | AR12: 0.02549817752 | AS12: 0.05853825451 | AT12: 0.008805626164 | AU12: 0.6514372133
B13: 5 | C13: 83 | G13: 0.066 | H13: 0.23 | I13: 0.0345 | J13: 0.106 | K13: 0.1175 | L13: 0.46 | P13: 0.6304501676 | Q13: 0.04470782352 | R13: 0.1055430289 | S13: 0.03160870603 | T13: 0.1876902739 | U13: 1 | Y13: 0 | Z13: 0 | AA13: 91236.76354 | AB13: 0 | AC13: 5784.804195 | AD13: 6469.975475 | AE13: 0 | AF13: 4552.117191 | AG13: 15273.85488 | AH13: 0 | AI13: 2726.594749 | AJ13: 4574.31243 | AK13: 0 | AL13: 0 | AM13: 130618.4225 | AQ13: 0.4894486675 | AR13: 0.02313921678 | AS13: 0.06372964068 | AT13: 0.01363297374 | AU13: 0.5899504987
B14: 6 | C14: 84 | G14: 0.068 | H14: 0.24 | I14: 0.0355 | J14: 0.11 | K14: 0.12 | L14: 0.47 | P14: 0.5670899258 | Q14: 0.04160971106 | R14: 0.1088356206 | S14: 0.04134359789 | T14: 0.2411211447 | U14: 1 | Y14: 0 | Z14: 0 | AA14: 79677.15418 | AB14: 0 | AC14: 5227.121691 | AD14: 5846.239217 | AE14: 0 | AF14: 4557.405939 | AG14: 15291.60037 | AH14: 0 | AI14: 3462.461235 | AJ14: 5808.849838 | AK14: 0 | AL14: 0 | AM14: 119870.8325 | AQ14: 0.4274359965 | AR14: 0.02090848676 | AS14: 0.06380368315 | AT14: 0.01731230618 | AU14: 0.5294604726
B15: 7 | C15: 85 | G15: 0.07 | H15: 0.25 | I15: 0.0365 | J15: 0.114 | K15: 0.1225 | L15: 0.48 | P15: 0.5083961185 | Q15: 0.03856211495 | R15: 0.10668744 | S15: 0.04803265582 | T15: 0.2983216707 | U15: 1 | Y15: 0 | Z15: 0 | AA15: 109845.2355 | AB15: 0 | AC15: 4703.179249 | AD15: 8331.819315 | AE15: 0 | AF15: 4337.332592 | AG15: 23051.13385 | AH15: 0 | AI15: 3905.494471 | AJ15: 10378.04617 | AK15: 0 | AL15: 0 | AM15: 164552.2412 | AQ15: 0.3720353115 | AR15: 0.018812717 | AS15: 0.06072265628 | AT15: 0.01952747236 | AU15: 0.4710981571
B16: 8 | C16: 86 | G16: 0.072 | H16: 0.26 | I16: 0.0375 | J16: 0.118 | K16: 0.125 | L16: 0.49 | P16: 0.4542519319 | Q16: 0.03558772829 | R16: 0.1011124025 | S16: 0.05164884103 | T16: 0.3573990964 | U16: 1 | Y16: 0 | Z16: 0 | AA16: 95288.07568 | AB16: 0 | AC16: 4213.992201 | AD16: 7465.210182 | AE16: 0 | AF16: 3990.95321 | AG16: 21210.27029 | AH16: 0 | AI16: 4077.207205 | AJ16: 10834.33735 | AK16: 0 | AL16: 0 | AM16: 147080.0461 | AQ16: 0.3227316027 | AR16: 0.01685596881 | AS16: 0.05587334494 | AT16: 0.02038603602 | AU16: 0.4158469525
B17: 9 | C17: 87 | G17: 0.074 | H17: 0.27 | I17: 0.0385 | J17: 0.122 | K17: 0.1275 | L17: 0.5 | P17: 0.4045113453 | Q17: 0.03270613909 | R17: 0.09357250386 | S17: 0.05263013356 | T17: 0.4165798782 | U17: 1 | Y17: 0 | Z17: 0 | AA17: 82382.55475 | AB17: 0 | AC17: 3759.979838 | AD17: 6660.914028 | AE17: 0 | AF17: 3585.776632 | AG17: 19056.92389 | AH17: 0 | AI17: 4033.661499 | AJ17: 10718.62362 | AK17: 0 | AL17: 0 | AM17: 130198.4343 | AQ17: 0.2790218371 | AR17: 0.01503991935 | AS17: 0.05020087285 | AT17: 0.02016830749 | AU17: 0.3644309368
B18: 10 | C18: 88 | G18: 0.076 | H18: 0.28 | I18: 0.04 | J18: 0.126 | K18: 0.13 | L18: 0.51 | P18: 0.359003819 | Q18: 0.02993383955 | R18: 0.0850934237 | S18: 0.05157964282 | T18: 0.474389275 | U18: 1 | Y18: 0 | Z18: 0 | AA18: 70984.96829 | AB18: 0 | AC18: 3341.038179 | AD18: 5918.746652 | AE18: 0 | AF18: 3165.874939 | AG18: 16825.31958 | AH18: 0 | AI18: 3838.009836 | AJ18: 10198.71967 | AK18: 0 | AL18: 0 | AM18: 114272.6771 | AQ18: 0.2404193014 | AR18: 0.01336415272 | AS18: 0.04432224914 | AT18: 0.01919004918 | AU18: 0.3172957524
B19: 11 | C19: 89 | G19: 0.078 | H19: 0.29 | I19: 0.0415 | J19: 0.13 | K19: 0.1325 | L19: 0.52 | P19: 0.317359376 | Q19: 0.02728429024 | R19: 0.07636729575 | S19: 0.04910018362 | T19: 0.5298888544 | U19: 1 | Y19: 0 | Z19: 0 | AA19: 60923.02133 | AB19: 0 | AC19: 2956.612768 | AD19: 5237.725816 | AE19: 0 | AF19: 2758.467964 | AG19: 14660.11954 | AH19: 0 | AI19: 3547.101733 | AJ19: 9425.691378 | AK19: 0 | AL19: 0 | AM19: 99508.74052 | AQ19: 0.206340449 | AR19: 0.01182645107 | AS19: 0.0386185515 | AT19: 0.01773550867 | AU19: 0.2745209602
B20: 12 | C20: 90 | G20: 0.08 | H20: 0.3 | I20: 0.043 | J20: 0.134 | K20: 0.135 | L20: 0.53 | P20: 0.2794349305 | Q20: 0.02475403133 | R20: 0.06783944581 | S20: 0.04571460391 | T20: 0.5822569884 | U20: 1 | Y20: 0 | Z20: 0 | AA20: 52080.31095 | AB20: 0 | AC20: 2604.296929 | AD20: 4613.588023 | AE20: 0 | AF20: 2379.061119 | AG20: 12643.72863 | AH20: 0 | AI20: 3206.330341 | AJ20: 8520.161677 | AK20: 0 | AL20: 0 | AM20: 86047.47767 | AQ20: 0.1763910343 | AR20: 0.01041718772 | AS20: 0.03330685566 | AT20: 0.01603165171 | AU20: 0.2361467294
B21: 13 | C21: 91 | G21: 0.082 | H21: 0.31 | I21: 0.0445 | J21: 0.138 | K21: 0.1375 | L21: 0.54 | P21: =P20+(0)-((P20*G20)+(P20*I20)) -> 0.2450644341 | Q21: =P20*G20 -> 0.02235479444 | R21: =R20+(Q20-(Q20*J20))-((R20*H20)+(R20*K20)) -> 0.05976627801 | S21: =S20+(R20*H20)-(S20*L20) -> 0.04183769758 | T21: =T20+(P20*I20)+(Q20*J20)+(R20*K20)+(S20*L20) -> 0.6309767959 | U21: =SUM(P21:T21) -> 1 | Y21: 0 | Z21: 0 | AA21: 44344.10942 | AB21: 0 | AC21: 2283.379085 | AD21: 4045.072695 | AE21: 0 | AF21: 2034.896355 | AG21: 10814.63486 | AH21: 0 | AI21: 2848.943623 | AJ21: 7570.480173 | AK21: 0 | AL21: 0 | AM21: 73941.51621 | AQ21: 0.1501892593 | AR21: 0.009133516339 | AS21: 0.02848854897 | AT21: 0.01424471811 | AU21: 0.2020560427
B22: 14 | C22: 92 | G22: 0.084 | H22: 0.32 | I22: 0.046 | J22: 0.142 | K22: 0.14 | L22: 0.55 | P22: 0.2140637832 | Q22: 0.02009528359 | R22: 0.05229070141 | S22: 0.03777288707 | T22: 0.6757773448 | U22: 1 | Y22: 0 | Z22: 0 | AA22: 37606.38794 | AB22: 0 | AC22: 1992.80247 | AD22: 3530.30774 | AE22: 0 | AF22: 1728.515689 | AG22: 9186.347984 | AH22: 0 | AI22: 2497.232822 | AJ22: 6635.881249 | AK22: 0 | AL22: 0 | AM22: 63177.47589 | AQ22: 0.1273692408 | AR22: 0.007971209879 | AS22: 0.02419921965 | AT22: 0.01248616411 | AU22: 0.1720258344
B23: 15 | C23: 93 | G23: 0.086 | H23: 0.33 | I23: 0.0475 | J23: 0.146 | K23: 0.1425 | L23: 0.56 | P23: 0.1862354914 | Q23: 0.01798135779 | R23: 0.04547873209 | S23: 0.03373082363 | T23: 0.7165735951 | U23: 1 | Y23: 0 | Z23: 0 | AA23: 31764.61894 | AB23: 0 | AC23: 1731.232399 | AD23: 3066.928725 | AE23: 0 | AF23: 1459.553377 | AG23: 7756.924226 | AH23: 0 | AI23: 2165.053214 | AJ23: 5753.182443 | AK23: 0 | AL23: 0 | AM23: 53697.49333 | AQ23: 0.1075837276 | AR23: 0.006924929595 | AS23: 0.02043374728 | AT23: 0.01082526607 | AU23: 0.1457676706
B24: 16 | C24: 94 | G24: 0.088 | H24: 0.34 | I24: 0.049 | J24: 0.15 | K24: 0.145 | L24: 0.57 | P24: 0.1613730533 | Q24: 0.01601625226 | R24: 0.03934611073 | S24: 0.02984954399 | T24: 0.7534150398 | U24: 1 | Y24: 0 | Z24: 0 | AA24: 26722.37118 | AB24: 0 | AC24: 1497.119835 | AD24: 2652.191484 | AE24: 0 | AF24: 1225.95977 | AG24: 6515.470544 | AH24: 0 | AI24: 1860.124896 | AJ24: 4942.89832 | AK24: 0 | AL24: 0 | AM24: 45416.13603 | AQ24: 0.09050611651 | AR24: 0.005988479338 | AS24: 0.01716343677 | AT24: 0.009300624482 | AU24: 0.1229586571
B25: 17 | C25: 95 | G25: 0.09 | H25: 0.35 | I25: 0.0505 | J25: 0.154 | K25: 0.1475 | L25: 0.58 | P25: 0.139264945 | Q25: 0.01420082869 | R25: 0.03387706144 | S25: 0.02621298156 | T25: 0.7864441833 | U25: 1 | Y25: 0 | Z25: 0 | AA25: 22389.71488 | AB25: 0 | AC25: 1288.760235 | AD25: 2283.076372 | AE25: 0 | AF25: 1024.808965 | AG25: 5446.436982 | AH25: 0 | AI25: 1585.928494 | AJ25: 4214.277925 | AK25: 0 | AL25: 0 | AM25: 38233.00385 | AQ25: 0.07583182383 | AR25: 0.00515504094 | AS25: 0.01434732552 | AT25: 0.007929642469 | AU25: 0.1032638328
B26: 18 | C26: 96 | G26: 0.092 | H26: 0.36 | I26: 0.052 | J26: 0.158 | K26: 0.15 | L26: 0.59 | P26: 0.1196982202 | Q26: 0.01253384505 | R26: 0.02903712444 | S26: 0.02286642376 | T26: 0.8158643866 | U26: 1 | Y26: 0 | Z26: 0 | AA26: 18683.45625 | AB26: 0 | AC26: 1104.346949 | AD26: 1956.382854 | AE26: 0 | AF26: 852.812516 | AG26: 4532.346791 | AH26: 0 | AI26: 1343.161401 | AJ26: 3569.174439 | AK26: 0 | AL26: 0 | AM26: 32041.6812 | AQ26: 0.06327908018 | AR26: 0.004417387796 | AS26: 0.01193937522 | AT26: 0.006715807006 | AU26: 0.0863516502
B27: 19 | C27: 97 | G27: 0.094 | H27: 0.37 | I27: 0.0535 | J27: 0.162 | K27: 0.1525 | L27: 0.6 | P27: 0.1024616765 | Q27: 0.01101223626 | R27: 0.02478168851 | S27: 0.01982859854 | T27: 0.8419158002 | U27: 1 | Y27: 0 | Z27: 0 | AA27: 15527.22189 | AB27: 0 | AC27: 942.0186693 | AD27: 1668.813568 | AE27: 0 | AF27: 706.6325338 | AG27: 3755.460476 | AH27: 0 | AI27: 1130.797268 | AJ27: 3004.860548 | AK27: 0 | AL27: 0 | AM27: 26735.80496 | AQ27: 0.05258921615 | AR27: 0.003768074677 | AS27: 0.009892855473 | AT27: 0.00565398634 | AU27: 0.07190413264
B28: 20 | C28: 98 | G28: 0.096 | H28: 0.38 | I28: 0.055 | J28: 0.166 | K28: 0.155 | L28: 0.61 | P28: 0.08734857921 | Q28: 0.00963139759 | R28: 0.02106151025 | S28: 0.01710066416 | T28: 0.8648578488 | U28: 1 | Y28: 0 | Z28: 0 | AA28: 12851.41424 | AB28: 0 | AC28: 799.9006987 | AD28: 1417.047435 | AE28: 0 | AF28: 583.0623785 | AG28: 3098.736065 | AH28: 0 | AI28: 946.8223128 | AJ28: 2515.985044 | AK28: 0 | AL28: 0 | AM28: 22212.96817 | AQ28: 0.04352651142 | AR28: 0.003199602795 | AS28: 0.008162873299 | AT28: 0.004734111564 | AU28: 0.05962309908
B29: 21 | C29: 99 | G29: 0.098 | H29: 0.39 | I29: 0.0565 | J29: 0.17 | K29: 0.1575 | L29: 0.62 | P29: 0.07415894375 | Q29: 0.008385463604 | R29: 0.01782618785 | S29: 0.01467263292 | T29: 0.8849567719 | U29: 1 | Y29: 0 | Z29: 0 | AA29: 10593.05892 | AB29: 0 | AC29: 676.1399833 | AD29: 1197.801715 | AE29: 0 | AF29: 479.1227187 | AG29: 2546.339642 | AH29: 0 | AI29: 788.7263201 | AJ29: 2095.877546 | AK29: 0 | AL29: 0 | AM29: 18377.06685 | AQ29: 0.03587767786 | AR29: 0.002704559933 | AS29: 0.006707718061 | AT29: 0.0039436316 | AU29: 0.04923358746
B30: 22 | C30: 100 | G30: 0.1 | H30: 0.4 | I30: 0.058 | J30: 0.174 | K30: 0.16 | L30: 0.63 | P30: 0.06270138694 | Q30: 0.007267576487 | R30: 0.0150262848 | S30: 0.01252781377 | T30: 0.902476938 | U30: 1 | Y30: 0 | Z30: 0 | AA30: 8695.564385 | AB30: 0 | AC30: 568.9340502 | AD30: 1007.883276 | AE30: 0 | AF30: 392.1052675 | AG30: 2083.877778 | AH30: 0 | AI30: 653.817206 | AJ30: 1737.384396 | AK30: 0 | AL30: 0 | AM30: 15139.56636 | AQ30: 0.02945104527 | AR30: 0.002275736201 | AS30: 0.005489473746 | AT30: 0.00326908603 | AU30: 0.04048534125
B31: 23 | C31: 101 | G31: 0.102 | H31: 0.41 | I31: 0.0595 | J31: 0.178 | K31: 0.1625 | L31: 0.64 | P31: 0.0527945678 | Q31: 0.006270138694 | R31: 0.01261458349 | S31: 0.01064580501 | T31: 0.917674905 | U31: 1 | Y31: 0 | Z31: 0 | AA31: 7108.412828 | AB31: 0 | AC31: 476.5541307 | AD31: 844.229552 | AE31: 0 | AF31: 319.5852682 | AG31: 1698.463892 | AH31: 0 | AI31: 539.4141556 | AJ31: 1433.381881 | AK31: 0 | AL31: 0 | AM31: 12420.04171 | AQ31: 0.02407551468 | AR31: 0.001906216523 | AS31: 0.004474193754 | AT31: 0.002697070778 | AU31: 0.03315299574
B32: 24 | C32: 102 | G32: 0.104 | H32: 0.42 | I32: 0.08 | J32: 0.182 | K32: 0.165 | L32: 0.65 | P32: 0.0442682451 | Q32: 0.005385045916 | R32: 0.01054678845 | S32: 0.009004469035 | T32: 0.9307954515 | U32: 1 | Y32: 0 | Z32: 0 | AA32: 5786.800151 | AB32: 0 | AC32: 397.3628637 | AD32: 703.9399111 | AE32: 0 | AF32: 259.4160524 | AG32: 1378.689326 | AH32: 0 | AI32: 442.9602096 | AJ32: 1177.075411 | AK32: 0 | AL32: 0 | AM32: 10146.24392 | AQ32: 0.01959933889 | AR32: 0.001589451455 | AS32: 0.003631824733 | AT32: 0.002214801048 | AU32: 0.02703541613
B33: 25 | C33: 103 | G33: 0.106 | H33: 0.43 | I33: 0.1005 | J33: 0.186 | K33: 0.1675 | L33: 0.66 | P33: 0.036122888 | Q33: 0.004603897491 | R33: 0.008781884765 | S33: 0.00758121531 | T33: 0.9429101144 | U33: 1 | Y33: 0 | Z33: 0 | AA33: 4584.494101 | AB33: 0 | AC33: 329.8270623 | AD33: 584.2982677 | AE33: 0 | AF33: 209.7138536 | AG33: 1114.542638 | AH33: 0 | AI33: 362.0830654 | AJ33: 962.1610781 | AK33: 0 | AL33: 0 | AM33: 8147.120066 | AQ33: 0.01552724324 | AR33: 0.001319308249 | AS33: 0.002935993951 | AT33: 0.001810415327 | AU33: 0.02159296077
B34: 26 | C34: 104 | G34: 0.108 | H34: 0.44 | I34: 0.121 | J34: 0.19 | K34: 0.17 | L34: 0.67 | P34: 0.02866351163 | Q34: 0.003829026128 | R34: 0.007282281175 | S34: 0.006353823654 | T34: 0.9538713574 | U34: 1 | Y34: 0 | Z34: 0 | AA34: 3531.840843 | AB34: 0 | AC34: 266.324884 | AD34: 471.8023055 | AE34: 0 | AF34: 168.8377692 | AG34: 897.3031086 | AH34: 0 | AI34: 294.6234528 | AJ34: 782.9010689 | AK34: 0 | AL34: 0 | AM34: 6413.633433 | AQ34: 0.01196200729 | AR34: 0.001065299536 | AS34: 0.002363728769 | AT34: 0.001473117264 | AU34: 0.01686415286
B35: 27 | C35: 105 | G35: 0.11 | H35: 0.45 | I35: 0.1415 | J35: 0.194 | K35: 0.1725 | L35: 0.68 | P35: 0.02209956747 | Q35: 0.003095659256 | R35: 0.005941600822 | S35: 0.005300965523 | T35: 0.9635622069 | U35: 1 | Y35: 0 | Z35: 0 | AA35: 2643.737175 | AB35: 0 | AC35: 209.0447876 | AD35: 370.3289428 | AE35: 0 | AF35: 133.7421832 | AG35: 710.7845435 | AH35: 0 | AI35: 238.6436663 | AJ35: 634.1463306 | AK35: 0 | AL35: 0 | AM35: 4940.427629 | AQ35: 0.00895408507 | AR35: 0.0008361791505 | AS35: 0.001872390565 | AT35: 0.001193218332 | AU35: 0.01285587312
B36: 28 | C36: 106 | G36: 0.112 | H36: 0.46 | I36: 0.162 | J36: 0.198 | K36: 0.175 | L36: 0.69 | P36: 0.01654152625 | Q36: 0.002430952421 | R36: 0.004738055671 | S36: 0.004370029337 | T36: 0.9719194363 | U36: 1 | Y36: 0 | Z36: 0 | AA36: 1921.201238 | AB36: 0 | AC36: 159.3769187 | AD36: 282.3408634 | AE36: 0 | AF36: 103.5446994 | AG36: 550.2973719 | AH36: 0 | AI36: 191.0038234 | AJ36: 507.5532722 | AK36: 0 | AL36: 0 | AM36: 3715.318187 | AQ36: 0.006506924927 | AR36: 0.0006375076749 | AS36: 0.001449625792 | AT36: 0.000955019117 | AU36: 0.009549077511
B37: 29 | C37: 107 | G37: 0.114 | H37: 0.47 | I37: 0.1825 | J37: 0.202 | K37: 0.1775 | L37: 0.7 | P37: 0.01200914806 | Q37: 0.00185265094 | R37: 0.003679014162 | S37: 0.003534214703 | T37: 0.9789249721 | U37: 1 | Y37: 0 | Z37: 0 | AA37: 1354.167086 | AB37: 0 | AC37: 117.924853 | AD37: 208.9073191 | AE37: 0 | AF37: 78.05881382 | AG37: 414.8504011 | AH37: 0 | AI37: 149.9731153 | AJ37: 398.5226267 | AK37: 0 | AL37: 0 | AM37: 2722.404216 | AQ37: 0.004586434463 | AR37: 0.0004716994122 | AS37: 0.001092823393 | AT37: 0.0007498655764 | AU37: 0.006900822845
B38: 30 | C38: 108 | G38: 0.116 | H38: 0.48 | I38: 0.203 | J38: 0.206 | K38: 0.18 | L38: 0.71 | P38: 0.008448435658 | Q38: 0.001369042878 | R38: 0.002775267942 | S38: 0.002789401067 | T38: 0.9846178525 | U38: 1 | Y38: 0 | Z38: 0 | AA38: 924.9092673 | AB38: 0 | AC38: 84.60413087 | AD38: 149.8786872 | AE38: 0 | AF38: 57.16868231 | AG38: 303.827968 | AH38: 0 | AI38: 114.9196307 | AJ38: 305.3752199 | AK38: 0 | AL38: 0 | AM38: 1940.683586 | AQ38: 0.003132579267 | AR38: 0.0003384165235 | AS38: 0.0008003615524 | AT38: 0.0005745981533 | AU38: 0.004845955496
B39: 31 | C39: 109 | G39: 0.118 | H39: 0.49 | I39: 0.2235 | J39: 0.21 | K39: 0.1825 | L39: 0.72 | P39: 0.005753384683 | Q39: 0.0009800185363 | R39: 0.002030611146 | S39: 0.002141054922 | T39: 0.9890949307 | U39: 1 | Y39: 0 | Z39: 0 | AA39: 611.5176806 | AB39: 0 | AC39: 58.79922248 | AD39: 104.1645388 | AE39: 0 | AF39: 40.61091776 | AG39: 215.8302784 | AH39: 0 | AI39: 85.63944457 | AJ39: 227.5691635 | AK39: 0 | AL39: 0 | AM39: 1344.131246 | AQ39: 0.002071151923 | AR39: 0.0002351968899 | AS39: 0.0005685528486 | AT39: 0.0004281972229 | AU39: 0.003303098884
B40: 32 | C40: =start_age+cycle -> 110 | G40: =VLOOKUP(current_age,table_get_ill,2) -> 0.12 | H40: =VLOOKUP(current_age,table_get_very_ill,2) -> 0.5 | I40: =VLOOKUP(current_age,table_mort_healthy,2) -> 1 | J40: =VLOOKUP(current_age,table_mort_ill_1y,2) -> 1 | K40: =VLOOKUP(current_age,table_mort_ill_after1y,2) -> 1 | L40: =VLOOKUP(current_age,table_mort_very_ill,2) -> 1 | P40: 0.003788603814 | Q40: 0.0006788993926 | R40: 0.001439239794 | S40: 0.00159449484 | T40: 0.9924987622 | U40: 1 | Y40: 0 | Z40: 0 | AA40: =(P40*VLOOKUP(current_age,table_consumption,2))/(1+disc_rate_costs)^cycle -> 390.9557211 | AB40: 0 | AC40: =(Q40*c_ill_1y)/(1+disc_rate_costs)^cycle -> 39.54626649 | AD40: =(Q40*VLOOKUP(current_age,table_consumption,2))/(1+disc_rate_costs)^cycle -> 70.05736535 | AE40: =(Q40*VLOOKUP(current_age,table_prodloss,2))/(1+disc_rate_costs)^cycle -> 0 | AF40: =(R40*c_ill_after1y)/(1+disc_rate_costs)^cycle -> 27.94550565 | AG40: =(R40*VLOOKUP(current_age,table_consumption,2))/(1+disc_rate_costs)^cycle -> 148.5188368 | AH40: =(R40*VLOOKUP(current_age,table_prodloss,2))/(1+disc_rate_costs)^cycle -> 0 | AI40: =(S40*c_very_ill)/(1+disc_rate_costs)^cycle -> 61.92013969 | AJ40: =(S40*VLOOKUP(current_age,table_consumption,2))/(1+disc_rate_costs)^cycle -> 164.5400022 | AK40: =(S40*VLOOKUP(current_age,table_prodloss,2))/(1+disc_rate_costs)^cycle -> 0 | AL40: =(T40*VLOOKUP(current_age,table_prodloss,2))/(1+disc_rate_costs)^cycle -> 0 | AM40: 903.4838372 | AQ40: =(P40*u_healthy)/(1+disc_rate_effects)^cycle -> 0.001324129652 | AR40: =(Q40*u_ill_1y)/(1+disc_rate_effects)^cycle -> 0.000158185066 | AS40: =(R40*u_ill_after_1y)/(1+disc_rate_effects)^cycle -> 0.0003912370791 | AT40: =(S40*u_very_ill)/(1+disc_rate_effects)^cycle -> 0.0003096006985 | AU40: 0.002183152495
B41: 33 | C41: 111 | G41: 0.12 | H41: 0.5 | I41: 1 | J41: 1 | K41: 1 | L41: 1 | P41: -0.0004546324577 | Q41: 0.0004546324577 | R41: -0.000719619897 | S41: 0.000719619897 | T41: 1 | U41: 1 | Y41: 0 | Z41: 0 | AA41: -45.54823935 | AB41: 0 | AC41: 25.71125537 | AD41: 45.54823935 | AE41: 0 | AF41: -13.56577944 | AG41: -72.09652271 | AH41: 0 | AI41: 27.13155888 | AJ41: 72.09652271 | AK41: 0 | AL41: 0 | AM41: 39.27703482 | AQ41: -0.0001542675322 | AR41: 0.0001028450215 | AS41: -0.0001899209122 | AT41: 0.0001356577944 | AU41: -0.0001056856285
B42: 34 | C42: 112 | G42: 0.12 | H42: 0.5 | I42: 1 | J42: 1 | K42: 1 | L42: 1 | P42: 5.455589492e-05 | Q42: -5.455589492e-05 | R42: 0.0003598099485 | S42: -0.0003598099485 | T42: 1 | U42: 1 | Y42: 0 | Z42: 0 | AA42: 5.306590992 | AB42: 0 | AC42: -2.995486063 | AD42: -5.306590992 | AE42: 0 | AF42: 6.585329826 | AG42: 34.99831199 | AH42: 0 | AI42: -13.17065965 | AJ42: -34.99831199 | AK42: 0 | AL42: 0 | AM42: -9.580815889 | AQ42: 1.797291638e-05 | AR42: -1.198194425e-05 | AS42: 9.219461757e-05 | AT42: -6.585329826e-05 | AU42: 3.233229143e-05
B43: 35 | C43: 113 | G43: 0.12 | H43: 0.5 | I43: 1 | J43: 1 | K43: 1 | L43: 1 | P43: -6.54670739e-06 | Q43: 6.54670739e-06 | R43: -0.0001799049742 | S43: 0.0001799049742 | T43: 1 | U43: 1 | Y43: 0 | Z43: 0 | AA43: -0.6182436107 | AB43: 0 | AC43: 0.3489886675 | AD43: 0.6182436107 | AE43: 0 | AF43: -3.196762051 | AG43: -16.98947184 | AH43: 0 | AI43: 6.393524103 | AJ43: 16.98947184 | AK43: 0 | AL43: 0 | AM43: 3.545750719 | AQ43: -2.093932005e-06 | AR43: 1.39595467e-06 | AS43: -4.475466872e-05 | AT43: 3.196762051e-05 | AU43: -1.348502554e-05
B44: 36 | C44: 114 | G44: 0.12 | H44: 0.5 | I44: 1 | J44: 1 | K44: 1 | L44: 1 | P44: 7.856048868e-07 | Q44: -7.856048868e-07 | R44: 8.995248712e-05 | S44: -8.995248712e-05 | T44: 1 | U44: 1 | Y44: 0 | Z44: 0 | AA44: 0.07202838183 | AB44: 0 | AC44: -0.04065887389 | AD44: -0.07202838183 | AE44: 0 | AF44: 1.551826239 | AG44: 8.247316428 | AH44: 0 | AI44: -3.103652477 | AJ44: -8.247316428 | AK44: 0 | AL44: 0 | AM44: -1.592485112 | AQ44: 2.439532433e-07 | AR44: -1.626354955e-07 | AS44: 2.172556734e-05 | AT44: -1.551826239e-05 | AU44: 6.288622702e-06
B45: 37 | C45: 115 | G45: 0.12 | H45: 0.5 | I45: 1 | J45: 1 | K45: 1 | L45: 1 | P45: -9.427258642e-08 | Q45: 9.427258642e-08 | R45: -4.497624356e-05 | S45: 4.497624356e-05 | T45: 1 | U45: 1 | Y45: 0 | Z45: 0 | AA45: -0.008391656135 | AB45: 0 | AC45: 0.004736956181 | AD45: 0.008391656135 | AE45: 0 | AF45: -0.7533137081 | AG45: -4.003551664 | AH45: 0 | AI45: 1.506627416 | AJ45: 4.003551664 | AK45: 0 | AL45: 0 | AM45: 0.7580506642 | AQ45: -2.842173709e-08 | AR45: 1.894782472e-08 | AS45: -1.054639191e-05 | AT45: 7.533137081e-06 | AU45: -3.022728745e-06
B46: 38 | C46: 116 | G46: 0.12 | H46: 0.5 | I46: 1 | J46: 1 | K46: 1 | L46: 1 | P46: 1.131271037e-08 | Q46: -1.131271037e-08 | R46: 2.248812178e-05 | S46: -2.248812178e-05 | T46: 1 | U46: 1 | Y46: 0 | Z46: 0 | AA46: 0.000977668676 | AB46: 0 | AC46: -0.00055187839 | AD46: -0.000977668676 | AE46: 0 | AF46: 0.365686266 | AG46: 1.943471682 | AH46: 0 | AI46: -0.7313725321 | AJ46: -1.943471682 | AK46: 0 | AL46: 0 | AM46: -0.3662381444 | AQ46: 3.31127034e-09 | AR46: -2.20751356e-09 | AS46: 5.119607725e-06 | AT46: -3.65686266e-06 | AU46: 1.463848821e-06
B47: 39 | C47: 117 | G47: 0.12 | H47: 0.5 | I47: 1 | J47: 1 | K47: 1 | L47: 1 | P47: -1.357525244e-09 | Q47: 1.357525244e-09 | R47: -1.124406089e-05 | S47: 1.124406089e-05 | T47: 1 | U47: 1 | Y47: 0 | Z47: 0 | AA47: -0.0001139031467 | AB47: 0 | AC47: 6.429651146e-05 | AD47: 0.0001139031467 | AE47: 0 | AF47: -0.1775176049 | AG47: -0.9434328551 | AH47: 0 | AI47: 0.3550352098 | AJ47: 0.9434328551 | AK47: 0 | AL47: 0 | AM47: 0.1775819014 | AQ47: -3.857790687e-10 | AR47: 2.571860458e-10 | AS47: -2.485246468e-06 | AT47: 1.775176049e-06 | AU47: -7.101990125e-07
B48: 40 | C48: 118 | G48: 0.12 | H48: 0.5 | I48: 1 | J48: 1 | K48: 1 | L48: 1 | P48: 1.629030293e-10 | Q48: -1.629030293e-10 | R48: 5.622030445e-06 | S48: -5.622030445e-06 | T48: 1 | U48: 1 | Y48: 0 | Z48: 0 | AA48: 1.327026952e-05 | AB48: 0 | AC48: -7.490855704e-06 | AD48: -1.327026952e-05 | AE48: 0 | AF48: 0.0861735946 | AG48: 0.4579771141 | AH48: 0 | AI48: -0.1723471892 | AJ48: -0.4579771141 | AK48: 0 | AL48: 0 | AM48: -0.08618108546 | AQ48: 4.494513422e-11 | AR48: -2.996342282e-11 | AS48: 1.206430324e-06 | AT48: -8.61735946e-07 | AU48: 3.447093601e-07
B49: 41 | C49: 119 | G49: 0.12 | H49: 0.5 | I49: 1 | J49: 1 | K49: 1 | L49: 1 | P49: -1.954836352e-11 | Q49: 1.954836352e-11 | R49: -2.811015223e-06 | S49: 2.811015223e-06 | T49: 1 | U49: 1 | Y49: 0 | Z49: 0 | AA49: -1.546050818e-06 | AB49: 0 | AC49: 8.727210529e-07 | AD49: 1.546050818e-06 | AE49: 0 | AF49: -0.04183184204 | AG49: -0.2223189874 | AH49: 0 | AI49: 0.08366368408 | AJ49: 0.2223189874 | AK49: 0 | AL49: 0 | AM49: 0.04183271476 | AQ49: -5.236326317e-12 | AR49: 3.490884211e-12 | AS49: -5.856457885e-07 | AT49: 4.183184204e-07 | AU49: -1.673291136e-07
B50: 42 | C50: 120 | G50: 0.12 | H50: 0.5 | I50: 1 | J50: 1 | K50: 1 | L50: 1 | P50: 2.345803622e-12 | Q50: -2.345803622e-12 | R50: 1.405507611e-06 | S50: -1.405507611e-06 | T50: 1 | U50: 1 | Y50: 0 | Z50: 0 | AA50: 1.801224254e-07 | AB50: 0 | AC50: -1.016762392e-07 | AD50: -1.801224254e-07 | AE50: 0 | AF50: 0.02030671944 | AG50: 0.1079218386 | AH50: 0 | AI50: -0.04061343887 | AJ50: -0.1079218386 | AK50: 0 | AL50: 0 | AM50: -0.02030682111 | AQ50: 6.10057435e-13 | AR50: -4.067049567e-13 | AS50: 2.842940721e-07 | AT50: -2.030671944e-07 | AU50: 8.12270811e-08
B51: 43 | C51: 121 | G51: 0.12 | H51: 0.5 | I51: 1 | J51: 1 | K51: 1 | L51: 1 | P51: -2.814964347e-13 | Q51: 2.814964347e-13 | R51: -7.027538056e-07 | S51: 7.027538056e-07 | T51: 1 | U51: 1 | Y51: 0 | Z51: 0 | AA51: -2.098513694e-08 | AB51: 0 | AC51: 1.184577544e-08 | AD51: 2.098513694e-08 | AE51: 0 | AF51: -0.009857630794 | AG51: -0.05238924202 | AH51: 0 | AI51: 0.01971526159 | AJ51: 0.05238924202 | AK51: 0 | AL51: 0 | AM51: 0.00985764264 | AQ51: -7.107465262e-14 | AR51: 4.738310175e-14 | AS51: -1.380068311e-07 | AT51: 9.857630794e-08 | AU51: -3.943054687e-08
B52: 44 | C52: 122 | G52: 0.12 | H52: 0.5 | I52: 1 | J52: 1 | K52: 1 | L52: 1 | P52: 3.377957216e-14 | Q52: -3.377957216e-14 | R52: 3.513769028e-07 | S52: -3.513769028e-07 | T52: 1 | U52: 1 | Y52: 0 | Z52: 0 | AA52: 2.444870323e-09 | AB52: 0 | AC52: -1.380090342e-09 | AD52: -2.444870323e-09 | AE52: 0 | AF52: 0.004785257667 | AG52: 0.02543167088 | AH52: 0 | AI52: -0.009570515334 | AJ52: -0.02543167088 | AK52: 0 | AL52: 0 | AM52: -0.004785259047 | AQ52: 8.280542053e-15 | AR52: -5.520361369e-15 | AS52: 6.699360734e-08 | AT52: -4.785257667e-08 | AU52: 1.914103343e-08
B53: 45 | C53: 123 | G53: 0.12 | H53: 0.5 | I53: 1 | J53: 1 | K53: 1 | L53: 1 | P53: -4.05354866e-15 | Q53: 4.05354866e-15 | R53: -1.756884514e-07 | S53: 1.756884514e-07 | T53: 1 | U53: 1 | Y53: 0 | Z53: 0 | AA53: -2.848392609e-10 | AB53: 0 | AC53: 1.607872243e-10 | AD53: 2.848392609e-10 | AE53: 0 | AF53: -0.002322940615 | AG53: -0.0123454713 | AH53: 0 | AI53: 0.00464588123 | AJ53: 0.0123454713 | AK53: 0 | AL53: 0 | AM53: 0.002322940776 | AQ53: -9.64723346e-16 | AR53: 6.431488973e-16 | AS53: -3.252116861e-08 | AT53: 2.322940615e-08 | AU53: -9.291762782e-09
B54: 46 | C54: 124 | G54: 0.12 | H54: 0.5 | I54: 1 | J54: 1 | K54: 1 | L54: 1 | P54: 4.864258391e-16 | Q54: -4.864258391e-16 | R54: 8.784422571e-08 | S54: -8.784422571e-08 | T54: 1 | U54: 1 | Y54: 0 | Z54: 0 | AA54: 3.318515661e-11 | AB54: 0 | AC54: -1.873249216e-11 | AD54: -3.318515661e-11 | AE54: 0 | AF54: 0.001127641075 | AG54: 0.005992947235 | AH54: 0 | AI54: -0.002255282151 | AJ54: -0.005992947235 | AK54: 0 | AL54: 0 | AM54: -0.001127641094 | AQ54: 1.123949529e-16 | AR54: -7.492996862e-17 | AS54: 1.578697505e-08 | AT54: -1.127641075e-08 | AU54: 4.510564339e-09
B55: 47 | C55: 125 | G55: 0.12 | H55: 0.5 | I55: 1 | J55: 1 | K55: 1 | L55: 1 | P55: -5.83711007e-17 | Q55: 5.83711007e-17 | R55: -4.392211285e-08 | S55: 4.392211285e-08 | T55: 1 | U55: 1 | Y55: 0 | Z55: 0 | AA55: -3.866231838e-12 | AB55: 0 | AC55: 2.182426271e-12 | AD55: 3.866231838e-12 | AE55: 0 | AF55: -0.0005473985802 | AG55: -0.002909197687 | AH55: 0 | AI55: 0.00109479716 | AJ55: 0.002909197687 | AK55: 0 | AL55: 0 | AM55: 0.0005473985824 | AQ55: -1.309455762e-17 | AR55: 8.729705082e-18 | AS55: -7.663580123e-09 | AT55: 5.473985802e-09 | AU55: -2.189594325e-09
B56: 48 | C56: 126 | G56: 0.12 | H56: 0.5 | I56: 1 | J56: 1 | K56: 1 | L56: 1 | P56: 7.004532084e-18 | Q56: -7.004532084e-18 | R56: 2.196105643e-08 | S56: -2.196105643e-08 | T56: 1 | U56: 1 | Y56: 0 | Z56: 0 | AA56: 4.504347773e-13 | AB56: 0 | AC56: -2.542632548e-13 | AD56: -4.504347773e-13 | AE56: 0 | AF56: 0.0002657274661 | AG56: 0.001412231887 | AH56: 0 | AI56: -0.0005314549323 | AJ56: -0.001412231887 | AK56: 0 | AL56: 0 | AM56: -0.0002657274664 | AQ56: 1.525579529e-18 | AR56: -1.017053019e-18 | AS56: 3.720184526e-09 | AT56: -2.657274661e-09 | AU56: 1.062909865e-09
B57: 49 | C57: 127 | G57: 0.12 | H57: 0.5 | I57: 1 | J57: 1 | K57: 1 | L57: 1 | P57: -8.4054385e-19 | Q57: 8.4054385e-19 | R57: -1.098052821e-08 | S57: 1.098052821e-08 | T57: 1 | U57: 1 | Y57: 0 | Z57: 0 | AA57: -5.247783813e-14 | AB57: 0 | AC57: 2.962290347e-14 | AD57: 5.247783813e-14 | AE57: 0 | AF57: -0.0001289939156 | AG57: -0.0006855494596 | AH57: 0 | AI57: 0.0002579878312 | AJ57: 0.0006855494596 | AK57: 0 | AL57: 0 | AM57: 0.0001289939156 | AQ57: -1.777374208e-19 | AR57: 1.184916139e-19 | AS57: -1.805914818e-09 | AT57: 1.289939156e-09 | AU57: -5.159756625e-10
B58: 50 | C58: 128 | G58: 0.12 | H58: 0.5 | I58: 1 | J58: 1 | K58: 1 | L58: 1 | P58: 1.00865262e-19 | Q58: -1.00865262e-19 | R58: 5.490264107e-09 | S58: -5.490264107e-09 | T58: 1 | U58: 1 | Y58: 0 | Z58: 0 | AA58: 6.113922889e-15 | AB58: 0 | AC58: -3.451212055e-15 | AD58: -6.113922889e-15 | AE58: 0 | AF58: 6.261840563e-05 | AG58: 0.0003327909998 | AH58: 0 | AI58: -0.0001252368113 | AJ58: -0.0003327909998 | AK58: 0 | AL58: 0 | AM58: -6.261840564e-05 | AQ58: 2.070727233e-20 | AR58: -1.380484822e-20 | AS58: 8.766576788e-10 | AT58: -6.261840563e-10 | AU58: 2.504736225e-10
B59: 51 | C59: 129 | G59: 0.12 | H59: 0.5 | I59: 1 | J59: 1 | K59: 1 | L59: 1 | P59: -1.210383144e-20 | Q59: 1.210383144e-20 | R59: -2.745132053e-09 | S59: 2.745132053e-09 | T59: 1 | U59: 1 | Y59: 0 | Z59: 0 | AA59: -7.123016958e-16 | AB59: 0 | AC59: 4.020829579e-16 | AD59: 7.123016958e-16 | AE59: 0 | AF59: -3.039728429e-05 | AG59: -0.000161549029 | AH59: 0 | AI59: 6.079456857e-05 | AJ59: 0.000161549029 | AK59: 0 | AL59: 0 | AM59: 3.039728429e-05 | AQ59: -2.412497747e-21 | AR59: 1.608331832e-21 | AS59: -4.2556198e-10 | AT59: 3.039728429e-10 | AU59: -1.215891371e-10
B60: 52 | C60: 130 | G60: 0.12 | H60: 0.5 | I60: 1 | J60: 1 | K60: 1 | L60: 1 | P60: 1.452459773e-21 | Q60: -1.452459773e-21 | R60: 1.372566027e-09 | S60: -1.372566027e-09 | T60: 1 | U60: 1 | Y60: 0 | Z60: 0 | AA60: 8.298660533e-17 | AB60: 0 | AC60: -4.684461645e-17 | AD60: -8.298660533e-17 | AE60: 0 | AF60: 1.475596325e-05 | AG60: 7.842185875e-05 | AH60: 0 | AI60: -2.951192649e-05 | AJ60: -7.842185875e-05 | AK60: 0 | AL60: 0 | AM60: -1.475596325e-05 | AQ60: 2.810676987e-22 | AR60: -1.873784658e-22 | AS60: 2.065834854e-10 | AT60: -1.475596325e-10 | AU60: 5.902385298e-11
B61: 53 | C61: 131 | G61: 0.12 | H61: 0.5 | I61: 1 | J61: 1 | K61: 1 | L61: 1 | P61: -1.742951727e-22 | Q61: 1.742951727e-22 | R61: -6.862830133e-10 | S61: 6.862830133e-10 | T61: 1 | U61: 1 | Y61: 0 | Z61: 0 | AA61: -9.668342369e-18 | AB61: 0 | AC61: 5.457625218e-18 | AD61: 9.668342369e-18 | AE61: 0 | AF61: -7.163088954e-06 | AG61: -3.806886347e-05 | AH61: 0 | AI61: 1.432617791e-05 | AJ61: 3.806886347e-05 | AK61: 0 | AL61: 0 | AM61: 7.163088954e-06 | AQ61: -3.274575131e-23 | AR61: 2.183050087e-23 | AS61: -1.002832454e-10 | AT61: 7.163088954e-11 | AU61: -2.865235582e-11
B62: 54 | C62: 132 | G62: 0.12 | H62: 0.5 | I62: 1 | J62: 1 | K62: 1 | L62: 1 | P62: 2.091542073e-23 | Q62: -2.091542073e-23 | R62: 3.431415067e-10 | S62: -3.431415067e-10 | T62: 1 | U62: 1 | Y62: 0 | Z62: 0 | AA62: 1.12640882e-18 | AB62: 0 | AC62: -6.358398312e-19 | AD62: -1.12640882e-18 | AE62: 0 | AF62: 3.477227648e-06 | AG62: 1.848003081e-05 | AH62: 0 | AI62: -6.954455296e-06 | AJ62: -1.848003081e-05 | AK62: 0 | AL62: 0 | AM62: -3.477227648e-06 | AQ62: 3.815038987e-24 | AR62: -2.543359325e-24 | AS62: 4.868118707e-11 | AT62: -3.477227648e-11 | AU62: 1.390891059e-11
B63: 55 | C63: 133 | G63: 0.12 | H63: 0.5 | I63: 1 | J63: 1 | K63: 1 | L63: 1 | P63: -2.509850488e-24 | Q63: 2.509850488e-24 | R63: -1.715707533e-10 | S63: 1.715707533e-10 | T63: 1 | U63: 1 | Y63: 0 | Z63: 0 | AA63: -1.312320955e-19 | AB63: 0 | AC63: 7.407842694e-20 | AD63: 1.312320955e-19 | AE63: 0 | AF63: -1.687974586e-06 | AG63: -8.970888743e-06 | AH63: 0 | AI63: 3.375949173e-06 | AJ63: 8.970888743e-06 | AK63: 0 | AL63: 0 | AM63: 1.687974586e-06 | AQ63: -4.444705616e-25 | AR63: 2.963137077e-25 | AS63: -2.363164421e-11 | AT63: 1.687974586e-11 | AU63: -6.751898345e-12
B64: 56 | C64: 134 | G64: 0.12 | H64: 0.5 | I64: 1 | J64: 1 | K64: 1 | L64: 1 | P64: 3.011820585e-25 | Q64: -3.011820585e-25 | R64: 8.578537667e-11 | S64: -8.578537667e-11 | T64: 1 | U64: 1 | Y64: 0 | Z64: 0 | AA64: 1.528917617e-20 | AB64: 0 | AC64: -8.630496342e-21 | AD64: -1.528917617e-20 | AE64: 0 | AF64: 8.19405139e-07 | AG64: 4.354800361e-06 | AH64: 0 | AI64: -1.638810278e-06 | AJ64: -4.354800361e-06 | AK64: 0 | AL64: 0 | AM64: -8.19405139e-07 | AQ64: 5.178297805e-26 | AR64: -3.452198537e-26 | AS64: 1.147167195e-11 | AT64: -8.19405139e-12 | AU64: 3.277620556e-12
B65: 57 | C65: 135 | G65: 0.12 | H65: 0.5 | I65: 1 | J65: 1 | K65: 1 | L65: 1 | P65: -3.614184702e-26 | Q65: 3.614184702e-26 | R65: -4.289268833e-11 | S65: 4.289268833e-11 | T65: 1 | U65: 1 | Y65: 0 | Z65: 0 | AA65: -1.781263244e-21 | AB65: 0 | AC65: 1.005494719e-21 | AD65: 1.781263244e-21 | AE65: 0 | AF65: -3.977694849e-07 | AG65: -2.113980758e-06 | AH65: 0 | AI65: 7.955389699e-07 | AJ65: 2.113980758e-06 | AK65: 0 | AL65: 0 | AM65: 3.977694849e-07 | AQ65: -6.032968317e-27 | AR65: 4.021978878e-27 | AS65: -5.568772789e-12 | AT65: 3.977694849e-12 | AU65: -1.59107794e-12
B66: 58 | C66: 136 | G66: 0.12 | H66: 0.5 | I66: 1 | J66: 1 | K66: 1 | L66: 1 | P66: 4.337021642e-27 | Q66: -4.337021642e-27 | R66: 2.144634417e-11 | S66: -2.144634417e-11 | T66: 1 | U66: 1 | Y66: 0 | Z66: 0 | AA66: 2.075258148e-22 | AB66: 0 | AC66: -1.171450159e-22 | AD66: -2.075258148e-22 | AE66: 0 | AF66: 1.93091983e-07 | AG66: 1.026204251e-06 | AH66: 0 | AI66: -3.86183966e-07 | AJ66: -1.026204251e-06 | AK66: 0 | AL66: 0 | AM66: -1.93091983e-07 | AQ66: 7.028700952e-28 | AR66: -4.685800634e-28 | AS66: 2.703287762e-12 | AT66: -1.93091983e-12 | AU66: 7.723679319e-13
B67: 59 | C67: 137 | G67: 0.12 | H67: 0.5 | I67: 1 | J67: 1 | K67: 1 | L67: 1 | P67: -5.204425971e-28 | Q67: 5.204425971e-28 | R67: -1.072317208e-11 | S67: 1.072317208e-11 | T67: 1 | U67: 1 | Y67: 0 | Z67: 0 | AA67: -2.417776483e-23 | AB67: 0 | AC67: 1.364796301e-23 | AD67: 2.417776483e-23 | AE67: 0 | AF67: -9.373397232e-08 | AG67: -4.981574035e-07 | AH67: 0 | AI67: 1.874679446e-07 | AJ67: 4.981574035e-07 | AK67: 0 | AL67: 0 | AM67: 9.373397232e-08 | AQ67: -8.188777808e-29 | AR67: 5.459185205e-29 | AS67: -1.312275613e-12 | AT67: 9.373397232e-13 | AU67: -3.749358893e-13
B68: 60 | C68: 138 | G68: 0.12 | H68: 0.5 | I68: 1 | J68: 1 | K68: 1 | L68: 1 | P68: 6.245311165e-29 | Q68: -6.245311165e-29 | R68: 5.361586042e-12 | S68: -5.361586042e-12 | T68: 1 | U68: 1 | Y68: 0 | Z68: 0 | AA68: 2.816826971e-24 | AB68: 0 | AC68: -1.590053943e-24 | AD68: -2.816826971e-24 | AE68: 0 | AF68: 4.550192831e-08 | AG68: 2.418239823e-07 | AH68: 0 | AI68: -9.100385662e-08 | AJ68: -2.418239823e-07 | AK68: 0 | AL68: 0 | AM68: -4.550192831e-08 | AQ68: 9.54032366e-30 | AR68: -6.360215773e-30 | AS68: 6.370269964e-13 | AT68: -4.550192831e-13 | AU68: 1.820077132e-13
B69: 61 | C69: 139 | G69: 0.12 | H69: 0.5 | I69: 1 | J69: 1 | K69: 1 | L69: 1 | P69: -7.494373398e-30 | Q69: 7.494373398e-30 | R69: -2.680793021e-12 | S69: 2.680793021e-12 | T69: 1 | U69: 1 | Y69: 0 | Z69: 0 | AA69: -3.28174016e-25 | AB69: 0 | AC69: 1.852490031e-25 | AD69: 3.28174016e-25 | AE69: 0 | AF69: -2.208831471e-08 | AG69: -1.173902827e-07 | AH69: 0 | AI69: 4.417662943e-08 | AJ69: 1.173902827e-07 | AK69: 0 | AL69: 0 | AM69: 2.208831471e-08 | AQ69: -1.111494019e-30 | AR69: 7.409960124e-31 | AS69: -3.09236406e-13 | AT69: 2.208831471e-13 | AU69: -8.835325886e-14
B70: 62 | C70: 140 | G70: 0.12 | H70: 0.5 | I70: 1 | J70: 1 | K70: 1 | L70: 1 | P70: 8.993248078e-31 | Q70: -8.993248078e-31 | R70: 1.34039651e-12 | S70: -1.34039651e-12 | T70: 1 | U70: 1 | Y70: 0 | Z70: 0 | AA70: 3.823386594e-26 | AB70: 0 | AC70: -2.158240813e-26 | AD70: -3.823386594e-26 | AE70: 0 | AF70: 1.072248287e-08 | AG70: 5.698557411e-08 | AH70: 0 | AI70: -2.144496574e-08 | AJ70: -5.698557411e-08 | AK70: 0 | AL70: 0 | AM70: -1.072248287e-08 | AQ70: 1.294944488e-31 | AR70: -8.632963251e-32 | AS70: 1.501147602e-13 | AT70: -1.072248287e-13 | AU70: 4.288993148e-14
B71: 63 | C71: 141 | G71: 0.12 | H71: 0.5 | I71: 1 | J71: 1 | K71: 1 | L71: 1 | P71: -1.079189769e-31 | Q71: 1.079189769e-31 | R71: -6.701982552e-13 | S71: 6.701982552e-13 | T71: 1 | U71: 1 | Y71: 0 | Z71: 0 | AA71: -4.454430983e-27 | AB71: 0 | AC71: 2.514455316e-27 | AD71: 4.454430983e-27 | AE71: 0 | AF71: -5.205088772e-09 | AG71: -2.766290005e-08 | AH71: 0 | AI71: 1.041017754e-08 | AJ71: 2.766290005e-08 | AK71: 0 | AL71: 0 | AM71: 5.205088772e-09 | AQ71: -1.50867319e-32 | AR71: 1.005782126e-32 | AS71: -7.287124281e-14 | AT71: 5.205088772e-14 | AU71: -2.082035509e-14
B72: 64 | C72: =start_age+cycle -> 142 | G72: =VLOOKUP(current_age,table_get_ill,2) -> 0.12 | H72: =VLOOKUP(current_age,table_get_very_ill,2) -> 0.5 | I72: =VLOOKUP(current_age,table_mort_healthy,2) -> 1 | J72: =VLOOKUP(current_age,table_mort_ill_1y,2) -> 1 | K72: =VLOOKUP(current_age,table_mort_ill_after1y,2) -> 1 | L72: =VLOOKUP(current_age,table_mort_very_ill,2) -> 1 | P72: 1.295027723e-32 | Q72: -1.295027723e-32 | R72: 3.350991276e-13 | S72: -3.350991276e-13 | T72: 1 | U72: 1 | Y72: 0 | Z72: 0 | AA72: =(P72*VLOOKUP(current_age,table_consumption,2))/(1+disc_rate_costs)^cycle -> 5.18962833e-28 | AB72: 0 | AC72: =(Q72*c_ill_1y)/(1+disc_rate_costs)^cycle -> -2.929462504e-28 | AD72: =(Q72*VLOOKUP(current_age,table_consumption,2))/(1+disc_rate_costs)^cycle -> -5.18962833e-28 | AE72: =(Q72*VLOOKUP(current_age,table_prodloss,2))/(1+disc_rate_costs)^cycle -> 0 | AF72: =(R72*c_ill_after1y)/(1+disc_rate_costs)^cycle -> 2.526742123e-09 | AG72: =(R72*VLOOKUP(current_age,table_consumption,2))/(1+disc_rate_costs)^cycle -> 1.342859226e-08 | AH72: =(R72*VLOOKUP(current_age,table_prodloss,2))/(1+disc_rate_costs)^cycle -> 0 | AI72: =(S72*c_very_ill)/(1+disc_rate_costs)^cycle -> -5.053484245e-09 | AJ72: =(S72*VLOOKUP(current_age,table_consumption,2))/(1+disc_rate_costs)^cycle -> -1.342859226e-08 | AK72: =(S72*VLOOKUP(current_age,table_prodloss,2))/(1+disc_rate_costs)^cycle -> 0 | AL72: =(T72*VLOOKUP(current_age,table_prodloss,2))/(1+disc_rate_costs)^cycle -> 0 | AM72: -2.526742123e-09 | AQ72: =(P72*u_healthy)/(1+disc_rate_effects)^cycle -> 1.757677502e-33 | AR72: =(Q72*u_ill_1y)/(1+disc_rate_effects)^cycle -> -1.171785002e-33 | AS72: =(R72*u_ill_after_1y)/(1+disc_rate_effects)^cycle -> 3.537438972e-14 | AT72: =(S72*u_very_ill)/(1+disc_rate_effects)^cycle -> -2.526742123e-14 | AU72: 1.010696849e-14
B73: 65 | C73: 143 | G73: 0.12 | H73: 0.5 | I73: 1 | J73: 1 | K73: 1 | L73: 1 | P73: -1.554033268e-33 | Q73: 1.554033268e-33 | R73: -1.675495638e-13 | S73: 1.675495638e-13 | T73: 1 | U73: 1 | Y73: 0 | Z73: 0 | AA73: -6.046168928e-29 | AB73: 0 | AC73: 3.412966024e-29 | AD73: 6.046168928e-29 | AE73: 0 | AF73: -1.226573846e-09 | AG73: -6.518734107e-09 | AH73: 0 | AI73: 2.453147692e-09 | AJ73: 6.518734107e-09 | AK73: 0 | AL73: 0 | AM73: =SUM(Y73:AL73) -> 1.226573846e-09 | AQ73: -2.047779614e-34 | AR73: 1.36518641e-34 | AS73: -1.717203384e-14 | AT73: 1.226573846e-14 | AU73: =SUM(AQ73:AT73) -> -4.906295383e-15
B74: 66 | C74: 144 | G74: 0.12 | H74: 0.5 | I74: 1 | J74: 1 | K74: 1 | L74: 1 | P74: 1.864839921e-34 | Q74: -1.864839921e-34 | R74: 8.37747819e-14 | S74: -8.37747819e-14 | T74: 1 | U74: 1 | Y74: 0 | Z74: 0 | AA74: 7.044080305e-30 | AB74: 0 | AC74: -3.976271096e-30 | AD74: -7.044080305e-30 | AE74: 0 | AF74: 5.95424197e-10 | AG74: 3.164434032e-09 | AH74: 0 | AI74: -1.190848394e-09 | AJ74: -3.164434032e-09 | AK74: 0 | AL74: 0 | AM74: -5.95424197e-10 | AQ74: 2.385762658e-35 | AR74: -1.590508438e-35 | AS74: 8.335938758e-15 | AT74: -5.95424197e-15 | AU74: 2.381696788e-15
B75: 67 | C75: 145 | G75: 0.12 | H75: 0.5 | I75: 1 | J75: 1 | K75: 1 | L75: 1 | P75: -2.237807906e-35 | Q75: 2.237807906e-35 | R75: -4.188739095e-14 | S75: 4.188739095e-14 | T75: 1 | U75: 1 | Y75: 0 | Z75: 0 | AA75: -8.206695501e-31 | AB75: 0 | AC75: 4.63254885e-31 | AD75: 8.206695501e-31 | AE75: 0 | AF75: -2.890408723e-10 | AG75: -1.536133025e-09 | AH75: 0 | AI75: 5.780817447e-10 | AJ75: 1.536133025e-09 | AK75: 0 | AL75: 0 | AM75: 2.890408723e-10 | AQ75: -2.77952931e-36 | AR75: 1.85301954e-36 | AS75: -4.046572213e-15 | AT75: 2.890408723e-15 | AU75: -1.156163489e-15
B76: 68 | C76: 146 | G76: 0.12 | H76: 0.5 | I76: 1 | J76: 1 | K76: 1 | L76: 1 | P76: 2.685369487e-36 | Q76: -2.685369487e-36 | R76: 2.094369548e-14 | S76: -2.094369548e-14 | T76: 1 | U76: 1 | Y76: 0 | Z76: 0 | AA76: 9.561198641e-32 | AB76: 0 | AC76: -5.397144291e-32 | AD76: -9.561198641e-32 | AE76: 0 | AF76: 1.403111031e-10 | AG76: 7.456956434e-10 | AH76: 0 | AI76: -2.806222062e-10 | AJ76: -7.456956434e-10 | AK76: 0 | AL76: 0 | AM76: -1.403111031e-10 | AQ76: 3.238286574e-37 | AR76: -2.158857716e-37 | AS76: 1.964355443e-15 | AT76: -1.403111031e-15 | AU76: 5.612444123e-16
B77: 69 | C77: 147 | G77: 0.12 | H77: 0.5 | I77: 1 | J77: 1 | K77: 1 | L77: 1 | P77: -3.222443384e-37 | Q77: 3.222443384e-37 | R77: -1.047184774e-14 | S77: 1.047184774e-14 | T77: 1 | U77: 1 | Y77: 0 | Z77: 0 | AA77: -1.113926055e-32 | AB77: 0 | AC77: 6.287935096e-33 | AD77: 1.113926055e-32 | AE77: 0 | AF77: -6.811218596e-11 | AG77: -3.619881764e-10 | AH77: 0 | AI77: 1.362243719e-10 | AJ77: 3.619881764e-10 | AK77: 0 | AL77: 0 | AM77: 6.811218596e-11 | AQ77: -3.772761058e-38 | AR77: 2.515174038e-38 | AS77: -9.535706035e-16 | AT77: 6.811218596e-16 | AU77: -2.724487438e-16
B78: 70 | C78: 148 | G78: 0.12 | H78: 0.5 | I78: 1 | J78: 1 | K78: 1 | L78: 1 | P78: 3.866932061e-38 | Q78: -3.866932061e-38 | R78: 5.235923869e-15 | S78: -5.235923869e-15 | T78: 1 | U78: 1 | Y78: 0 | Z78: 0 | AA78: 1.297777929e-33 | AB78: 0 | AC78: -7.325749627e-34 | AD78: -1.297777929e-33 | AE78: 0 | AF78: 3.306416794e-11 | AG78: 1.757224157e-10 | AH78: 0 | AI78: -6.612833588e-11 | AJ78: -1.757224157e-10 | AK78: 0 | AL78: 0 | AM78: -3.306416794e-11 | AQ78: 4.395449776e-39 | AR78: -2.930299851e-39 | AS78: 4.628983512e-16 | AT78: -3.306416794e-16 | AU78: 1.322566718e-16

Sheet golden drug
G2: Time dependent risks | P2: Health state distribution | Y2: Costs | AQ2: QALYs
Y4: healthy | AC4: ill 1y | AF4: ill >1y | AI4: very ill | AL4: dead
G5: illness | I5: mortality risks | Q5: tunnel | Y5: drug | Z5: health care | AA5: consumption | AB5: prodloss | AC5: health care | AD5: consumption | AE5: prodloss | AF5: health care | AG5: consumption | AH5: prodloss | AI5: health care | AJ5: consumption | AK5: prodloss | AL5: prodloss | AM5: TOTAL | AQ5: healthy | AR5: ill 1y | AS5: ill >1y | AT5: very ill | AU5: TOTAL
B6: cycle | C6: age | G6: get ill | H6: get very ill | I6: healthy | J6: ill 1y | K6: ill >1y | L6: very ill | P6: healthy | Q6: ill 1y | R6: ill >1y | S6: very ill | T6: dead | U6: check | Y6: =SUM(OFFSET(Y8,,,time_horizon,)) -> 169833.5412 | Z6: 0 | AA6: 1747590.85 | AB6: 0 | AC6: 66134.49124 | AD6: 96880.80262 | AE6: 0 | AF6: 44262.5289 | AG6: 205576.0402 | AH6: 0 | AI6: 43726.97608 | AJ6: 109263.2656 | AK6: 0 | AL6: 0 | AM6: 2483268.496 | AQ6: =SUM(OFFSET(AQ8,,,time_horizon,)) -> 7.642509356 | AR6: =SUM(OFFSET(AR8,,,time_horizon,)) -> 0.264537965 | AS6: =SUM(OFFSET(AS8,,,time_horizon,)) -> 0.6196754047 | AT6: =SUM(OFFSET(AT8,,,time_horizon,)) -> 0.2186348804 | AU6: =SUM(OFFSET(AU8,,,time_horizon,)) -> 8.745357606
B8: 0 | C8: =start_age+cycle -> 78 | G8: =RR_illness*VLOOKUP(current_age,table_get_ill,2) -> 0.0384 | H8: =VLOOKUP(current_age,table_get_very_ill,2) -> 0.18 | I8: =VLOOKUP(current_age,table_mort_healthy,2) -> 0.0295 | J8: =VLOOKUP(current_age,table_mort_ill_1y,2) -> 0.086 | K8: =VLOOKUP(current_age,table_mort_ill_after1y,2) -> 0.105 | L8: =VLOOKUP(current_age,table_mort_very_ill,2) -> 0.41 | P8: 1 | Q8: 0 | R8: 0 | S8: 0 | T8: 0 | U8: =SUM(P8:T8) -> 1 | Y8: =(P8*c_golden_drug)/(1+disc_rate_costs)^cycle -> 20000 | Z8: 0 | AA8: =(P8*VLOOKUP(current_age,table_consumption,2))/(1+disc_rate_costs)^cycle -> 167766.4945 | AB8: 0 | AC8: =(Q8*c_ill_1y)/(1+disc_rate_costs)^cycle -> 0 | AD8: =(Q8*VLOOKUP(current_age,table_consumption,2))/(1+disc_rate_costs)^cycle -> 0 | AE8: =(Q8*VLOOKUP(current_age,table_prodloss,2))/(1+disc_rate_costs)^cycle -> 0 | AF8: =(R8*c_ill_after1y)/(1+disc_rate_costs)^cycle -> 0 | AG8: =(R8*VLOOKUP(current_age,table_consumption,2))/(1+disc_rate_costs)^cycle -> 0 | AH8: =(R8*VLOOKUP(current_age,table_prodloss,2))/(1+disc_rate_costs)^cycle -> 0 | AI8: =(S8*c_very_ill)/(1+disc_rate_costs)^cycle -> 0 | AJ8: =(S8*VLOOKUP(current_age,table_consumption,2))/(1+disc_rate_costs)^cycle -> 0 | AK8: =(S8*VLOOKUP(current_age,table_prodloss,2))/(1+disc_rate_costs)^cycle -> 0 | AL8: =(T8*VLOOKUP(current_age,table_prodloss,2))/(1+disc_rate_costs)^cycle -> 0 | AM8: =SUM(Y8:AL8) -> 187766.4945 | AQ8: =(P8*u_healthy)/(1+disc_rate_effects)^cycle -> 0.9 | AR8: =(Q8*u_ill_1y)/(1+disc_rate_effects)^cycle -> 0 | AS8: =(R8*u_ill_after_1y)/(1+disc_rate_effects)^cycle -> 0 | AT8: =(S8*u_very_ill)/(1+disc_rate_effects)^cycle -> 0 | AU8: =SUM(AQ8:AT8) -> 0.9
B9: 1 | C9: 79 | G9: 0.0392 | H9: 0.19 | I9: 0.0305 | J9: 0.09 | K9: 0.1075 | L9: 0.42 | P9: =P8+(0)-((P8*G8)+(P8*I8)) -> 0.9321 | Q9: =P8*G8 -> 0.0384 | R9: =R8+(Q8-(Q8*J8))-((R8*H8)+(R8*K8)) -> 0 | S9: =S8+(R8*H8)-(S8*L8) -> 0 | T9: =T8+(P8*I8)+(Q8*J8)+(R8*K8)+(S8*L8) -> 0.0295 | U9: =SUM(P9:T9) -> 1 | Y9: 18099.02913 | Z9: 0 | AA9: 151820.5335 | AB9: 0 | AC9: 5592.23301 | AD9: 6254.595524 | AE9: 0 | AF9: 0 | AG9: 0 | AH9: 0 | AI9: 0 | AJ9: 0 | AK9: 0 | AL9: 0 | AM9: =SUM(Y9:AL9) -> 181766.3912 | AQ9: 0.8144563107 | AR9: 0.02236893204 | AS9: 0 | AT9: 0 | AU9: =SUM(AQ9:AT9) -> 0.8368252427
B10: 2 | C10: 80 | G10: 0.048 | H10: 0.2 | I10: 0.0315 | J10: 0.094 | K10: 0.11 | L10: 0.43 | P10: =P9+(0)-((P9*G9)+(P9*I9)) -> 0.86713263 | Q10: =P9*G9 -> 0.03653832 | R10: =R9+(Q9-(Q9*J9))-((R9*H9)+(R9*K9)) -> 0.034944 | S10: =S9+(R9*H9)-(S9*L9) -> 0 | T10: =T9+(P9*I9)+(Q9*J9)+(R9*K9)+(S9*L9) -> 0.06138505 | U10: =SUM(P10:T10) -> 1 | Y10: 16347.11339 | Z10: 0 | AA10: 137124.8955 | AB10: 0 | AC10: 5166.130644 | AD10: 5778.024189 | AE10: 0 | AF10: 1646.903572 | AG10: 5525.904783 | AH10: 0 | AI10: 0 | AJ10: 0 | AK10: 0 | AL10: 0 | AM10: 171588.9721 | AQ10: 0.7356201027 | AR10: 0.02066452258 | AS10: 0.02305665001 | AT10: 0 | AU10: 0.7793412753
B11: 3 | C11: 81 | G11: 0.0496 | H11: 0.21 | I11: 0.0325 | J11: 0.098 | K11: 0.1125 | L11: 0.44 | P11: =P10+(0)-((P10*G10)+(P10*I10)) -> 0.7981955859 | Q11: =P10*G10 -> 0.04162236624 | R11: =R10+(Q10-(Q10*J10))-((R10*H10)+(R10*K10)) -> 0.05721507792 | S11: =S10+(R10*H10)-(S10*L10) -> 0.0069888 | T11: =T10+(P10*I10)+(Q10*J10)+(R10*K10)+(S10*L10) -> 0.09597816992 | U11: =SUM(P11:T11) -> 1 | Y11: 14609.24066 | Z11: 0 | AA11: 122547.0547 | AB11: 0 | AC11: 5713.554196 | AD11: 6390.286391 | AE11: 0 | AF11: 2617.995067 | AG11: 8784.237103 | AH11: 0 | AI11: 639.5742029 | AJ11: 1072.99122 | AK11: 0 | AL11: 0 | AM11: 162374.9335 | AQ11: 0.6574158297 | AR11: 0.02285421678 | AS11: 0.03665193094 | AT11: 0.003197871014 | AU11: 0.7201198484
B12: 4 | C12: 82 | G12: 0.0512 | H12: 0.22 | I12: 0.0335 | J12: 0.102 | K12: 0.115 | L12: 0.45 | P12: =P11+(0)-((P11*G11)+(P11*I11)) -> 0.7326637283 | Q12: =P11*G11 -> 0.03959050106 | R12: =R11+(Q11-(Q11*J11))-((R11*H11)+(R11*K11)) -> 0.07630658964 | S12: =S11+(R11*H11)-(S11*L11) -> 0.01592889436 | T12: =T11+(P11*I11)+(Q11*J11)+(R11*K11)+(S11*L11) -> 0.1355102866 | U12: =SUM(P12:T12) -> 1 | Y12: 13019.24466 | Z12: 0 | AA12: 109209.6519 | AB12: 0 | AC12: 5276.347112 | AD12: 5901.295059 | AE12: 0 | AF12: 3389.870828 | AG12: 11374.13491 | AH12: 0 | AI12: 1415.261633 | AJ12: 2374.33483 | AK12: 0 | AL12: 0 | AM12: 151960.1409 | AQ12: 0.5858660098 | AR12: 0.02110538845 | AS12: 0.0474581916 | AT12: 0.007076308165 | AU12: 0.661505898
B13: 5 | C13: 83 | G13: 0.0528 | H13: 0.23 | I13: 0.0345 | J13: 0.106 | K13: 0.1175 | L13: 0.46 | P13: 0.6706071105 | Q13: 0.03751238289 | R13: 0.08629615206 | S13: 0.02554834162 | T13: 0.1800360129 | U13: 1 | Y13: 11569.43169 | Z13: 0 | AA13: 97048.1499 | AB13: 0 | AC13: 4853.776651 | AD13: 5428.673959 | AE13: 0 | AF13: 3721.990941 | AG13: 12488.50746 | AH13: 0 | AI13: 2203.822391 | AJ13: 3697.275571 | AK13: 0 | AL13: 0 | AM13: 141011.6286 | AQ13: 0.520624426 | AR13: 0.0194151066 | AS13: 0.05210787318 | AT13: 0.01101911195 | AU13: 0.6031665177
B14: 6 | C14: 84 | G14: 0.0544 | H14: 0.24 | I14: 0.0355 | J14: 0.11 | K14: 0.12 | L14: 0.47 | P14: 0.6120631098 | Q14: 0.03540805544 | R14: 0.08984430952 | S14: 0.03364421945 | T14: 0.2290403058 | U14: 1 | Y14: 10251.86437 | Z14: 0 | AA14: 85995.96739 | AB14: 0 | AC14: 4448.053348 | AD14: 4974.895451 | AE14: 0 | AF14: 3762.159739 | AG14: 12623.28702 | AH14: 0 | AI14: 2817.650412 | AJ14: 4727.073324 | AK14: 0 | AL14: 0 | AM14: 129600.9511 | AQ14: 0.4613338967 | AR14: 0.01779221339 | AS14: 0.05267023635 | AT14: 0.01408825206 | AU14: 0.5458845985
B15: 7 | C15: 85 | G15: 0.056 | H15: 0.25 | I15: 0.0365 | J15: 0.114 | K15: 0.1225 | L15: 0.48 | P15: 0.5570386362 | Q15: 0.03329623317 | R15: 0.08901352743 | S15: 0.03939407059 | T15: 0.2812575326 | U15: 1 | Y15: 9058.467732 | Z15: 0 | AA15: 120355.0499 | AB15: 0 | AC15: 4060.932683 | AD15: 7194.060777 | AE15: 0 | AF15: 3618.807178 | AG15: 19232.46762 | AH15: 0 | AI15: 3203.09844 | AJ15: 8511.573566 | AK15: 0 | AL15: 0 | AM15: 175234.4579 | AQ15: 0.4076310479 | AR15: 0.01624373073 | AS15: 0.05066330049 | AT15: 0.0160154922 | AU15: 0.4905535713
B16: 8 | C16: 86 | G16: 0.0576 | H16: 0.26 | I16: 0.0375 | J16: 0.118 | K16: 0.125 | L16: 0.49 | P16: 0.5055125624 | Q16: 0.03119416363 | R16: 0.08535645105 | S16: 0.04273829857 | T16: 0.3351985244 | U16: 1 | Y16: 7981.125696 | Z16: 0 | AA16: 106040.9784 | AB16: 0 | AC16: 3693.744124 | AD16: 6543.575527 | AE16: 0 | AF16: 3369.058534 | AG16: 17905.15658 | AH16: 0 | AI16: 3373.800755 | AJ16: 8965.179766 | AK16: 0 | AL16: 0 | AM16: 157872.6194 | AQ16: 0.3591506563 | AR16: 0.01477497649 | AS16: 0.04716681947 | AT16: 0.01686900377 | AU16: 0.437961456
B17: 9 | C17: 87 | G17: 0.0592 | H17: 0.27 | I17: 0.0385 | J17: 0.122 | K17: 0.1275 | L17: 0.5 | P17: 0.4574383177 | Q17: 0.02911752359 | R17: 0.08000746972 | S17: 0.04398920954 | T17: 0.3894474795 | U17: 1 | Y17: 7011.767614 | Z17: 0 | AA17: 93161.63239 | AB17: 0 | AC17: 3347.423593 | AD17: 5930.058598 | AE17: 0 | AF17: 3065.953175 | AG17: 16294.27661 | AH17: 0 | AI17: 3371.406624 | AJ17: 8958.817856 | AK17: 0 | AL17: 0 | AM17: 141141.3365 | AQ17: 0.3155295426 | AR17: 0.01338969437 | AS17: 0.04292334445 | AT17: 0.01685703312 | AU17: 0.3886996146
B18: 10 | C18: 88 | G18: 0.0608 | H18: 0.28 | I18: 0.04 | J18: 0.126 | K18: 0.13 | L18: 0.51 | P18: 0.412746594 | Q18: 0.02708034841 | R18: 0.07376968622 | S18: 0.0435966216 | T18: 0.4428067497 | U18: 1 | Y18: 6142.44458 | Z18: 0 | AA18: 81611.39894 | AB18: 0 | AC18: 3022.548369 | AD18: 5354.532658 | AE18: 0 | AF18: 2744.578731 | AG18: 14586.30399 | AH18: 0 | AI18: 3243.998084 | AJ18: 8620.255936 | AK18: 0 | AL18: 0 | AM18: 125326.0613 | AQ18: 0.2764100061 | AR18: 0.01209019348 | AS18: 0.03842410223 | AT18: 0.01621999042 | AU18: 0.3431442922
B19: 11 | C19: 89 | G19: 0.0624 | H19: 0.29 | I19: 0.0415 | J19: 0.13 | K19: 0.1325 | L19: 0.52 | P19: 0.3711417374 | Q19: 0.02509499292 | R19: 0.06719233938 | S19: 0.04201785672 | T19: 0.4945530736 | U19: 1 | Y19: 5362.413754 | Z19: 0 | AA19: 71247.54361 | AB19: 0 | AC19: 2719.373523 | AD19: 4817.449568 | AE19: 0 | AF19: 2427.058779 | AG19: 12898.8164 | AH19: 0 | AI19: 3035.459369 | AJ19: 8066.107306 | AK19: 0 | AL19: 0 | AM19: 110574.2223 | AQ19: 0.2413086189 | AR19: 0.01087749409 | AS19: 0.03397882291 | AT19: 0.01517729685 | AU19: 0.3013422328
B20: 12 | C20: 90 | G20: 0.064 | H20: 0.3 | I20: 0.043 | J20: 0.134 | K20: 0.135 | L20: 0.53 | P20: 0.3325801108 | Q20: 0.02315924441 | R20: 0.06063621983 | S20: 0.03965434965 | T20: 0.5439700753 | U20: 1 | Y20: 4665.299966 | Z20: 0 | AA20: 61985.36294 | AB20: 0 | AC20: 2436.514211 | AD20: 4316.35604 | AE20: 0 | AF20: 2126.45123 | AG20: 11301.21126 | AH20: 0 | AI20: 2781.2763 | AJ20: 7390.668218 | AK20: 0 | AL20: 0 | AM20: 97003.14017 | AQ20: 0.2099384985 | AR20: 0.009746056842 | AS20: 0.02977031722 | AT20: 0.0139063815 | AU20: 0.263361254
B21: 13 | C21: 91 | G21: 0.0656 | H21: 0.31 | I21: 0.0445 | J21: 0.138 | K21: 0.1375 | L21: 0.54 | P21: 0.296994039 | Q21: 0.02128512709 | R21: 0.05431536986 | S21: 0.03682841028 | T21: 0.5905770538 | U21: 1 | Y21: 4044.769776 | Z21: 0 | AA21: 53740.70787 | AB21: 0 | AC21: 2174.120373 | AD21: 3851.517698 | AE21: 0 | AF21: 1849.306195 | AG21: 9828.299702 | AH21: 0 | AI21: 2507.835533 | AJ21: 6664.055767 | AK21: 0 | AL21: 0 | AM21: 84660.61292 | AQ21: 0.1820146399 | AR21: 0.00869648149 | AS21: 0.02589028672 | AT21: 0.01253917767 | AU21: 0.2291405858
B22: 14 | C22: 92 | G22: 0.0672 | H22: 0.32 | I22: 0.046 | J22: 0.142 | K22: 0.14 | L22: 0.55 | P22: 0.2642949953 | Q22: 0.01948280896 | R22: 0.0483570214 | S22: 0.03377883339 | T22: 0.634086341 | U22: 1 | Y22: 3494.602548 | Z22: 0 | AA22: 46430.92809 | AB22: 0 | AC22: 1932.064786 | AD22: 3422.709162 | AE22: 0 | AF22: 1598.484394 | AG22: 8495.285282 | AH22: 0 | AI22: 2233.178821 | AJ22: 5934.212195 | AK22: 0 | AL22: 0 | AM22: 73541.46528 | AQ22: 0.1572571146 | AR22: 0.007728259146 | AS22: 0.02237878152 | AT22: 0.01116589411 | AU22: 0.1985300494
B23: 15 | C23: 93 | G23: 0.0688 | H23: 0.33 | I23: 0.0475 | J23: 0.146 | K23: 0.1425 | L23: 0.56 | P23: 0.2343768018 | Q23: 0.01776062368 | R23: 0.04282904164 | S23: 0.03067472187 | T23: 0.674358811 | U23: 1 | Y23: 3008.751009 | Z23: 0 | AA23: 39975.67673 | AB23: 0 | AC23: 1709.980276 | AD23: 3029.279969 | AE23: 0 | AF23: 1374.516604 | AG23: 7304.988848 | AH23: 0 | AI23: 1968.893672 | AJ23: 5231.928911 | AK23: 0 | AL23: 0 | AM23: 63604.01602 | AQ23: 0.1353937954 | AR23: 0.006839921103 | AS23: 0.01924323245 | AT23: 0.009844468359 | AU23: 0.1713214173
B24: 16 | C24: 94 | G24: 0.0704 | H24: 0.34 | I24: 0.049 | J24: 0.15 | K24: 0.145 | L24: 0.57 | P24: 0.2071187798 | Q24: 0.01612512397 | R24: 0.03775989209 | S24: 0.02763046137 | T24: 0.7113657428 | U24: 1 | Y24: 2581.391521 | Z24: 0 | AA24: 34297.57818 | AB24: 0 | AC24: 1507.296622 | AD24: 2670.21996 | AE24: 0 | AF24: 1176.535819 | AG24: 6252.802632 | AH24: 0 | AI24: 1721.839004 | AJ24: 4575.432078 | AK24: 0 | AL24: 0 | AM24: 54783.09582 | AQ24: 0.1161626184 | AR24: 0.006029186488 | AS24: 0.01647150147 | AT24: 0.00860919502 | AU24: 0.1472725014
B25: 17 | C25: 95 | G25: 0.072 | H25: 0.35 | I25: 0.0505 | J25: 0.154 | K25: 0.1475 | L25: 0.58 | P25: 0.1823887975 | Q25: 0.0145811621 | R25: 0.0331526998 | S25: 0.0247194617 | T25: 0.7451578789 | U25: 1 | Y25: 2206.96444 | Z25: 0 | AA25: 29322.76441 | AB25: 0 | AC25: 1323.27643 | AD25: 2344.222819 | AE25: 0 | AF25: 1002.89643 | AG25: 5329.980895 | AH25: 0 | AI25: 1495.568086 | AJ25: 3974.163775 | AK25: 0 | AL25: 0 | AM25: 46999.83729 | AQ25: 0.09931339981 | AR25: 0.005293105721 | AS25: 0.01404055002 | AT25: 0.00747784043 | AU25: 0.126124896
B26: 18 | C26: 96 | G26: 0.0736 | H26: 0.36 | I26: 0.052 | J26: 0.158 | K26: 0.15 | L26: 0.59 | P26: 0.1600461698 | Q26: 0.01313199342 | R26: 0.02899489478 | S26: 0.02198561884 | T26: 0.7758413232 | U26: 1 | Y26: 1880.205142 | Z26: 0 | AA26: 24981.28716 | AB26: 0 | AC26: 1157.049318 | AD26: 2049.746639 | AE26: 0 | AF26: 851.5722422 | AG26: 4525.755247 | AH26: 0 | AI26: 1291.423395 | AJ26: 3431.691358 | AK26: 0 | AL26: 0 | AM26: 40168.7305 | AQ26: 0.08460923139 | AR26: 0.004628197273 | AS26: 0.01192201139 | AT26: 0.006457116977 | AU26: 0.107616557
B27: 19 | C27: 97 | G27: 0.0752 | H27: 0.37 | I27: 0.0535 | J27: 0.162 | K27: 0.1525 | L27: 0.6 | P27: 0.1399443709 | Q27: 0.0117793981 | R27: 0.0252646369 | S27: 0.01945226585 | T27: 0.8035593283 | U27: 1 | Y27: 1596.166385 | Z27: 0 | AA27: 21207.41504 | AB27: 0 | AC27: 1007.643921 | AD27: 1785.070616 | AE27: 0 | AF27: 720.4034699 | AG27: 3828.647321 | AH27: 0 | AI27: 1109.33554 | AJ27: 2947.830433 | AK27: 0 | AL27: 0 | AM27: 34202.51273 | AQ27: 0.07182748731 | AR27: 0.004030575683 | AS27: 0.01008564858 | AT27: 0.005546677701 | AU27: 0.09149038927
B28: 20 | C28: 98 | G28: 0.0768 | H28: 0.38 | I28: 0.055 | J28: 0.166 | K28: 0.155 | L28: 0.61 | P28: 0.1219335303 | Q28: 0.01052381669 | R28: 0.02193499972 | S28: 0.01712882199 | T28: 0.8284788313 | U28: 1 | Y28: 1350.232787 | Z28: 0 | AA28: 17939.82595 | AB28: 0 | AC28: 874.0173213 | AD28: 1548.347195 | AE28: 0 | AF28: 607.2438758 | AG28: 3227.25075 | AH28: 0 | AI28: 948.3813435 | AJ28: 2520.127847 | AK28: 0 | AL28: 0 | AM28: 29015.42707 | AQ28: 0.06076047543 | AR28: 0.003496069285 | AS28: 0.008501414261 | AT28: 0.004741906717 | AU28: 0.07749986569
B29: 21 | C29: 99 | G29: 0.0784 | H29: 0.39 | I29: 0.0565 | J29: 0.17 | K29: 0.1575 | L29: 0.62 | P29: 0.105862691 | Q29: 0.009364495129 | R29: 0.01897663799 | S29: 0.01501554047 | T29: 0.8507806354 | U29: 1 | Y29: 1138.128258 | Z29: 0 | AA29: 15121.70572 | AB29: 0 | AC29: 755.0816364 | AD29: 1337.649158 | AE29: 0 | AF29: 510.0439005 | AG29: 2710.67297 | AH29: 0 | AI29: 807.1592908 | AJ29: 2144.859364 | AK29: 0 | AL29: 0 | AM29: 24525.30029 | AQ29: 0.05121577162 | AR29: 0.003020326546 | AS29: 0.007140614608 | AT29: 0.004035796454 | AU29: 0.06541250923
B30: 22 | C30: 100 | G30: 0.08 | H30: 0.4 | I30: 0.058 | J30: 0.174 | K30: 0.16 | L30: 0.63 | P30: 0.09158181401 | Q30: 0.008299634977 | R30: 0.01635945965 | S30: 0.0131067942 | T30: 0.8706522972 | U30: 1 | Y30: 955.917239 | Z30: 0 | AA30: 12700.76467 | AB30: 0 | AC30: 649.7275882 | AD30: 1151.011386 | AE30: 0 | AF30: 426.8939654 | AG30: 2268.765359 | AH30: 0 | AI30: 684.0337601 | AJ30: 1817.678657 | AK30: 0 | AL30: 0 | AM30: 20654.79263 | AQ30: 0.04301627575 | AR30: 0.002598910353 | AS30: 0.005976515516 | AT30: 0.003420168801 | AU30: 0.05501187042
B31: 23 | C31: 101 | G31: 0.0816 | H31: 0.41 | I31: 0.0595 | J31: 0.178 | K31: 0.1625 | L31: 0.64 | P31: 0.07894352368 | Q31: 0.007326545121 | R31: 0.01405366074 | S31: 0.01139329771 | T31: 0.8882829728 | U31: 1 | Y31: 800.0006408 | Z31: 0 | AA31: 10629.18364 | AB31: 0 | AC31: 556.8449936 | AD31: 986.4671592 | AE31: 0 | AF31: 356.0436965 | AG31: 1892.225401 | AH31: 0 | AI31: 577.2889938 | AJ31: 1534.026453 | AK31: 0 | AL31: 0 | AM31: 17332.08098 | AQ31: 0.03600002883 | AR31: 0.002227379974 | AS31: 0.004984611751 | AT31: 0.002886444969 | AU31: 0.04609846553
B32: 24 | C32: 102 | G32: 0.0832 | H32: 0.42 | I32: 0.08 | J32: 0.182 | K32: 0.165 | L32: 0.65 | P32: 0.06780459249 | Q32: 0.006441791532 | R32: 0.01203036005 | S32: 0.009863588078 | T32: 0.9038596679 | U32: 1 | Y32: 667.1073304 | Z32: 0 | AA32: 8863.500804 | AB32: 0 | AC32: 475.3401866 | AD32: 842.0790146 | AE32: 0 | AF32: 295.9069985 | AG32: 1572.623654 | AH32: 0 | AI32: 485.2231737 | AJ32: 1289.380522 | AK32: 0 | AL32: 0 | AM32: 14491.16168 | AQ32: 0.03001982987 | AR32: 0.001901360746 | AS32: 0.00414269798 | AT32: 0.002426115868 | AU32: 0.03849000446
B33: 25 | C33: 103 | G33: 0.0848 | H33: 0.43 | I33: 0.1005 | J33: 0.186 | K33: 0.1675 | L33: 0.66 | P33: 0.05673888299 | Q33: 0.005641342095 | R33: 0.0102619849 | S33: 0.00850500705 | T33: 0.918852783 | U33: 1 | Y33: 541.9761302 | Z33: 0 | AA33: 7200.949003 | AB33: 0 | AC33: 404.1504604 | AD33: 715.9643368 | AE33: 0 | AF33: 245.0590569 | AG33: 1302.387816 | AH33: 0 | AI33: 406.2038734 | AJ33: 1079.403027 | AK33: 0 | AL33: 0 | AM33: 11896.0937 | AQ33: 0.02438892586 | AR33: 0.001616601842 | AS33: 0.003430826796 | AT33: 0.002031019367 | AU33: 0.03146737386
B34: 26 | C34: 104 | G34: 0.0864 | H34: 0.44 | I34: 0.121 | J34: 0.19 | K34: 0.17 | L34: 0.67 | P34: 0.04622516797 | Q34: 0.004811457278 | R34: 0.008722501386 | S34: 0.007304355902 | T34: 0.9329365175 | U34: 1 | Y34: 428.6873333 | Z34: 0 | AA34: 5695.740925 | AB34: 0 | AC34: 334.6571056 | AD34: 592.8548305 | AE34: 0 | AF34: 202.2288951 | AG34: 1074.763171 | AH34: 0 | AI34: 338.6991319 | AJ34: 900.023097 | AK34: 0 | AL34: 0 | AM34: 9567.654489 | AQ34: 0.01929093 | AR34: 0.001338628423 | AS34: 0.002831204532 | AT34: 0.00169349566 | AU34: 0.02515425861
B35: 27 | C35: 105 | G35: 0.088 | H35: 0.45 | I35: 0.1415 | J35: 0.194 | K35: 0.1725 | L35: 0.68 | P35: 0.03663806814 | Q35: 0.003993854513 | R35: 0.007299055935 | S35: 0.006248338057 | T35: 0.9458206834 | U35: 1 | Y35: 329.881146 | Z35: 0 | AA35: 4382.955589 | AB35: 0 | AC35: 269.6984388 | AD35: 477.7786562 | AE35: 0 | AF35: 164.297755 | AG35: 873.1748052 | AH35: 0 | AI35: 281.293341 | AJ35: 747.4790459 | AK35: 0 | AL35: 0 | AM35: 7526.558778 | AQ35: 0.01484465157 | AR35: 0.001078793755 | AS35: 0.00230016857 | AT35: 0.001406466705 | AU35: 0.0196300806
B36: 28 | C36: 106 | G36: 0.0896 | H36: 0.46 | I36: 0.162 | J36: 0.198 | K36: 0.175 | L36: 0.69 | P36: 0.0282296315 | Q36: 0.003224149996 | R36: 0.005974440353 | S36: 0.005284043349 | T36: 0.9572877348 | U36: 1 | Y36: 246.7703136 | Z36: 0 | AA36: 3278.706099 | AB36: 0 | AC36: 211.3801518 | AD36: 374.4661086 | AE36: 0 | AF36: 130.5644496 | AG36: 693.8961999 | AH36: 0 | AI36: 230.9532511 | AJ36: 613.7106379 | AK36: 0 | AL36: 0 | AM36: 5780.447211 | AQ36: 0.01110466411 | AR36: 0.0008455206072 | AS36: 0.001827902294 | AT36: 0.001154766255 | AU36: 0.01493285327
B37: 29 | C37: 107 | G37: 0.0912 | H37: 0.47 | I37: 0.1825 | J37: 0.202 | K37: 0.1775 | L37: 0.7 | P37: 0.02112705621 | Q37: 0.002529374982 | R37: 0.004766439026 | S37: 0.004386296001 | T37: 0.9671908338 | U37: 1 | Y37: 179.303789 | Z37: 0 | AA37: 2382.314218 | AB37: 0 | AC37: 160.9996609 | AD37: 285.2155985 | AE37: 0 | AF37: 101.1310531 | AG37: 537.469837 | AH37: 0 | AI37: 186.1308752 | AJ37: 494.6044172 | AK37: 0 | AL37: 0 | AM37: 4327.169449 | AQ37: 0.008068670505 | AR37: 0.0006439986436 | AS37: 0.001415834743 | AT37: 0.0009306543759 | AU37: 0.01105915827
B38: 30 | C38: 108 | G38: 0.0928 | H38: 0.48 | I38: 0.203 | J38: 0.206 | K38: 0.18 | L38: 0.71 | P38: 0.01534458093 | Q38: 0.001926787527 | R38: 0.003698610992 | S38: 0.003556115142 | T38: 0.9754739054 | U38: 1 | Y38: 126.4352835 | Z38: 0 | AA38: 1679.878462 | AB38: 0 | AC38: 119.0716424 | AD38: 210.93889 | AE38: 0 | AF38: 76.18893787 | AG38: 404.9127817 | AH38: 0 | AI38: 146.5072354 | AJ38: 389.3127656 | AK38: 0 | AL38: 0 | AM38: 3153.245999 | AQ38: 0.005689587755 | AR38: 0.0004762865696 | AS38: 0.00106664513 | AT38: 0.000732536177 | AU38: 0.007965055632
B39: 31 | C39: 109 | G39: 0.0944 | H39: 0.49 | I39: 0.2235 | J39: 0.21 | K39: 0.1825 | L39: 0.72 | P39: 0.01080565389 | Q39: 0.00142397711 | R39: 0.002787397034 | S39: 0.002806606668 | T39: 0.9821763653 | U39: 1 | Y39: 86.44245302 | Z39: 0 | AA39: 1148.514964 | AB39: 0 | AC39: 85.43588086 | AD39: 151.3521566 | AE39: 0 | AF39: 55.74614909 | AG39: 296.2677907 | AH39: 0 | AI39: 112.2606589 | AJ39: 298.3095507 | AK39: 0 | AL39: 0 | AM39: 2234.329604 | AQ39: 0.003889910386 | AR39: 0.0003417435234 | AS39: 0.0007804460873 | AT39: 0.0005613032943 | AU39: 0.005573403291
B40: 32 | C40: =start_age+cycle -> 110 | G40: =RR_illness*VLOOKUP(current_age,table_get_ill,2) -> 0.096 | H40: =VLOOKUP(current_age,table_get_very_ill,2) -> 0.5 | I40: =VLOOKUP(current_age,table_mort_healthy,2) -> 1 | J40: =VLOOKUP(current_age,table_mort_ill_1y,2) -> 1 | K40: =VLOOKUP(current_age,table_mort_ill_after1y,2) -> 1 | L40: =VLOOKUP(current_age,table_mort_very_ill,2) -> 1 | P40: 0.007370536518 | Q40: 0.001020053727 | R40: 0.002037814445 | S40: 0.002151674413 | T40: 0.9874199209 | U40: 1 | Y40: =(P40*c_golden_drug)/(1+disc_rate_costs)^cycle -> 57.24504583 | Z40: 0 | AA40: =(P40*VLOOKUP(current_age,table_consumption,2))/(1+disc_rate_costs)^cycle -> 760.5845215 | AB40: 0 | AC40: =(Q40*c_ill_1y)/(1+disc_rate_costs)^cycle -> 59.41869586 | AD40: =(Q40*VLOOKUP(current_age,table_consumption,2))/(1+disc_rate_costs)^cycle -> 105.261954 | AE40: =(Q40*VLOOKUP(current_age,table_prodloss,2))/(1+disc_rate_costs)^cycle -> 0 | AF40: =(R40*c_ill_after1y)/(1+disc_rate_costs)^cycle -> 39.56794089 | AG40: =(R40*VLOOKUP(current_age,table_consumption,2))/(1+disc_rate_costs)^cycle -> 210.2872866 | AH40: =(R40*VLOOKUP(current_age,table_prodloss,2))/(1+disc_rate_costs)^cycle -> 0 | AI40: =(S40*c_very_ill)/(1+disc_rate_costs)^cycle -> 83.55748601 | AJ40: =(S40*VLOOKUP(current_age,table_consumption,2))/(1+disc_rate_costs)^cycle -> 222.036788 | AK40: =(S40*VLOOKUP(current_age,table_prodloss,2))/(1+disc_rate_costs)^cycle -> 0 | AL40: =(T40*VLOOKUP(current_age,table_prodloss,2))/(1+disc_rate_costs)^cycle -> 0 | AM40: 1537.959719 | AQ40: =(P40*u_healthy)/(1+disc_rate_effects)^cycle -> 0.002576027062 | AR40: =(Q40*u_ill_1y)/(1+disc_rate_effects)^cycle -> 0.0002376747834 | AS40: =(R40*u_ill_after_1y)/(1+disc_rate_effects)^cycle -> 0.0005539511725 | AT40: =(S40*u_very_ill)/(1+disc_rate_effects)^cycle -> 0.0004177874301 | AU40: 0.003785440448
B41: 33 | C41: 111 | G41: 0.096 | H41: 0.5 | I41: 1 | J41: 1 | K41: 1 | L41: 1 | P41: -0.0007075715057 | Q41: 0.0007075715057 | R41: -0.001018907223 | S41: 0.001018907223 | T41: 1 | U41: 1 | Y41: -5.335460582 | Z41: 0 | AA41: -70.88943113 | AB41: 0 | AC41: 40.01595437 | AD41: 70.88943113 | AE41: 0 | AF41: -19.2077383 | AG41: -102.0812071 | AH41: 0 | AI41: 38.4154766 | AJ41: 102.0812071 | AK41: 0 | AL41: 0 | AM41: 53.88823208 | AQ41: -0.0002400957262 | AR41: 0.0001600638175 | AS41: -0.0002689083362 | AT41: 0.000192077383 | AU41: -0.0001568628619
B42: 34 | C42: 112 | G42: 0.096 | H42: 0.5 | I42: 1 | J42: 1 | K42: 1 | L42: 1 | P42: 6.792686455e-05 | Q42: -6.792686455e-05 | R42: 0.0005094536114 | S42: -0.0005094536114 | T42: 1 | U42: 1 | Y42: 0.4972856465 | Z42: 0 | AA42: 6.60717028 | AB42: 0 | AC42: -3.729642349 | AD42: -6.60717028 | AE42: 0 | AF42: 9.324144805 | AG42: 49.55398402 | AH42: 0 | AI42: -18.64828961 | AJ42: -49.55398402 | AK42: 0 | AL42: 0 | AM42: -12.55650151 | AQ42: 2.237785409e-05 | AR42: -1.491856939e-05 | AS42: 0.0001305380273 | AT42: -9.324144805e-05 | AU42: 4.475586392e-05
B43: 35 | C43: 113 | G43: 0.096 | H43: 0.5 | I43: 1 | J43: 1 | K43: 1 | L43: 1 | P43: -6.520978997e-06 | Q43: 6.520978997e-06 | R43: -0.0002547268057 | S43: 0.0002547268057 | T43: 1 | U43: 1 | Y43: -0.04634895346 | Z43: 0 | AA43: -0.615813929 | AB43: 0 | AC43: 0.3476171509 | AD43: 0.615813929 | AE43: 0 | AF43: -4.526283886 | AG43: -24.05533205 | AH43: 0 | AI43: 9.052567772 | AJ43: 24.05533205 | AK43: 0 | AL43: 0 | AM43: 4.827552083 | AQ43: -2.085702906e-06 | AR43: 1.390468604e-06 | AS43: -6.33679744e-05 | AT43: 4.526283886e-05 | AU43: -1.880036985e-05
B44: 36 | C44: 114 | G44: 0.096 | H44: 0.5 | I44: 1 | J44: 1 | K44: 1 | L44: 1 | P44: 6.260139837e-07 | Q44: -6.260139837e-07 | R44: 0.0001273634028 | S44: -0.0001273634028 | T44: 1 | U44: 1 | Y44: 0.004319902458 | Z44: 0 | AA44: 0.0573962497 | AB44: 0 | AC44: -0.03239926844 | AD44: -0.0573962497 | AE44: 0 | AF44: 2.197225187 | AG44: 11.67734565 | AH44: 0 | AI44: -4.394450375 | AJ44: -11.67734565 | AK44: 0 | AL44: 0 | AM44: -2.225304553 | AQ44: 1.943956106e-07 | AR44: -1.295970737e-07 | AS44: 3.076115262e-05 | AT44: -2.197225187e-05 | AU44: 8.853699286e-06
B45: 37 | C45: 115 | G45: 0.096 | H45: 0.5 | I45: 1 | J45: 1 | K45: 1 | L45: 1 | P45: -6.009734243e-08 | Q45: 6.009734243e-08 | R45: -6.368170142e-05 | S45: 6.368170142e-05 | T45: 1 | U45: 1 | Y45: -0.0004026316854 | Z45: 0 | AA45: -0.00534955337 | AB45: 0 | AC45: 0.003019737641 | AD45: 0.00534955337 | AE45: 0 | AF45: -1.066614169 | AG45: -5.668614395 | AH45: 0 | AI45: 2.133228337 | AJ45: 5.668614395 | AK45: 0 | AL45: 0 | AM45: 1.069231275 | AQ45: -1.811842584e-08 | AR45: 1.207895056e-08 | AS45: -1.493259836e-05 | AT45: 1.066614169e-05 | AU45: -4.27249615e-06
B46: 38 | C46: 116 | G46: 0.096 | H46: 0.5 | I46: 1 | J46: 1 | K46: 1 | L46: 1 | P46: 5.769344874e-09 | Q46: -5.769344874e-09 | R46: 3.184085071e-05 | S46: -3.184085071e-05 | T46: 1 | U46: 1 | Y46: 3.75268367e-05 | Z46: 0 | AA46: 0.000498599149 | AB46: 0 | AC46: -0.0002814512753 | AD46: -0.000498599149 | AE46: 0 | AF46: 0.5177738683 | AG46: 2.751754561 | AH46: 0 | AI46: -1.035547737 | AJ46: -2.751754561 | AK46: 0 | AL46: 0 | AM46: -0.5180177927 | AQ46: 1.688707652e-09 | AR46: -1.125805101e-09 | AS46: 7.248834156e-06 | AT46: -5.177738683e-06 | AU46: 2.071658376e-06
B47: 39 | C47: 117 | G47: 0.096 | H47: 0.5 | I47: 1 | J47: 1 | K47: 1 | L47: 1 | P47: -5.538571079e-10 | Q47: 5.538571079e-10 | R47: -1.592042536e-05 | S47: 1.592042536e-05 | T47: 1 | U47: 1 | Y47: -3.497646916e-06 | Z47: 0 | AA47: -4.6471377e-05 | AB47: 0 | AC47: 2.623235187e-05 | AD47: 4.6471377e-05 | AE47: 0 | AF47: -0.251346538 | AG47: -1.335803185 | AH47: 0 | AI47: 0.502693076 | AJ47: 1.335803185 | AK47: 0 | AL47: 0 | AM47: 0.2513692727 | AQ47: -1.573941112e-10 | AR47: 1.049294075e-10 | AS47: -3.518851532e-06 | AT47: 2.51346538e-06 | AU47: -1.005438617e-06
B48: 40 | C48: 118 | G48: 0.096 | H48: 0.5 | I48: 1 | J48: 1 | K48: 1 | L48: 1 | P48: 5.317028236e-11 | Q48: -5.317028236e-11 | R48: 7.960212678e-06 | S48: -7.960212678e-06 | T48: 1 | U48: 1 | Y48: 3.259942756e-07 | Z48: 0 | AA48: 4.331312807e-06 | AB48: 0 | AC48: -2.444957067e-06 | AD48: -4.331312807e-06 | AE48: 0 | AF48: 0.1220128825 | AG48: 0.648448148 | AH48: 0 | AI48: -0.244025765 | AJ48: -0.648448148 | AK48: 0 | AL48: 0 | AM48: -0.1220150015 | AQ48: 1.46697424e-11 | AR48: -9.779828269e-12 | AS48: 1.708180355e-06 | AT48: -1.220128825e-06 | AU48: 4.8805642e-07
B49: 41 | C49: 119 | G49: 0.096 | H49: 0.5 | I49: 1 | J49: 1 | K49: 1 | L49: 1 | P49: -5.104347106e-12 | Q49: 5.104347106e-12 | R49: -3.980106339e-06 | S49: 3.980106339e-06 | T49: 1 | U49: 1 | Y49: -3.038393249e-08 | Z49: 0 | AA49: -4.036951743e-07 | AB49: 0 | AC49: 2.278794937e-07 | AD49: 4.036951743e-07 | AE49: 0 | AF49: -0.05922955462 | AG49: -0.3147806544 | AH49: 0 | AI49: 0.1184591092 | AJ49: 0.3147806544 | AK49: 0 | AL49: 0 | AM49: 0.05922975212 | AQ49: -1.367276962e-12 | AR49: 9.115179746e-13 | AS49: -8.292137647e-07 | AT49: 5.922955462e-07 | AU49: -2.369186742e-07
B50: 42 | C50: 120 | G50: 0.096 | H50: 0.5 | I50: 1 | J50: 1 | K50: 1 | L50: 1 | P50: 4.900173222e-13 | Q50: -4.900173222e-13 | R50: 1.990053169e-06 | S50: -1.990053169e-06 | T50: 1 | U50: 1 | Y50: 2.831900504e-09 | Z50: 0 | AA50: 3.762595799e-08 | AB50: 0 | AC50: -2.123925378e-08 | AD50: -3.762595799e-08 | AE50: 0 | AF50: 0.02875221098 | AG50: 0.1528061429 | AH50: 0 | AI50: -0.05750442196 | AJ50: -0.1528061429 | AK50: 0 | AL50: 0 | AM50: -0.02875222939 | AQ50: 1.274355227e-13 | AR50: -8.495701511e-14 | AS50: 4.025309537e-07 | AT50: -2.875221098e-07 | AU50: 1.150088864e-07
B51: 43 | C51: 121 | G51: 0.096 | H51: 0.5 | I51: 1 | J51: 1 | K51: 1 | L51: 1 | P51: -4.704166293e-14 | Q51: 4.704166293e-14 | R51: -9.950265847e-07 | S51: 9.950265847e-07 | T51: 1 | U51: 1 | Y51: -2.639441246e-10 | Z51: 0 | AA51: -3.506885405e-09 | AB51: 0 | AC51: 1.979580935e-09 | AD51: 3.506885405e-09 | AE51: 0 | AF51: -0.01395738397 | AG51: -0.07417773927 | AH51: 0 | AI51: 0.02791476794 | AJ51: 0.07417773927 | AK51: 0 | AL51: 0 | AM51: 0.01395738569 | AQ51: -1.187748561e-14 | AR51: 7.918323738e-15 | AS51: -1.954033756e-07 | AT51: 1.395738397e-07 | AU51: -5.582953984e-08
B52: 44 | C52: 122 | G52: 0.096 | H52: 0.5 | I52: 1 | J52: 1 | K52: 1 | L52: 1 | P52: 4.515999641e-15 | Q52: -4.515999641e-15 | R52: 4.975132924e-07 | S52: -4.975132924e-07 | T52: 1 | U52: 1 | Y52: 2.460061744e-11 | Z52: 0 | AA52: 3.268553387e-10 | AB52: 0 | AC52: -1.845046308e-10 | AD52: -3.268553387e-10 | AE52: 0 | AF52: 0.006775429112 | AG52: 0.0360086113 | AH52: 0 | AI52: -0.01355085822 | AJ52: -0.0360086113 | AK52: 0 | AL52: 0 | AM52: -0.006775429272 | AQ52: 1.107027785e-15 | AR52: -7.380185232e-16 | AS52: 9.485600757e-08 | AT52: -6.775429112e-08 | AU52: 2.710171682e-08
B53: 45 | C53: 123 | G53: 0.096 | H53: 0.5 | I53: 1 | J53: 1 | K53: 1 | L53: 1 | P53: -4.335359656e-16 | Q53: 4.335359656e-16 | R53: -2.487566462e-07 | S53: 2.487566462e-07 | T53: 1 | U53: 1 | Y53: -2.292873082e-12 | Z53: 0 | AA53: -3.046418691e-11 | AB53: 0 | AC53: 1.719654811e-11 | AD53: 3.046418691e-11 | AE53: 0 | AF53: -0.003289043258 | AG53: -0.0174799084 | AH53: 0 | AI53: 0.006578086517 | AJ53: 0.0174799084 | AK53: 0 | AL53: 0 | AM53: 0.003289043273 | AQ53: -1.031792887e-16 | AR53: 6.878619245e-17 | AS53: -4.604660562e-08 | AT53: 3.289043258e-08 | AU53: -1.315617307e-08
B54: 46 | C54: 124 | G54: 0.096 | H54: 0.5 | I54: 1 | J54: 1 | K54: 1 | L54: 1 | P54: 4.161945269e-17 | Q54: -4.161945269e-17 | R54: 1.243783231e-07 | S54: -1.243783231e-07 | T54: 1 | U54: 1 | Y54: 2.137046756e-13 | Z54: 0 | AA54: 2.839380528e-12 | AB54: 0 | AC54: -1.602785067e-12 | AD54: -2.839380528e-12 | AE54: 0 | AF54: 0.001596622941 | AG54: 0.008485392425 | AH54: 0 | AI54: -0.003193245882 | AJ54: -0.008485392425 | AK54: 0 | AL54: 0 | AM54: -0.001596622942 | AQ54: 9.616710401e-18 | AR54: -6.411140267e-18 | AS54: 2.235272117e-08 | AT54: -1.596622941e-08 | AU54: 6.386491767e-09
B55: 47 | C55: 125 | G55: 0.096 | H55: 0.5 | I55: 1 | J55: 1 | K55: 1 | L55: 1 | P55: -3.995467459e-18 | Q55: 3.995467459e-18 | R55: -6.218916154e-08 | S55: 6.218916154e-08 | T55: 1 | U55: 1 | Y55: -1.991810569e-14 | Z55: 0 | AA55: -2.646412919e-13 | AB55: 0 | AC55: 1.493857926e-13 | AD55: 2.646412919e-13 | AE55: 0 | AF55: -0.0007750596801 | AG55: -0.004119122536 | AH55: 0 | AI55: 0.00155011936 | AJ55: 0.004119122536 | AK55: 0 | AL55: 0 | AM55: 0.0007750596802 | AQ55: -8.963147558e-19 | AR55: 5.975431706e-19 | AS55: -1.085083552e-08 | AT55: 7.750596801e-09 | AU55: -3.100238721e-09
B56: 48 | C56: 126 | G56: 0.096 | H56: 0.5 | I56: 1 | J56: 1 | K56: 1 | L56: 1 | P56: 3.83564876e-19 | Q56: -3.83564876e-19 | R56: 3.109458077e-08 | S56: -3.109458077e-08 | T56: 1 | U56: 1 | Y56: 1.856444802e-15 | Z56: 0 | AA56: 2.466559614e-14 | AB56: 0 | AC56: -1.392333601e-14 | AD56: -2.466559614e-14 | AE56: 0 | AF56: 0.0003762425631 | AG56: 0.001999574047 | AH56: 0 | AI56: -0.0007524851263 | AJ56: -0.001999574047 | AK56: 0 | AL56: 0 | AM56: -0.0003762425632 | AQ56: 8.354001608e-20 | AR56: -5.569334405e-20 | AS56: 5.267395884e-09 | AT56: -3.762425631e-09 | AU56: 1.504970253e-09
B57: 49 | C57: 127 | G57: 0.096 | H57: 0.5 | I57: 1 | J57: 1 | K57: 1 | L57: 1 | P57: -3.68222281e-20 | Q57: 3.68222281e-20 | R57: -1.554729039e-08 | S57: 1.554729039e-08 | T57: 1 | U57: 1 | Y57: -1.73027865e-16 | Z57: 0 | AA57: -2.298929349e-15 | AB57: 0 | AC57: 1.297708988e-15 | AD57: 2.298929349e-15 | AE57: 0 | AF57: -0.0001826420209 | AG57: -0.000970667013 | AH57: 0 | AI57: 0.0003652840419 | AJ57: 0.000970667013 | AK57: 0 | AL57: 0 | AM57: 0.0001826420209 | AQ57: -7.786253926e-21 | AR57: 5.19083595e-21 | AS57: -2.556988293e-09 | AT57: 1.826420209e-09 | AU57: -7.305680838e-10
B58: 50 | C58: 128 | G58: 0.096 | H58: 0.5 | I58: 1 | J58: 1 | K58: 1 | L58: 1 | P58: 3.534933898e-21 | Q58: -3.534933898e-21 | R58: 7.773645193e-09 | S58: -7.773645193e-09 | T58: 1 | U58: 1 | Y58: 1.612686897e-17 | Z58: 0 | AA58: 2.142691432e-16 | AB58: 0 | AC58: -1.209515173e-16 | AD58: -2.142691432e-16 | AE58: 0 | AF58: 8.866117522e-05 | AG58: 0.0004711975791 | AH58: 0 | AI58: -0.0001773223504 | AJ58: -0.0004711975791 | AK58: 0 | AL58: 0 | AM58: -8.866117522e-05 | AQ58: 7.257091038e-22 | AR58: -4.838060692e-22 | AS58: 1.241256453e-09 | AT58: -8.866117522e-10 | AU58: 3.546447009e-10
B59: 51 | C59: 129 | G59: 0.096 | H59: 0.5 | I59: 1 | J59: 1 | K59: 1 | L59: 1 | P59: -3.393536542e-22 | Q59: 3.393536542e-22 | R59: -3.886822597e-09 | S59: 3.886822597e-09 | T59: 1 | U59: 1 | Y59: -1.503086817e-18 | Z59: 0 | AA59: -1.997071626e-17 | AB59: 0 | AC59: 1.127315113e-17 | AD59: 1.997071626e-17 | AE59: 0 | AF59: -4.303940544e-05 | AG59: -0.0002287366889 | AH59: 0 | AI59: 8.607881089e-05 | AJ59: 0.0002287366889 | AK59: 0 | AL59: 0 | AM59: 4.303940544e-05 | AQ59: -6.763890676e-23 | AR59: 4.50926045e-23 | AS59: -6.025516762e-10 | AT59: 4.303940544e-10 | AU59: -1.721576218e-10
B60: 52 | C60: 130 | G60: 0.096 | H60: 0.5 | I60: 1 | J60: 1 | K60: 1 | L60: 1 | P60: 3.25779508e-23 | Q60: -3.25779508e-23 | R60: 1.943411298e-09 | S60: -1.943411298e-09 | T60: 1 | U60: 1 | Y60: 1.400935286e-19 | Z60: 0 | AA60: 1.861348311e-18 | AB60: 0 | AC60: -1.050701464e-18 | AD60: -1.861348311e-18 | AE60: 0 | AF60: 2.089291526e-05 | AG60: 0.0001110372276 | AH60: 0 | AI60: -4.178583053e-05 | AJ60: -0.0001110372276 | AK60: 0 | AL60: 0 | AM60: -2.089291526e-05 | AQ60: 6.304208785e-24 | AR60: -4.202805857e-24 | AS60: 2.925008137e-10 | AT60: -2.089291526e-10 | AU60: 8.357166106e-11
B61: 53 | C61: 131 | G61: 0.096 | H61: 0.5 | I61: 1 | J61: 1 | K61: 1 | L61: 1 | P61: -3.127483277e-24 | Q61: 3.127483277e-24 | R61: -9.717056491e-10 | S61: 9.717056491e-10 | T61: 1 | U61: 1 | Y61: -1.305726091e-20 | Z61: 0 | AA61: -1.734848912e-19 | AB61: 0 | AC61: 9.792945686e-20 | AD61: 1.734848912e-19 | AE61: 0 | AF61: -1.014219188e-05 | AG61: -5.390156681e-05 | AH61: 0 | AI61: 2.028438375e-05 | AJ61: 5.390156681e-05 | AK61: 0 | AL61: 0 | AM61: 1.014219188e-05 | AQ61: -5.875767411e-25 | AR61: 3.917178274e-25 | AS61: -1.419906863e-10 | AT61: 1.014219188e-10 | AU61: -4.05687675e-11
B62: 54 | C62: 132 | G62: 0.096 | H62: 0.5 | I62: 1 | J62: 1 | K62: 1 | L62: 1 | P62: 3.002383946e-25 | Q62: -3.002383946e-25 | R62: 4.858528246e-10 | S62: -4.858528246e-10 | T62: 1 | U62: 1 | Y62: 1.216987425e-21 | Z62: 0 | AA62: 1.616946558e-20 | AB62: 0 | AC62: -9.127405688e-21 | AD62: -1.616946558e-20 | AE62: 0 | AF62: 4.923394115e-06 | AG62: 2.616580913e-05 | AH62: 0 | AI62: -9.846788229e-06 | AJ62: -2.616580913e-05 | AK62: 0 | AL62: 0 | AM62: -4.923394115e-06 | AQ62: 5.476443413e-26 | AR62: -3.650962275e-26 | AS62: 6.89275176e-11 | AT62: -4.923394115e-11 | AU62: 1.969357646e-11
B63: 55 | C63: 133 | G63: 0.096 | H63: 0.5 | I63: 1 | J63: 1 | K63: 1 | L63: 1 | P63: -2.882288588e-26 | Q63: 2.882288588e-26 | R63: -2.429264123e-10 | S63: 2.429264123e-10 | T63: 1 | U63: 1 | Y63: -1.134279542e-22 | Z63: 0 | AA63: -1.507056986e-21 | AB63: 0 | AC63: 8.507096563e-22 | AD63: 1.507056986e-21 | AE63: 0 | AF63: -2.389997143e-06 | AG63: -1.270184909e-05 | AH63: 0 | AI63: 4.779994286e-06 | AJ63: 1.270184909e-05 | AK63: 0 | AL63: 0 | AM63: 2.389997143e-06 | AQ63: -5.104257938e-27 | AR63: 3.402838625e-27 | AS63: -3.345996e-11 | AT63: 2.389997143e-11 | AU63: -9.559988572e-12
B64: 56 | C64: 134 | G64: 0.096 | H64: 0.5 | I64: 1 | J64: 1 | K64: 1 | L64: 1 | P64: 2.766997044e-27 | Q64: -2.766997044e-27 | R64: 1.214632061e-10 | S64: -1.214632061e-10 | T64: 1 | U64: 1 | Y64: 1.057192583e-23 | Z64: 0 | AA64: 1.404635638e-22 | AB64: 0 | AC64: -7.92894437e-23 | AD64: -1.404635638e-22 | AE64: 0 | AF64: 1.160192788e-06 | AG64: 6.165946161e-06 | AH64: 0 | AI64: -2.320385576e-06 | AJ64: -6.165946161e-06 | AK64: 0 | AL64: 0 | AM64: -1.160192788e-06 | AQ64: 4.757366622e-28 | AR64: -3.171577748e-28 | AS64: 1.624269903e-11 | AT64: -1.160192788e-11 | AU64: 4.640771151e-12
B65: 57 | C65: 135 | G65: 0.096 | H65: 0.5 | I65: 1 | J65: 1 | K65: 1 | L65: 1 | P65: -2.656317163e-28 | Q65: 2.656317163e-28 | R65: -6.073160307e-11 | S65: 6.073160307e-11 | T65: 1 | U65: 1 | Y65: -9.85344543e-25 | Z65: 0 | AA65: -1.309174963e-23 | AB65: 0 | AC65: 7.390084073e-24 | AD65: 1.309174963e-23 | AE65: 0 | AF65: -5.632003824e-07 | AG65: -2.993177748e-06 | AH65: 0 | AI65: 1.126400765e-06 | AJ65: 2.993177748e-06 | AK65: 0 | AL65: 0 | AM65: 5.632003824e-07 | AQ65: -4.434050444e-29 | AR65: 2.956033629e-29 | AS65: -7.884805354e-12 | AT65: 5.632003824e-12 | AU65: -2.25280153e-12
B66: 58 | C66: 136 | G66: 0.096 | H66: 0.5 | I66: 1 | J66: 1 | K66: 1 | L66: 1 | P66: 2.550064476e-29 | Q66: -2.550064476e-29 | R66: 3.036580154e-11 | S66: -3.036580154e-11 | T66: 1 | U66: 1 | Y66: 9.183793799e-26 | Z66: 0 | AA66: 1.220201908e-24 | AB66: 0 | AC66: -6.887845349e-25 | AD66: -1.220201908e-24 | AE66: 0 | AF66: 2.733982439e-07 | AG66: 1.452998907e-06 | AH66: 0 | AI66: -5.467964878e-07 | AJ66: -1.452998907e-06 | AK66: 0 | AL66: 0 | AM66: -2.733982439e-07 | AQ66: 4.13270721e-30 | AR66: -2.75513814e-30 | AS66: 3.827575415e-12 | AT66: -2.733982439e-12 | AU66: 1.093592976e-12
B67: 59 | C67: 137 | G67: 0.096 | H67: 0.5 | I67: 1 | J67: 1 | K67: 1 | L67: 1 | P67: -2.448061897e-30 | Q67: 2.448061897e-30 | R67: -1.518290077e-11 | S67: 1.518290077e-11 | T67: 1 | U67: 1 | Y67: -8.559652473e-27 | Z67: 0 | AA67: -1.137275564e-25 | AB67: 0 | AC67: 6.419739355e-26 | AD67: 1.137275564e-25 | AE67: 0 | AF67: -1.327175941e-07 | AG67: -7.053392752e-07 | AH67: 0 | AI67: 2.654351883e-07 | AJ67: 7.053392752e-07 | AK67: 0 | AL67: 0 | AM67: 1.327175941e-07 | AQ67: -3.851843613e-31 | AR67: 2.567895742e-31 | AS67: -1.858046318e-12 | AT67: 1.327175941e-12 | AU67: -5.308703765e-13
B68: 60 | C68: 138 | G68: 0.096 | H68: 0.5 | I68: 1 | J68: 1 | K68: 1 | L68: 1 | P68: 2.350139421e-31 | Q68: -2.350139421e-31 | R68: 7.591450384e-12 | S68: -7.591450384e-12 | T68: 1 | U68: 1 | Y68: 7.977928518e-28 | Z68: 0 | AA68: 1.059984992e-26 | AB68: 0 | AC68: -5.983446389e-27 | AD68: -1.059984992e-26 | AE68: 0 | AF68: 6.442601657e-08 | AG68: 3.423977064e-07 | AH68: 0 | AI68: -1.288520331e-07 | AJ68: -3.423977064e-07 | AK68: 0 | AL68: 0 | AM68: -6.442601657e-08 | AQ68: 3.590067833e-32 | AR68: -2.393378556e-32 | AS68: 9.01964232e-13 | AT68: -6.442601657e-13 | AU68: 2.577040663e-13
B69: 61 | C69: 139 | G69: 0.096 | H69: 0.5 | I69: 1 | J69: 1 | K69: 1 | L69: 1 | P69: -2.256133844e-32 | Q69: 2.256133844e-32 | R69: -3.795725192e-12 | S69: 3.795725192e-12 | T69: 1 | U69: 1 | Y69: -7.435739202e-29 | Z69: 0 | AA69: -9.879471771e-28 | AB69: 0 | AC69: 5.576804401e-28 | AD69: 9.879471771e-28 | AE69: 0 | AF69: -3.127476532e-08 | AG69: -1.662124788e-07 | AH69: 0 | AI69: 6.254953065e-08 | AJ69: 1.662124788e-07 | AK69: 0 | AL69: 0 | AM69: 3.127476532e-08 | AQ69: -3.346082641e-33 | AR69: 2.23072176e-33 | AS69: -4.378467145e-13 | AT69: 3.127476532e-13 | AU69: -1.250990613e-13
B70: 62 | C70: 140 | G70: 0.096 | H70: 0.5 | I70: 1 | J70: 1 | K70: 1 | L70: 1 | P70: 2.165888491e-33 | Q70: -2.165888491e-33 | R70: 1.897862596e-12 | S70: -1.897862596e-12 | T70: 1 | U70: 1 | Y70: 6.930397702e-30 | Z70: 0 | AA70: 9.208051359e-29 | AB70: 0 | AC70: -5.197798277e-29 | AD70: -9.208051359e-29 | AE70: 0 | AF70: 1.518192491e-08 | AG70: 8.068566934e-08 | AH70: 0 | AI70: -3.036384983e-08 | AJ70: -8.068566934e-08 | AK70: 0 | AL70: 0 | AM70: -1.518192491e-08 | AQ70: 3.118678966e-34 | AR70: -2.079119311e-34 | AS70: 2.125469488e-13 | AT70: -1.518192491e-13 | AU70: 6.072769966e-14
B71: 63 | C71: 141 | G71: 0.096 | H71: 0.5 | I71: 1 | J71: 1 | K71: 1 | L71: 1 | P71: -2.079252951e-34 | Q71: 2.079252951e-34 | R71: -9.48931298e-13 | S71: 9.48931298e-13 | T71: 1 | U71: 1 | Y71: -6.4593998e-31 | Z71: 0 | AA71: -8.582261461e-30 | AB71: 0 | AC71: 4.84454985e-30 | AD71: 8.582261461e-30 | AE71: 0 | AF71: -7.369866463e-09 | AG71: -3.916780065e-08 | AH71: 0 | AI71: 1.473973293e-08 | AJ71: 3.916780065e-08 | AK71: 0 | AL71: 0 | AM71: 7.369866463e-09 | AQ71: -2.90672991e-35 | AR71: 1.93781994e-35 | AS71: -1.031781305e-13 | AT71: 7.369866463e-14 | AU71: -2.947946585e-14
B72: 64 | C72: =start_age+cycle -> 142 | G72: =RR_illness*VLOOKUP(current_age,table_get_ill,2) -> 0.096 | H72: =VLOOKUP(current_age,table_get_very_ill,2) -> 0.5 | I72: =VLOOKUP(current_age,table_mort_healthy,2) -> 1 | J72: =VLOOKUP(current_age,table_mort_ill_1y,2) -> 1 | K72: =VLOOKUP(current_age,table_mort_ill_after1y,2) -> 1 | L72: =VLOOKUP(current_age,table_mort_very_ill,2) -> 1 | P72: 1.996082833e-35 | Q72: -1.996082833e-35 | R72: 4.74465649e-13 | S72: -4.74465649e-13 | T72: 1 | U72: 1 | Y72: =(P72*c_golden_drug)/(1+disc_rate_costs)^cycle -> 6.020411464e-32 | Z72: 0 | AA72: =(P72*VLOOKUP(current_age,table_consumption,2))/(1+disc_rate_costs)^cycle -> 7.999000973e-31 | AB72: 0 | AC72: =(Q72*c_ill_1y)/(1+disc_rate_costs)^cycle -> -4.515308598e-31 | AD72: =(Q72*VLOOKUP(current_age,table_consumption,2))/(1+disc_rate_costs)^cycle -> -7.999000973e-31 | AE72: =(Q72*VLOOKUP(current_age,table_prodloss,2))/(1+disc_rate_costs)^cycle -> 0 | AF72: =(R72*c_ill_after1y)/(1+disc_rate_costs)^cycle -> 3.577605079e-09 | AG72: =(R72*VLOOKUP(current_age,table_consumption,2))/(1+disc_rate_costs)^cycle -> 1.901349546e-08 | AH72: =(R72*VLOOKUP(current_age,table_prodloss,2))/(1+disc_rate_costs)^cycle -> 0 | AI72: =(S72*c_very_ill)/(1+disc_rate_costs)^cycle -> -7.155210159e-09 | AJ72: =(S72*VLOOKUP(current_age,table_consumption,2))/(1+disc_rate_costs)^cycle -> -1.901349546e-08 | AK72: =(S72*VLOOKUP(current_age,table_prodloss,2))/(1+disc_rate_costs)^cycle -> 0 | AL72: =(T72*VLOOKUP(current_age,table_prodloss,2))/(1+disc_rate_costs)^cycle -> 0 | AM72: -3.577605079e-09 | AQ72: =(P72*u_healthy)/(1+disc_rate_effects)^cycle -> 2.709185159e-36 | AR72: =(Q72*u_ill_1y)/(1+disc_rate_effects)^cycle -> -1.806123439e-36 | AS72: =(R72*u_ill_after_1y)/(1+disc_rate_effects)^cycle -> 5.008647111e-14 | AT72: =(S72*u_very_ill)/(1+disc_rate_effects)^cycle -> -3.577605079e-14 | AU72: 1.431042032e-14
B73: 65 | C73: 143 | G73: 0.096 | H73: 0.5 | I73: 1 | J73: 1 | K73: 1 | L73: 1 | P73: -1.91623952e-36 | Q73: 1.91623952e-36 | R73: -2.372328245e-13 | S73: 2.372328245e-13 | T73: 1 | U73: 1 | Y73: -5.611257287e-33 | Z73: 0 | AA73: -7.455379548e-32 | AB73: 0 | AC73: 4.208442965e-32 | AD73: 7.455379548e-32 | AE73: 0 | AF73: -1.736701495e-09 | AG73: -9.229852165e-09 | AH73: 0 | AI73: 3.47340299e-09 | AJ73: 9.229852165e-09 | AK73: 0 | AL73: 0 | AM73: =SUM(Y73:AL73) -> 1.736701495e-09 | AQ73: -2.525065779e-37 | AR73: 1.683377186e-37 | AS73: -2.431382093e-14 | AT73: 1.736701495e-14 | AU73: =SUM(AQ73:AT73) -> -6.946805979e-15
B74: 66 | C74: 144 | G74: 0.096 | H74: 0.5 | I74: 1 | J74: 1 | K74: 1 | L74: 1 | P74: 1.839589939e-37 | Q74: -1.839589939e-37 | R74: 1.186164122e-13 | S74: -1.186164122e-13 | T74: 1 | U74: 1 | Y74: 5.229909705e-34 | Z74: 0 | AA74: 6.948703268e-33 | AB74: 0 | AC74: -3.922432278e-33 | AD74: -6.948703268e-33 | AE74: 0 | AF74: 8.430589781e-10 | AG74: 4.48051076e-09 | AH74: 0 | AI74: -1.686117956e-09 | AJ74: -4.48051076e-09 | AK74: 0 | AL74: 0 | AM74: -8.430589781e-10 | AQ74: 2.353459367e-38 | AR74: -1.568972911e-38 | AS74: 1.180282569e-14 | AT74: -8.430589781e-15 | AU74: 3.372235912e-15
B75: 67 | C75: 145 | G75: 0.096 | H75: 0.5 | I75: 1 | J75: 1 | K75: 1 | L75: 1 | P75: -1.766006341e-38 | Q75: 1.766006341e-38 | R75: -5.930820612e-14 | S75: 5.930820612e-14 | T75: 1 | U75: 1 | Y75: -4.874478948e-35 | Z75: 0 | AA75: -6.476461298e-34 | AB75: 0 | AC75: 3.655859211e-34 | AD75: 6.476461298e-34 | AE75: 0 | AF75: -4.092519311e-10 | AG75: -2.175005223e-09 | AH75: 0 | AI75: 8.185038622e-10 | AJ75: 2.175005223e-09 | AK75: 0 | AL75: 0 | AM75: 4.092519311e-10 | AQ75: -2.193515527e-39 | AR75: 1.462343684e-39 | AS75: -5.729527035e-15 | AT75: 4.092519311e-15 | AU75: -1.637007724e-15
B76: 68 | C76: 146 | G76: 0.096 | H76: 0.5 | I76: 1 | J76: 1 | K76: 1 | L76: 1 | P76: =P75+(0)-((P75*G75)+(P75*I75)) -> 1.695366088e-39 | Q76: =P75*G75 -> -1.695366088e-39 | R76: =R75+(Q75-(Q75*J75))-((R75*H75)+(R75*K75)) -> 2.965410306e-14 | S76: =S75+(R75*H75)-(S75*L75) -> -2.965410306e-14 | T76: =T75+(P75*I75)+(Q75*J75)+(R75*K75)+(S75*L75) -> 1 | U76: =SUM(P76:T76) -> 1 | Y76: 4.54320368e-36 | Z76: 0 | AA76: 6.036313443e-35 | AB76: 0 | AC76: -3.40740276e-35 | AD76: -6.036313443e-35 | AE76: 0 | AF76: 1.98665986e-10 | AG76: 1.055827778e-09 | AH76: 0 | AI76: -3.973319719e-10 | AJ76: -1.055827778e-09 | AK76: 0 | AL76: 0 | AM76: -1.98665986e-10 | AQ76: 2.044441656e-40 | AR76: -1.362961104e-40 | AS76: 2.781323804e-15 | AT76: -1.98665986e-15 | AU76: 7.946639439e-16
B77: 69 | C77: 147 | G77: 0.096 | H77: 0.5 | I77: 1 | J77: 1 | K77: 1 | L77: 1 | P77: -1.627551444e-40 | Q77: 1.627551444e-40 | R77: -1.482705153e-14 | S77: 1.482705153e-14 | T77: 1 | U77: 1 | Y77: -4.234442265e-37 | Z77: 0 | AA77: -5.626078549e-36 | AB77: 0 | AC77: 3.175831698e-36 | AD77: 5.626078549e-36 | AE77: 0 | AF77: -9.643979902e-11 | AG77: -5.125377564e-10 | AH77: 0 | AI77: 1.92879598e-10 | AJ77: 5.125377564e-10 | AK77: 0 | AL77: 0 | AM77: 9.643979902e-11 | AQ77: -1.905499019e-41 | AR77: 1.270332679e-41 | AS77: -1.350157186e-15 | AT77: 9.643979902e-16 | AU77: -3.857591961e-16
B78: 70 | C78: 148 | G78: 0.096 | H78: 0.5 | I78: 1 | J78: 1 | K78: 1 | L78: 1 | P78: 1.562449386e-41 | Q78: -1.562449386e-41 | R78: 7.413525765e-15 | S78: -7.413525765e-15 | T78: 1 | U78: 1 | Y78: 3.946664635e-38 | Z78: 0 | AA78: 5.243723696e-37 | AB78: 0 | AC78: -2.959998476e-37 | AD78: -5.243723696e-37 | AE78: 0 | AF78: 4.681543642e-11 | AG78: 2.488047361e-10 | AH78: 0 | AI78: -9.363087283e-11 | AJ78: -2.488047361e-10 | AK78: 0 | AL78: 0 | AM78: -4.681543642e-11 | AQ78: 1.775999086e-42 | AR78: -1.18399939e-42 | AS78: 6.554161098e-16 | AT78: -4.681543642e-16 | AU78: 1.872617457e-16

Sheet control
C4: model_type | D4: 1
C5: deterministic
C6: probabilistic
C8: age_group | D8: 4
A9: 1 | B9: ='input data'!H5 -> 45 | C9: 40y-49y | D9: =VLOOKUP(D8,A9:B12,2) -> 78 | E9: start_age
A10: 2 | B10: ='input data'!H6 -> 55 | C10: 50y-59y
A11: 3 | B11: ='input data'!H7 -> 65 | C11: 60y-69y
A12: 4 | B12: ='input data'!H8 -> 78 | C12: ≥70y
C14: time_horizon | D14: 4
A15: 1 | B15: 1 | C15: 1y | D15: =VLOOKUP(D14,A15:B18,2) -> 70 | E15: time_horizon
A16: 2 | B16: 5 | C16: 5y
A17: 3 | B17: 10 | C17: 10y
A18: 4 | B18: 70 | C18: lifetime
C20: perspective | D20: 2
C21: health care payer
C22: societal

Sheet recipe
B2: RECIPE
B4: Preparations
B5: input data
B6: tables
B7: drop-down menus
B8: productivity losses
B9: consumption
B11: Markov model
B12: arm 1 - no treatment
B13: cycle and current age
B14: time-dependent risks
B15: health state distribution
B16: costs
B17: QALYs
B18: discounting
B19: total costs and QALYs
B20: drop-down menu for time horizon
B21: arm 2 - golden drug
B22: copy from arm 1
B23: drug cost and treatment effect
B24: Results table
B26: PSA
B27: preparations
B28: random sampling from distributions
B29: drop-down: deterministic/probabilistic
B30: model value
B31: Monte Carlo simulation
B32: 1000 iterations of random sampling
B33: ICER scatter plot
B34: CEAC
B36: Automatic table of results

Sheet result table
J4: probability of cost-effectiveness
G5: incremental | I5: ICER | J5: at willingness to pay (SEK/QALY)
C6: base case | E6: Costs (SEK) | F6: QALYs | G6: Costs (SEK) | H6: QALYs | I6: (SEK/QALY) | J6: 250000 | K6: 500000 | L6: 750000
C7: 40y-49y | D7: golden drug | E7: 4564669.581 | F7: 16.37672157 | G7: 212342.5703 | H7: 0.5567051793 | I7: 381427.3303 | J7: 0.173 | K7: 0.715 | L7: 0.897
D8: no treatment | E8: 4352327.01 | F8: 15.82001639
C9: 50y-59y | D9: golden drug | E9: 3549200.532 | F9: 13.70956841 | G9: 266089.0894 | H9: 0.5656560144 | I9: 470407.9558 | J9: 0.005 | K9: 0.559 | L9: 0.88
D10: no treatment | E10: 3283111.443 | F10: 13.14391239
C11: 60y-69y | D11: golden drug | E11: 2598382.118 | F11: 11.30211898 | G11: 311441.4558 | H11: 0.5387033786 | I11: 578131.6179 | J11: 0 | K11: 0.284 | L11: 0.79
D12: no treatment | E12: 2286940.662 | F12: 10.7634156
C13: ≥70y | D13: golden drug | E13: 2483268.496 | F13: 8.745357606 | G13: 269676.5315 | H13: 0.4815972077 | I13: 559962.822 | J13: 0 | K13: 0.276 | L13: 0.817
D14: no treatment | E14: 2213591.964 | F14: 8.263760398
C15: Discounting QALYs 0% | E15: Costs (SEK) | F15: QALYs | G15: Costs (SEK) | H15: QALYs | I15: (SEK/QALY) | J15: 250000 | K15: 500000 | L15: 750000
C16: 40y-49y | D16: golden drug | E16: 4564669.581 | F16: 25.37310673 | G16: 212342.5703 | H16: 1.380928239 | I16: 153767.9977 | J16: 0.851 | K16: 0.978 | L16: 0.994
D17: no treatment | E17: 4352327.01 | F17: 23.99217849
C18: 50y-59y | D18: golden drug | E18: 3549200.532 | F18: 19.66192146 | G18: 266089.0894 | H18: 1.191494127 | I18: 223323.8784 | J18: 0.645 | K18: 0.972 | L18: 0.995
D19: no treatment | E19: 3283111.443 | F19: 18.47042733
C20: 60y-69y | D20: golden drug | E20: 2598382.118 | F20: 15.16494936 | G20: 311441.4558 | H20: 0.9891545034 | I20: 314856.228 | J20: 0.149 | K20: 0.917 | L20: 0.989
D21: no treatment | E21: 2286940.662 | F21: 14.17579486
C22: ≥70y | D22: golden drug | E22: 2483268.496 | F22: 10.88534546 | G22: 269676.5315 | H22: 0.7552111679 | I22: 357087.5842 | J22: 0.031 | K22: 0.882 | L22: 0.981
D23: no treatment | E23: 2213591.964 | F23: 10.13013429
C24: Health care payer perspective | E24: Costs (SEK) | F24: QALYs | G24: Costs (SEK) | H24: QALYs | I24: (SEK/QALY) | J24: 250000 | K24: 500000 | L24: 750000
C25: 40y-49y | D25: golden drug | E25: 510108.3488 | F25: 16.37672157 | G25: 294155.918 | H25: 0.5567051793 | I25: 528387.2487 | J25: 0.007 | K25: 0.461 | L25: 0.825
D26: no treatment | E26: 215952.4308 | F26: 15.82001639
C27: 50y-59y | D27: golden drug | E27: 447905.2341 | F27: 13.70956841 | G27: 242298.4136 | H27: 0.5656560144 | I27: 428349.3987 | J27: 0.044 | K27: 0.667 | L27: 0.899
D28: no treatment | E28: 205606.8204 | F28: 13.14391239
C29: 60y-69y | D29: golden drug | E29: 385675.1443 | F29: 11.30211898 | G29: 198856.606 | H29: 0.5387033786 | I29: 369139.3333 | J29: 0.093 | K29: 0.795 | L29: 0.96
D30: no treatment | E30: 186818.5383 | F30: 10.7634156
C31: ≥70y | D31: golden drug | E31: 323957.5375 | F31: 8.745357606 | G31: 149195.1856 | H31: 0.4815972077 | I31: 309792.464 | J31: 0.251 | K31: 0.875 | L31: 0.973
D32: no treatment | E32: 174762.3518 | F32: 8.263760398

Sheet simulation
A1: 1 | B1: 2 | C1: 3 | D1: 4 | E1: 5 | F1: 6 | G1: 7 | H1: 8 | I1: 9 | J1: 10 | K1: 11 | L1: 12 | M1: 13 | N1: 14 | O1: 15
L3: wtp | M3: 1000000
C5: golden drug | E5: no treatment | G5: incremental | J5: NMB | L5: prob_ce
B6: iteration | C6: cost | D6: QALYs | E6: cost | F6: QALYs | G6: cost | H6: QALYs | J6: golden drug | K6: no treat | L6: =AVERAGE(L8:L1007) -> 0.991 | N6: wtp | O6: prob_ce
B8: 1 | C8: 310333.0362 | D8: 8.874385296 | E8: 170917.456 | F8: 8.261441816 | G8: 139415.5802 | H8: 0.6129434794 | J8: =D8*wtp-C8 -> 8564052.259 | K8: =F8*wtp-E8 -> 8090524.36 | L8: =IF(J8>K8,1,0) -> 1 | N8: 0 | O8: 0
B9: 2 | C9: 313162.6803 | D9: 9.22625559 | E9: 151548.2139 | F9: 8.679490004 | G9: 161614.4664 | H9: 0.5467655859 | J9: 8913092.909 | K9: 8527941.79 | L9: =IF(J9>K9,1,0) -> 1 | N9: 5000 | O9: 0
B10: 3 | C10: 353513.2732 | D10: 7.543297498 | E10: 206915.2528 | F10: 7.122170109 | G10: 146598.0204 | H10: 0.4211273889 | J10: 7189784.225 | K10: 6915254.856 | L10: 1 | N10: 10000 | O10: 0
B11: 4 | C11: 327356.9179 | D11: 9.438183824 | E11: 184682.6557 | F11: 9.003994765 | G11: 142674.2622 | H11: 0.4341890584 | J11: 9110826.906 | K11: 8819312.11 | L11: 1 | N11: 15000 | O11: 0
B12: 5 | C12: 318842.8422 | D12: 9.163192833 | E12: 172317.3763 | F12: 8.691660569 | G12: 146525.466 | H12: 0.4715322643 | J12: 8844349.991 | K12: 8519343.193 | L12: 1 | N12: 20000 | O12: 0
B13: 6 | C13: 328786.5963 | D13: 9.629474304 | E13: 170286.1059 | F13: 8.801848586 | G13: 158500.4904 | H13: 0.8276257185 | J13: 9300687.708 | K13: 8631562.48 | L13: 1 | N13: 25000 | O13: 0
B14: 7 | C14: 313155.0685 | D14: 7.009744535 | E14: 159497.6766 | F14: 6.797686872 | G14: 153657.3919 | H14: 0.2120576625 | J14: 6696589.466 | K14: 6638189.196 | L14: 1 | N14: 30000 | O14: 0
B15: 8 | C15: 286819.5996 | D15: 6.972863326 | E15: 152845.9423 | F15: 6.503669735 | G15: 133973.6573 | H15: 0.4691935908 | J15: 6686043.726 | K15: 6350823.793 | L15: 1 | N15: 35000 | O15: 0
B16: 9 | C16: 315218.7422 | D16: 7.625430699 | E16: 185531.2354 | F16: 7.323213203 | G16: 129687.5068 | H16: 0.3022174959 | J16: 7310211.957 | K16: 7137681.967 | L16: 1 | N16: 40000 | O16: 0
B17: 10 | C17: 322381.6845 | D17: 7.033227088 | E17: 182393.3324 | F17: 6.609136597 | G17: 139988.3522 | H17: 0.4240904902 | J17: 6710845.403 | K17: 6426743.265 | L17: 1 | N17: 45000 | O17: 0
B18: 11 | C18: 332090.1092 | D18: 9.561102509 | E18: 179104.0398 | F18: 9.011301757 | G18: 152986.0694 | H18: 0.5498007517 | J18: 9229012.399 | K18: 8832197.717 | L18: 1 | N18: 50000 | O18: 0
B19: 12 | C19: 319488.8775 | D19: 9.110746657 | E19: 171893.1362 | F19: 8.658329477 | G19: 147595.7413 | H19: 0.4524171794 | J19: 8791257.779 | K19: 8486436.341 | L19: 1 | N19: 55000 | O19: 0
B20: 13 | C20: 304487.0987 | D20: 7.578410196 | E20: 161131.7933 | F20: 7.224156545 | G20: 143355.3054 | H20: 0.3542536519 | J20: 7273923.098 | K20: 7063024.751 | L20: 1 | N20: 60000 | O20: 0
B21: 14 | C21: 357120.0245 | D21: 9.012703577 | E21: 208903.9688 | F21: 8.508171223 | G21: 148216.0557 | H21: 0.5045323543 | J21: 8655583.553 | K21: 8299267.254 | L21: 1 | N21: 65000 | O21: 0
B22: 15 | C22: 324608.8595 | D22: 9.731539172 | E22: 176743.4345 | F22: 9.103304902 | G22: 147865.4251 | H22: 0.6282342702 | J22: 9406930.313 | K22: 8926561.468 | L22: 1 | N22: 70000 | O22: 0
B23: 16 | C23: 287616.2094 | D23: 9.488471193 | E23: 152591.485 | F23: 8.921490546 | G23: 135024.7245 | H23: 0.5669806462 | J23: 9200854.983 | K23: 8768899.062 | L23: 1 | N23: 75000 | O23: 0
B24: 17 | C24: 313870.8582 | D24: 8.741799206 | E24: 168903.2021 | F24: 8.296841895 | G24: 144967.6561 | H24: 0.4449573108 | J24: 8427928.347 | K24: 8127938.693 | L24: 1 | N24: 80000 | O24: 0
B25: 18 | C25: 302569.3218 | D25: 8.752884683 | E25: 201337.5158 | F25: 8.363557794 | G25: 101231.806 | H25: 0.3893268884 | J25: 8450315.361 | K25: 8162220.278 | L25: 1 | N25: 85000 | O25: 0
B26: 19 | C26: 387398.6671 | D26: 8.529254499 | E26: 221302.1393 | F26: 8.132156031 | G26: 166096.5277 | H26: 0.3970984676 | J26: 8141855.832 | K26: 7910853.892 | L26: 1 | N26: 90000 | O26: 0
B27: 20 | C27: 322268.1711 | D27: 9.041346537 | E27: 181195.8508 | F27: 8.66526684 | G27: 141072.3203 | H27: 0.3760796971 | J27: 8719078.366 | K27: 8484070.989 | L27: 1 | N27: 95000 | O27: 0
B28: 21 | C28: 328073.2809 | D28: 9.136504191 | E28: 160480.8404 | F28: 8.503050136 | G28: 167592.4405 | H28: 0.6334540555 | J28: 8808430.911 | K28: 8342569.296 | L28: 1 | N28: 100000 | O28: 0
B29: 22 | C29: 329244.9364 | D29: 8.450226128 | E29: 191423.8563 | F29: 8.054378597 | G29: 137821.0801 | H29: 0.3958475315 | J29: 8120981.192 | K29: 7862954.74 | L29: 1 | N29: 105000 | O29: 0
B30: 23 | C30: 297758.01 | D30: 9.314649782 | E30: 163444.5944 | F30: 8.845310268 | G30: 134313.4156 | H30: 0.4693395132 | J30: 9016891.772 | K30: 8681865.674 | L30: 1 | N30: 110000 | O30: 0
B31: 24 | C31: 369769.4912 | D31: 8.764077728 | E31: 206102.826 | F31: 8.186876227 | G31: 163666.6652 | H31: 0.5772015005 | J31: 8394308.237 | K31: 7980773.401 | L31: 1 | N31: 115000 | O31: 0
B32: 25 | C32: 334192.9118 | D32: 9.101436238 | E32: 175172.1991 | F32: 8.40618926 | G32: 159020.7127 | H32: 0.6952469779 | J32: 8767243.326 | K32: 8231017.061 | L32: 1 | N32: 120000 | O32: 0
B33: 26 | C33: 323195.1017 | D33: 9.088541556 | E33: 169218.3475 | F33: 8.397380224 | G33: 153976.7541 | H33: 0.6911613318 | J33: 8765346.455 | K33: 8228161.877 | L33: 1 | N33: 125000 | O33: 0.001
B34: 27 | C34: 308462.2602 | D34: 9.476281163 | E34: 168462.0672 | F34: 9.089424446 | G34: 140000.193 | H34: 0.3868567171 | J34: 9167818.903 | K34: 8920962.379 | L34: 1 | N34: 130000 | O34: 0.001
B35: 28 | C35: 366041.8493 | D35: 8.114936147 | E35: 193014.1392 | F35: 7.445639272 | G35: 173027.7101 | H35: 0.6692968752 | J35: 7748894.298 | K35: 7252625.133 | L35: 1 | N35: 135000 | O35: 0.001
B36: 29 | C36: 337242.95 | D36: 9.361373819 | E36: 196328.8573 | F36: 8.750755757 | G36: 140914.0926 | H36: 0.6106180616 | J36: 9024130.869 | K36: 8554426.9 | L36: 1 | N36: 140000 | O36: 0.003
B37: 30 | C37: 302304.8655 | D37: 9.155438422 | E37: 153565.2728 | F37: 8.673296793 | G37: 148739.5927 | H37: 0.4821416292 | J37: 8853133.557 | K37: 8519731.52 | L37: 1 | N37: 145000 | O37: 0.003
B38: 31 | C38: 319185.1127 | D38: 9.294532447 | E38: 157388.2939 | F38: 8.749529494 | G38: 161796.8188 | H38: 0.5450029538 | J38: 8975347.335 | K38: 8592141.2 | L38: 1 | N38: 150000 | O38: 0.006
B39: 32 | C39: 334480.3765 | D39: 8.059372533 | E39: 191059.4375 | F39: 7.697149074 | G39: 143420.939 | H39: 0.3622234588 | J39: 7724892.156 | K39: 7506089.636 | L39: 1 | N39: 155000 | O39: 0.008
B40: 33 | C40: 286317.7792 | D40: 9.807943684 | E40: 156113.6648 | F40: 9.240619532 | G40: 130204.1144 | H40: 0.5673241513 | J40: 9521625.905 | K40: 9084505.868 | L40: 1 | N40: 160000 | O40: 0.009
B41: 34 | C41: 293830.3767 | D41: 9.04437917 | E41: 147775.2063 | F41: 8.729006893 | G41: 146055.1704 | H41: 0.3153722769 | J41: 8750548.794 | K41: 8581231.687 | L41: 1 | N41: 165000 | O41: 0.015
B42: 35 | C42: 314873.5713 | D42: 8.138744887 | E42: 188370.6872 | F42: 7.629946651 | G42: 126502.8841 | H42: 0.5087982359 | J42: 7823871.315 | K42: 7441575.964 | L42: 1 | N42: 170000 | O42: 0.02
B43: 36 | C43: 315270.3364 | D43: 8.357641365 | E43: 187002.8432 | F43: 7.697463469 | G43: 128267.4932 | H43: 0.6601778967 | J43: 8042371.029 | K43: 7510460.626 | L43: 1 | N43: 175000 | O43: 0.023
B44: 37 | C44: 299952.8471 | D44: 9.427599433 | E44: 148595.941 | F44: 8.919449418 | G44: 151356.9061 | H44: 0.5081500142 | J44: 9127646.585 | K44: 8770853.477 | L44: 1 | N44: 180000 | O44: 0.029
B45: 38 | C45: 304346.6789 | D45: 9.123317226 | E45: 144337.4022 | F45: 8.58102605 | G45: 160009.2767 | H45: 0.5422911766 | J45: 8818970.548 | K45: 8436688.648 | L45: 1 | N45: 185000 | O45: 0.038
B46: 39 | C46: 314934.2249 | D46: 7.792316037 | E46: 146407.1606 | F46: 7.509747309 | G46: 168527.0643 | H46: 0.2825687277 | J46: 7477381.812 | K46: 7363340.149 | L46: 1 | N46: 190000 | O46: 0.049
B47: 40 | C47: 306384.7283 | D47: 8.120396527 | E47: 186356.9728 | F47: 7.549775874 | G47: 120027.7555 | H47: 0.5706206523 | J47: 7814011.798 | K47: 7363418.902 | L47: 1 | N47: 195000 | O47: 0.061
B48: 41 | C48: 335682.4944 | D48: 8.952357675 | E48: 182682.2452 | F48: 8.389548919 | G48: 153000.2491 | H48: 0.5628087561 | J48: 8616675.18 | K48: 8206866.673 | L48: 1 | N48: 200000 | O48: 0.074
B49: 42 | C49: 348779.2448 | D49: 9.45067047 | E49: 214327.277 | F49: 9.085906933 | G49: 134451.9678 | H49: 0.3647635369 | J49: 9101891.225 | K49: 8871579.656 | L49: 1 | N49: 205000 | O49: 0.086
B50: 43 | C50: 339802.354 | D50: 8.885455149 | E50: 159783.0653 | F50: 8.331058197 | G50: 180019.2886 | H50: 0.5543969517 | J50: 8545652.795 | K50: 8171275.132 | L50: 1 | N50: 210000 | O50: 0.105
B51: 44 | C51: 345948.1577 | D51: 6.746745895 | E51: 224363.326 | F51: 6.429886702 | G51: 121584.8317 | H51: 0.316859193 | J51: 6400797.737 | K51: 6205523.376 | L51: 1 | N51: 215000 | O51: 0.121
B52: 45 | C52: 329730.0212 | D52: 8.876115385 | E52: 157465.661 | F52: 8.474261277 | G52: 172264.3601 | H52: 0.4018541076 | J52: 8546385.364 | K52: 8316795.616 | L52: 1 | N52: 220000 | O52: 0.138
B53: 46 | C53: 297844.9237 | D53: 8.514767778 | E53: 148726.4073 | F53: 8.134850712 | G53: 149118.5164 | H53: 0.379917066 | J53: 8216922.855 | K53: 7986124.305 | L53: 1 | N53: 225000 | O53: 0.161
B54: 47 | C54: 316294.8603 | D54: 9.097417354 | E54: 181902.8067 | F54: 8.570592429 | G54: 134392.0536 | H54: 0.5268249251 | J54: 8781122.494 | K54: 8388689.622 | L54: 1 | N54: 230000 | O54: 0.179
B55: 48 | C55: 312540.9476 | D55: 9.676782434 | E55: 162641.0228 | F55: 9.134997393 | G55: 149899.9248 | H55: 0.5417850409 | J55: 9364241.487 | K55: 8972356.371 | L55: 1 | N55: 235000 | O55: 0.196
B56: 49 | C56: 291234.1212 | D56: 9.036282905 | E56: 141036.4741 | F56: 8.249799635 | G56: 150197.6472 | H56: 0.7864832697 | J56: 8745048.783 | K56: 8108763.161 | L56: 1 | N56: 240000 | O56: 0.205
B57: 50 | C57: 319716.0427 | D57: 9.484306295 | E57: 194914.8662 | F57: 9.036941082 | G57: 124801.1765 | H57: 0.4473652134 | J57: 9164590.252 | K57: 8842026.215 | L57: 1 | N57: 245000 | O57: 0.231
B58: 51 | C58: 293665.6463 | D58: 6.908530725 | E58: 143646.5365 | F58: 6.587560637 | G58: 150019.1098 | H58: 0.3209700877 | J58: 6614865.078 | K58: 6443914.1 | L58: 1 | N58: 250000 | O58: 0.251
B59: 52 | C59: 330808.5011 | D59: 9.319742792 | E59: 208101.2884 | F59: 8.695842707 | G59: 122707.2128 | H59: 0.6239000843 | J59: 8988934.291 | K59: 8487741.419 | L59: 1 | N59: 255000 | O59: 0.263
B60: 53 | C60: 361611.5221 | D60: 9.545480143 | E60: 189931.3846 | F60: 9.232915537 | G60: 171680.1375 | H60: 0.3125646064 | J60: 9183868.621 | K60: 9042984.152 | L60: 1 | N60: 260000 | O60: 0.283
B61: 54 | C61: 343968.7951 | D61: 9.611517479 | E61: 178234.4129 | F61: 9.013779916 | G61: 165734.3822 | H61: 0.5977375625 | J61: 9267548.684 | K61: 8835545.503 | L61: 1 | N61: 265000 | O61: 0.306
B62: 55 | C62: 303026.9806 | D62: 9.560926844 | E62: 156550.3374 | F62: 9.11643443 | G62: 146476.6433 | H62: 0.4444924141 | J62: 9257899.863 | K62: 8959884.092 | L62: 1 | N62: 270000 | O62: 0.321
B63: 56 | C63: 360854.6916 | D63: 6.920138109 | E63: 200941.4618 | F63: 6.705225593 | G63: 159913.2298 | H63: 0.2149125167 | J63: 6559283.418 | K63: 6504284.131 | L63: 1 | N63: 275000 | O63: 0.334
B64: 57 | C64: 338212.7056 | D64: 9.107314451 | E64: 173961.7838 | F64: 8.471925054 | G64: 164250.9218 | H64: 0.6353893972 | J64: 8769101.745 | K64: 8297963.27 | L64: 1 | N64: 280000 | O64: 0.357
B65: 58 | C65: 328686.5145 | D65: 8.692118935 | E65: 152325.364 | F65: 8.174338217 | G65: 176361.1505 | H65: 0.5177807173 | J65: 8363432.42 | K65: 8022012.853 | L65: 1 | N65: 285000 | O65: 0.375
B66: 59 | C66: 321328.7188 | D66: 8.652035043 | E66: 163100.4618 | F66: 8.2221636 | G66: 158228.257 | H66: 0.4298714435 | J66: 8330706.325 | K66: 8059063.138 | L66: 1 | N66: 290000 | O66: 0.39
B67: 60 | C67: 364702.2793 | D67: 9.506618323 | E67: 196786.6957 | F67: 9.057724798 | G67: 167915.5836 | H67: 0.4488935251 | J67: 9141916.044 | K67: 8860938.103 | L67: 1 | N67: 295000 | O67: 0.412
B68: 61 | C68: 341279.4316 | D68: 9.162683493 | E68: 207838.1766 | F68: 8.655489325 | G68: 133441.255 | H68: 0.5071941682 | J68: 8821404.061 | K68: 8447651.148 | L68: 1 | N68: 300000 | O68: 0.439
B69: 62 | C69: 322820.0342 | D69: 9.244504908 | E69: 161382.0426 | F69: 8.865954836 | G69: 161437.9916 | H69: 0.3785500712 | J69: 8921684.873 | K69: 8704572.794 | L69: 1 | N69: 305000 | O69: 0.458
B70: 63 | C70: 291538.5696 | D70: 8.977233469 | E70: 129202.0574 | F70: 8.73887201 | G70: 162336.5122 | H70: 0.2383614587 | J70: 8685694.899 | K70: 8609669.953 | L70: 1 | N70: 310000 | O70: 0.478
B71: 64 | C71: 341268.2605 | D71: 9.301030772 | E71: 194024.5779 | F71: 8.898747186 | G71: 147243.6826 | H71: 0.4022835851 | J71: 8959762.511 | K71: 8704722.609 | L71: 1 | N71: 315000 | O71: 0.495
B72: 65 | C72: 306670.2831 | D72: 8.618411475 | E72: 186347.3459 | F72: 8.074736446 | G72: 120322.9372 | H72: 0.5436750291 | J72: =D72*wtp-C72 -> 8311741.192 | K72: =F72*wtp-E72 -> 7888389.1 | L72: 1 | N72: 320000 | O72: 0.519
B73: 66 | C73: 363781.0059 | D73: 9.093549228 | E73: 211345.2711 | F73: 8.609564176 | G73: 152435.7347 | H73: 0.4839850513 | J73: 8729768.222 | K73: 8398218.905 | L73: =IF(J73>K73,1,0) -> 1 | N73: 325000 | O73: 0.538
B74: 67 | C74: 305429.1079 | D74: 9.495995493 | E74: 190417.1615 | F74: 8.878185579 | G74: 115011.9464 | H74: 0.6178099137 | J74: 9190566.385 | K74: 8687768.418 | L74: 1 | N74: 330000 | O74: 0.56
B75: 68 | C75: 373450.9122 | D75: 7.734162876 | E75: 216023.544 | F75: 7.415854492 | G75: 157427.3682 | H75: 0.318308384 | J75: 7360711.964 | K75: 7199830.948 | L75: 1 | N75: 335000 | O75: 0.575
B76: 69 | C76: 387879.4862 | D76: 9.755769249 | E76: 222394.2722 | F76: 9.310043367 | G76: 165485.2141 | H76: 0.4457258819 | J76: 9367889.763 | K76: 9087649.095 | L76: 1 | N76: 340000 | O76: 0.597
B77: 70 | C77: 316625.7861 | D77: 9.345302674 | E77: 150046.4341 | F77: 8.566150488 | G77: 166579.3521 | H77: 0.7791521857 | J77: 9028676.887 | K77: 8416104.054 | L77: 1 | N77: 345000 | O77: 0.617
B78: 71 | C78: 337212.8644 | D78: 5.418631731 | E78: 181068.5268 | F78: 5.122516407 | G78: 156144.3375 | H78: 0.2961153237 | J78: 5081418.867 | K78: 4941447.88 | L78: 1 | N78: 350000 | O78: 0.637
B79: 72 | C79: 316960.234 | D79: 9.632496161 | E79: 157350.6654 | F79: 8.941743085 | G79: 159609.5687 | H79: 0.6907530759 | J79: 9315535.927 | K79: 8784392.42 | L79: 1 | N79: 355000 | O79: 0.654
B80: 73 | C80: 322190.4413 | D80: 9.145672469 | E80: 155698.5934 | F80: 8.722026002 | G80: 166491.8479 | H80: 0.4236464676 | J80: 8823482.028 | K80: 8566327.408 | L80: 1 | N80: 360000 | O80: 0.668
B81: 74 | C81: 312228.5332 | D81: 8.273095792 | E81: 177412.5467 | F81: 7.90204137 | G81: 134815.9865 | H81: 0.3710544219 | J81: 7960867.258 | K81: 7724628.823 | L81: 1 | N81: 365000 | O81: 0.678
B82: 75 | C82: 308941.9271 | D82: 8.469475311 | E82: 172445.0745 | F82: 8.038609847 | G82: 136496.8526 | H82: 0.430865464 | J82: 8160533.384 | K82: 7866164.773 | L82: 1 | N82: 370000 | O82: 0.697
B83: 76 | C83: 277452.1701 | D83: 7.784895888 | E83: 153674.7333 | F83: 7.344469519 | G83: 123777.4369 | H83: 0.4404263688 | J83: 7507443.718 | K83: 7190794.786 | L83: 1 | N83: 375000 | O83: 0.706
B84: 77 | C84: 336664.5419 | D84: 8.774137986 | E84: 199950.9807 | F84: 8.122774103 | G84: 136713.5612 | H84: 0.6513638834 | J84: 8437473.444 | K84: 7922823.122 | L84: 1 | N84: 380000 | O84: 0.717
B85: 78 | C85: 302261.5249 | D85: 6.841318449 | E85: 171660.2686 | F85: 6.52620949 | G85: 130601.2563 | H85: 0.3151089589 | J85: 6539056.924 | K85: 6354549.221 | L85: 1 | N85: 385000 | O85: 0.725
B86: 79 | C86: 379908.1441 | D86: 9.057260609 | E86: 199128.6927 | F86: 8.567382916 | G86: 180779.4514 | H86: 0.4898776928 | J86: 8677352.465 | K86: 8368254.223 | L86: 1 | N86: 390000 | O86: 0.734
B87: 80 | C87: 386356.4105 | D87: 6.647544009 | E87: 217302.7063 | F87: 6.40989571 | G87: 169053.7042 | H87: 0.2376482996 | J87: 6261187.599 | K87: 6192593.003 | L87: 1 | N87: 395000 | O87: 0.743
B88: 81 | C88: 270725.9126 | D88: 7.767531039 | E88: 141567.9485 | F88: 7.33470558 | G88: 129157.9642 | H88: 0.4328254586 | J88: 7496805.126 | K88: 7193137.632 | L88: 1 | N88: 400000 | O88: 0.752
B89: 82 | C89: 319246.1925 | D89: 9.839177471 | E89: 167726.8002 | F89: 9.338778301 | G89: 151519.3924 | H89: 0.5003991705 | J89: 9519931.279 | K89: 9171051.5 | L89: 1 | N89: 405000 | O89: 0.763
B90: 83 | C90: 313830.6607 | D90: 8.105853626 | E90: 164457.8023 | F90: 7.703316626 | G90: 149372.8584 | H90: 0.402537 | J90: 7792022.965 | K90: 7538858.823 | L90: 1 | N90: 410000 | O90: 0.772
B91: 84 | C91: 339488.9768 | D91: 9.546640148 | E91: 200043.9059 | F91: 8.751402539 | G91: 139445.0709 | H91: 0.7952376089 | J91: 9207151.171 | K91: 8551358.633 | L91: 1 | N91: 415000 | O91: 0.782
B92: 85 | C92: 326037.649 | D92: 8.679408131 | E92: 163233.4151 | F92: 8.248452829 | G92: 162804.2339 | H92: 0.4309553013 | J92: 8353370.481 | K92: 8085219.414 | L92: 1 | N92: 420000 | O92: 0.792
B93: 86 | C93: 315497.1084 | D93: 8.920876928 | E93: 175646.9772 | F93: 8.345450157 | G93: 139850.1312 | H93: 0.5754267713 | J93: 8605379.82 | K93: 8169803.18 | L93: 1 | N93: 425000 | O93: 0.801
B94: 87 | C94: 324307.0734 | D94: 9.740821403 | E94: 187740.9045 | F94: 9.082841785 | G94: 136566.1689 | H94: 0.6579796181 | J94: 9416514.33 | K94: 8895100.881 | L94: 1 | N94: 430000 | O94: 0.811
B95: 88 | C95: 345811.7103 | D95: 9.174069396 | E95: 166577.5813 | F95: 8.713216956 | G95: 179234.129 | H95: 0.4608524396 | J95: 8828257.685 | K95: 8546639.375 | L95: 1 | N95: 435000 | O95: 0.814
B96: 89 | C96: 347085.2646 | D96: 7.979173009 | E96: 151726.0484 | F96: 7.552809997 | G96: 195359.2161 | H96: 0.426363012 | J96: 7632087.744 | K96: 7401083.948 | L96: 1 | N96: 440000 | O96: 0.824
B97: 90 | C97: 347423.3978 | D97: 8.423638774 | E97: 193906.2033 | F97: 7.973149451 | G97: 153517.1945 | H97: 0.4504893227 | J97: 8076215.376 | K97: 7779243.248 | L97: 1 | N97: 445000 | O97: 0.832
B98: 91 | C98: 321142.0765 | D98: 9.288152138 | E98: 180258.5535 | F98: 8.636763596 | G98: 140883.5231 | H98: 0.6513885416 | J98: 8967010.062 | K98: 8456505.043 | L98: 1 | N98: 450000 | O98: 0.837
B99: 92 | C99: 297321.9938 | D99: 9.595001581 | E99: 154676.5219 | F99: 8.791762741 | G99: 142645.4719 | H99: 0.8032388391 | J99: 9297679.587 | K99: 8637086.22 | L99: 1 | N99: 455000 | O99: 0.842
B100: 93 | C100: 364827.4009 | D100: 8.499218965 | E100: 191569.6723 | F100: 8.079980989 | G100: 173257.7286 | H100: 0.4192379759 | J100: 8134391.564 | K100: 7888411.316 | L100: 1 | N100: 460000 | O100: 0.848
B101: 94 | C101: 336473.4914 | D101: 9.305032202 | E101: 182045.2264 | F101: 8.7334059 | G101: 154428.265 | H101: 0.5716263018 | J101: 8968558.711 | K101: 8551360.674 | L101: 1 | N101: 465000 | O101: 0.853
B102: 95 | C102: 300979.873 | D102: 9.185359891 | E102: 165972.0745 | F102: 8.940283942 | G102: 135007.7985 | H102: 0.2450759493 | J102: 8884380.018 | K102: 8774311.867 | L102: 1 | N102: 470000 | O102: 0.855
B103: 96 | C103: 339353.4979 | D103: 6.738838633 | E103: 188033.6075 | F103: 6.435827014 | G103: 151319.8905 | H103: 0.3030116195 | J103: 6399485.135 | K103: 6247793.406 | L103: 1 | N103: 475000 | O103: 0.858
B104: 97 | C104: 291942.4961 | D104: 5.808922431 | E104: 164332.2833 | F104: 5.47920108 | G104: 127610.2127 | H104: 0.3297213508 | J104: 5516979.935 | K104: 5314868.797 | L104: 1 | N104: 480000 | O104: 0.86
B105: 98 | C105: 356448.0127 | D105: 8.508400597 | E105: 225277.1204 | F105: 8.111062873 | G105: 131170.8923 | H105: 0.3973377242 | J105: 8151952.585 | K105: 7885785.753 | L105: 1 | N105: 485000 | O105: 0.861
B106: 99 | C106: 288920.7533 | D106: 9.600358574 | E106: 126653.2833 | F106: 9.214768716 | G106: 162267.47 | H106: 0.385589858 | J106: 9311437.821 | K106: 9088115.433 | L106: 1 | N106: 490000 | O106: 0.866
B107: 100 | C107: 328529.7228 | D107: 9.726354843 | E107: 169006.0679 | F107: 9.111542684 | G107: 159523.6549 | H107: 0.6148121589 | J107: 9397825.121 | K107: 8942536.617 | L107: 1 | N107: 495000 | O107: 0.87
B108: 101 | C108: 312383.2073 | D108: 9.198354989 | E108: 166375.8796 | F108: 8.750719272 | G108: 146007.3277 | H108: 0.4476357167 | J108: 8885971.781 | K108: 8584343.392 | L108: 1 | N108: 500000 | O108: 0.875
B109: 102 | C109: 298891.9838 | D109: 9.423511046 | E109: 164835.185 | F109: 8.870612767 | G109: 134056.7988 | H109: 0.5528982787 | J109: 9124619.062 | K109: 8705777.582 | L109: 1 | N109: 505000 | O109: 0.878
B110: 103 | C110: 349768.469 | D110: 9.271438825 | E110: 191290.3081 | F110: 8.773878856 | G110: 158478.1609 | H110: 0.4975599687 | J110: 8921670.356 | K110: 8582588.548 | L110: 1 | N110: 510000 | O110: 0.882
B111: 104 | C111: 323042.629 | D111: 9.702712445 | E111: 177631.9348 | F111: 9.342444538 | G111: 145410.6942 | H111: 0.3602679062 | J111: 9379669.816 | K111: 9164812.604 | L111: 1 | N111: 515000 | O111: 0.884
B112: 105 | C112: 341568.5839 | D112: 7.915000774 | E112: 172096.2448 | F112: 7.588971522 | G112: 169472.3391 | H112: 0.3260292519 | J112: 7573432.19 | K112: 7416875.278 | L112: 1 | N112: 520000 | O112: 0.888
B113: 106 | C113: 303056.894 | D113: 7.655828834 | E113: 131927.2833 | F113: 7.240962525 | G113: 171129.6107 | H113: 0.4148663096 | J113: 7352771.94 | K113: 7109035.241 | L113: 1 | N113: 525000 | O113: 0.893
B114: 107 | C114: 325986.8383 | D114: 8.974706892 | E114: 160628.4285 | F114: 8.185423147 | G114: 165358.4098 | H114: 0.7892837444 | J114: 8648720.053 | K114: 8024794.719 | L114: 1 | N114: 530000 | O114: 0.898
B115: 108 | C115: 295308.1053 | D115: 9.354969897 | E115: 147011.711 | F115: 8.894902124 | G115: 148296.3943 | H115: 0.4600677728 | J115: 9059661.792 | K115: 8747890.413 | L115: 1 | N115: 535000 | O115: 0.901
B116: 109 | C116: 331688.5126 | D116: 9.690222548 | E116: 182777.6218 | F116: 9.187747889 | G116: 148910.8908 | H116: 0.5024746587 | J116: 9358534.035 | K116: 9004970.267 | L116: 1 | N116: 540000 | O116: 0.907
B117: 110 | C117: 359896.1168 | D117: 7.587713848 | E117: 201430.5581 | F117: 7.373587762 | G117: 158465.5586 | H117: 0.2141260855 | J117: 7227817.731 | K117: 7172157.204 | L117: 1 | N117: 545000 | O117: 0.909
B118: 111 | C118: 311300.534 | D118: 9.144874945 | E118: 161033.9296 | F118: 8.845870618 | G118: 150266.6044 | H118: 0.2990043263 | J118: 8833574.411 | K118: 8684836.689 | L118: 1 | N118: 550000 | O118: 0.914
B119: 112 | C119: 288135.8369 | D119: 8.683466482 | E119: 130544.8214 | F119: 8.218432189 | G119: 157591.0156 | H119: 0.465034293 | J119: 8395330.645 | K119: 8087887.368 | L119: 1 | N119: 555000 | O119: 0.917
B120: 113 | C120: 283770.9828 | D120: 9.015982204 | E120: 140414.2919 | F120: 8.478761266 | G120: 143356.6908 | H120: 0.5372209383 | J120: 8732211.221 | K120: 8338346.974 | L120: 1 | N120: 560000 | O120: 0.918
B121: 114 | C121: 299618.0163 | D121: 7.444525644 | E121: 138537.408 | F121: 6.978151704 | G121: 161080.6083 | H121: 0.4663739398 | J121: 7144907.627 | K121: 6839614.296 | L121: 1 | N121: 565000 | O121: 0.919
B122: 115 | C122: 370685.7523 | D122: 8.256686091 | E122: 187296.3105 | F122: 7.609397832 | G122: 183389.4419 | H122: 0.6472882585 | J122: 7886000.338 | K122: 7422101.522 | L122: 1 | N122: 570000 | O122: 0.923
B123: 116 | C123: 352564.0596 | D123: 7.77077602 | E123: 198864.8587 | F123: 7.472473969 | G123: 153699.2009 | H123: 0.2983020515 | J123: 7418211.961 | K123: 7273609.11 | L123: 1 | N123: 575000 | O123: 0.926
B124: 117 | C124: 325543.752 | D124: 9.512168179 | E124: 176893.2883 | F124: 9.007687754 | G124: 148650.4637 | H124: 0.5044804243 | J124: 9186624.427 | K124: 8830794.466 | L124: 1 | N124: 580000 | O124: 0.926
B125: 118 | C125: 350973.5459 | D125: 9.491362757 | E125: 191576.4204 | F125: 9.068137421 | G125: 159397.1255 | H125: 0.4232253361 | J125: 9140389.211 | K125: 8876561.001 | L125: 1 | N125: 585000 | O125: 0.929
B126: 119 | C126: 277095.0708 | D126: 7.607148439 | E126: 124192.047 | F126: 7.143227825 | G126: 152903.0238 | H126: 0.4639206148 | J126: 7330053.369 | K126: 7019035.778 | L126: 1 | N126: 590000 | O126: 0.929
B127: 120 | C127: 329539.188 | D127: 9.232012722 | E127: 180669.1864 | F127: 8.598916393 | G127: 148870.0016 | H127: 0.6330963287 | J127: 8902473.534 | K127: 8418247.207 | L127: 1 | N127: 595000 | O127: 0.93
B128: 121 | C128: 307880.4231 | D128: 9.117534078 | E128: 160855.7122 | F128: 8.786521 | G128: 147024.7109 | H128: 0.3310130776 | J128: 8809653.655 | K128: 8625665.288 | L128: 1 | N128: 600000 | O128: 0.934
B129: 122 | C129: 336576.0973 | D129: 7.857656777 | E129: 185119.5802 | F129: 7.351019283 | G129: 151456.5171 | H129: 0.5066374944 | J129: 7521080.68 | K129: 7165899.703 | L129: 1 | N129: 605000 | O129: 0.936
B130: 123 | C130: 369724.5781 | D130: 8.527876348 | E130: 210331.5567 | F130: 7.994404914 | G130: 159393.0214 | H130: 0.5334714341 | J130: 8158151.77 | K130: 7784073.357 | L130: 1 | N130: 610000 | O130: 0.936
B131: 124 | C131: 349066.4298 | D131: 5.262824813 | E131: 195861.1419 | F131: 5.106633604 | G131: 153205.2879 | H131: 0.1561912093 | J131: 4913758.384 | K131: 4910772.462 | L131: 1 | N131: 615000 | O131: 0.938
B132: 125 | C132: 278607.4367 | D132: 7.679181454 | E132: 149167.1389 | F132: 7.102751174 | G132: 129440.2978 | H132: 0.5764302802 | J132: 7400574.017 | K132: 6953584.035 | L132: 1 | N132: 620000 | O132: 0.941
B133: 126 | C133: 349831.2417 | D133: 6.247742347 | E133: 191578.8942 | F133: 5.814468071 | G133: 158252.3475 | H133: 0.4332742759 | J133: 5897911.105 | K133: 5622889.177 | L133: 1 | N133: 625000 | O133: 0.943
B134: 127 | C134: 309405.1432 | D134: 9.264851321 | E134: 156690.2553 | F134: 8.743455753 | G134: 152714.8879 | H134: 0.5213955687 | J134: 8955446.178 | K134: 8586765.497 | L134: 1 | N134: 630000 | O134: 0.944
B135: 128 | C135: 383042.9738 | D135: 7.086001447 | E135: 224891.9946 | F135: 6.829068499 | G135: 158150.9792 | H135: 0.2569329483 | J135: 6702958.474 | K135: 6604176.504 | L135: 1 | N135: 635000 | O135: 0.946
B136: 129 | C136: 371328.3417 | D136: 9.022433925 | E136: 214543.0733 | F136: 8.537399789 | G136: 156785.2684 | H136: 0.4850341367 | J136: =D136*wtp-C136 -> 8651105.584 | K136: =F136*wtp-E136 -> 8322856.715 | L136: 1 | N136: 640000 | O136: 0.946
B137: 130 | C137: 357678.9867 | D137: 7.579736679 | E137: 196725.2145 | F137: 7.275488947 | G137: 160953.7721 | H137: 0.3042477313 | J137: 7222057.692 | K137: 7078763.733 | L137: =IF(J137>K137,1,0) -> 1 | N137: 645000 | O137: 0.947
B138: 131 | C138: 305470.758 | D138: 9.289365878 | E138: 152304.6132 | F138: 8.809722328 | G138: 153166.1448 | H138: 0.4796435501 | J138: 8983895.12 | K138: 8657417.715 | L138: 1 | N138: 650000 | O138: 0.951
B139: 132 | C139: 363780.7408 | D139: 8.169475101 | E139: 184359.8304 | F139: 7.623602447 | G139: 179420.9104 | H139: 0.5458726535 | J139: 7805694.36 | K139: 7439242.617 | L139: 1 | N139: 655000 | O139: 0.951
B140: 133 | C140: 345284.2267 | D140: 8.537096989 | E140: 181706.232 | F140: 8.250571062 | G140: 163577.9947 | H140: 0.2865259269 | J140: 8191812.763 | K140: 8068864.83 | L140: 1 | N140: 660000 | O140: 0.954
B141: 134 | C141: 316730.4182 | D141: 9.586067696 | E141: 181585.9905 | F141: 8.956340746 | G141: 135144.4277 | H141: 0.6297269508 | J141: 9269337.278 | K141: 8774754.755 | L141: 1 | N141: 665000 | O141: 0.954
B142: 135 | C142: 283504.3862 | D142: 7.757342599 | E142: 164592.3684 | F142: 7.310902045 | G142: 118912.0178 | H142: 0.4464405538 | J142: 7473838.213 | K142: 7146309.677 | L142: 1 | N142: 670000 | O142: 0.955
B143: 136 | C143: 325104.7847 | D143: 9.565340163 | E143: 161136.5973 | F143: 9.200543116 | G143: 163968.1873 | H143: 0.3647970469 | J143: 9240235.378 | K143: 9039406.519 | L143: 1 | N143: 675000 | O143: 0.956
B144: 137 | C144: 308560.4928 | D144: 8.007022458 | E144: 158130.3887 | F144: 7.361676512 | G144: 150430.1041 | H144: 0.6453459459 | J144: 7698461.965 | K144: 7203546.123 | L144: 1 | N144: 680000 | O144: 0.956
B145: 138 | C145: 303097.9593 | D145: 8.785772565 | E145: 160535.3782 | F145: 8.296209915 | G145: 142562.5811 | H145: 0.48956265 | J145: 8482674.606 | K145: 8135674.537 | L145: 1 | N145: 685000 | O145: 0.959
B146: 139 | C146: 380443.8199 | D146: 9.533056049 | E146: 227766.6869 | F146: 9.049472273 | G146: 152677.133 | H146: 0.4835837756 | J146: 9152612.229 | K146: 8821705.587 | L146: 1 | N146: 690000 | O146: 0.96
B147: 140 | C147: 284034.8861 | D147: 8.639492541 | E147: 157130.8789 | F147: 8.243292575 | G147: 126904.0072 | H147: 0.3961999664 | J147: 8355457.655 | K147: 8086161.696 | L147: 1 | N147: 695000 | O147: 0.962
B148: 141 | C148: 335613.151 | D148: 9.503797865 | E148: 184502.6666 | F148: 8.971745271 | G148: 151110.4844 | H148: 0.5320525935 | J148: 9168184.714 | K148: 8787242.605 | L148: 1 | N148: 700000 | O148: 0.962
B149: 142 | C149: 376582.766 | D149: 9.493456621 | E149: 207864.3087 | F149: 8.94390389 | G149: 168718.4573 | H149: 0.5495527304 | J149: 9116873.855 | K149: 8736039.582 | L149: 1 | N149: 705000 | O149: 0.963
B150: 143 | C150: 280473.5616 | D150: 9.543943681 | E150: 154815.0215 | F150: 8.941032619 | G150: 125658.54 | H150: 0.602911062 | J150: 9263470.119 | K150: 8786217.597 | L150: 1 | N150: 710000 | O150: 0.963
B151: 144 | C151: 273450.2462 | D151: 9.087288655 | E151: 149065.1331 | F151: 8.511552783 | G151: 124385.1131 | H151: 0.5757358712 | J151: 8813838.408 | K151: 8362487.65 | L151: 1 | N151: 715000 | O151: 0.966
B152: 145 | C152: 331185.2212 | D152: 9.312207582 | E152: 177396.0493 | F152: 8.587061734 | G152: 153789.1719 | H152: 0.7251458482 | J152: 8981022.361 | K152: 8409665.685 | L152: 1 | N152: 720000 | O152: 0.966
B153: 146 | C153: 350923.7528 | D153: 8.51841112 | E153: 191464.1165 | F153: 8.018063384 | G153: 159459.6363 | H153: 0.500347736 | J153: 8167487.367 | K153: 7826599.267 | L153: 1 | N153: 725000 | O153: 0.969
B154: 147 | C154: 307053.021 | D154: 8.739108937 | E154: 151777.553 | F154: 8.262029077 | G154: 155275.4679 | H154: 0.4770798597 | J154: 8432055.916 | K154: 8110251.524 | L154: 1 | N154: 730000 | O154: 0.969
B155: 148 | C155: 304202.2914 | D155: 9.306736484 | E155: 165914.7374 | F155: 8.732828186 | G155: 138287.5539 | H155: 0.5739082982 | J155: 9002534.193 | K155: 8566913.449 | L155: 1 | N155: 735000 | O155: 0.969
B156: 149 | C156: 341802.8716 | D156: 8.765384643 | E156: 161702.6458 | F156: 8.42151474 | G156: 180100.2258 | H156: 0.3438699031 | J156: 8423581.772 | K156: 8259812.094 | L156: 1 | N156: 740000 | O156: 0.97
B157: 150 | C157: 313957.6392 | D157: 9.033796973 | E157: 193915.2965 | F157: 8.328780171 | G157: 120042.3428 | H157: 0.7050168016 | J157: 8719839.333 | K157: 8134864.875 | L157: 1 | N157: 745000 | O157: 0.973
B158: 151 | C158: 345015.2268 | D158: 8.758652733 | E158: 162124.1278 | F158: 8.263251047 | G158: 182891.0989 | H158: 0.4954016854 | J158: 8413637.506 | K158: 8101126.92 | L158: 1 | N158: 750000 | O158: 0.973
B159: 152 | C159: 347835.1616 | D159: 8.425041112 | E159: 195037.2862 | F159: 7.97694819 | G159: 152797.8754 | H159: 0.448092922 | J159: 8077205.95 | K159: 7781910.903 | L159: 1 | N159: 755000 | O159: 0.974
B160: 153 | C160: 274844.762 | D160: 9.24242149 | E160: 170040.9146 | F160: 8.771439563 | G160: 104803.8474 | H160: 0.4709819271 | J160: 8967576.728 | K160: 8601398.648 | L160: 1 | N160: 760000 | O160: 0.975
B161: 154 | C161: 367952.0852 | D161: 8.769315286 | E161: 227731.0907 | F161: 8.337662037 | G161: 140220.9945 | H161: 0.4316532496 | J161: 8401363.201 | K161: 8109930.946 | L161: 1 | N161: 765000 | O161: 0.975
B162: 155 | C162: 303993.3133 | D162: 9.788305408 | E162: 172313.1854 | F162: 9.189874159 | G162: 131680.1279 | H162: 0.5984312488 | J162: 9484312.095 | K162: 9017560.974 | L162: 1 | N162: 770000 | O162: 0.975
B163: 156 | C163: 312647.7325 | D163: 8.222853909 | E163: 156944.7062 | F163: 7.703473656 | G163: 155703.0262 | H163: 0.5193802529 | J163: 7910206.176 | K163: 7546528.95 | L163: 1 | N163: 775000 | O163: 0.976
B164: 157 | C164: 306832.6477 | D164: 9.10969164 | E164: 172521.8005 | F164: 8.604449981 | G164: 134310.8471 | H164: 0.5052416593 | J164: 8802858.992 | K164: 8431928.18 | L164: 1 | N164: 780000 | O164: 0.976
B165: 158 | C165: 363869.4042 | D165: 7.967824359 | E165: 214386.6354 | F165: 7.451301787 | G165: 149482.7688 | H165: 0.5165225724 | J165: 7603954.955 | K165: 7236915.151 | L165: 1 | N165: 785000 | O165: 0.977
B166: 159 | C166: 339745.8402 | D166: 9.44646759 | E166: 183671.6699 | F166: 8.988709349 | G166: 156074.1703 | H166: 0.457758241 | J166: 9106721.75 | K166: 8805037.679 | L166: 1 | N166: 790000 | O166: 0.977
B167: 160 | C167: 338605.3565 | D167: 9.526822014 | E167: 187318.0996 | F167: 8.873150823 | G167: 151287.2568 | H167: 0.6536711909 | J167: 9188216.657 | K167: 8685832.723 | L167: 1 | N167: 795000 | O167: 0.979
B168: 161 | C168: 285068.8881 | D168: 7.914381954 | E168: 147486.4685 | F168: 7.296500966 | G168: 137582.4195 | H168: 0.6178809875 | J168: 7629313.066 | K168: 7149014.498 | L168: 1 | N168: 800000 | O168: 0.979
B169: 162 | C169: 329957.9047 | D169: 9.144314395 | E169: 199929.7847 | F169: 8.526889166 | G169: 130028.12 | H169: 0.6174252294 | J169: 8814356.49 | K169: 8326959.381 | L169: 1 | N169: 805000 | O169: 0.979
B170: 163 | C170: 338415.2077 | D170: 7.456764696 | E170: 190007.1311 | F170: 7.051210991 | G170: 148408.0766 | H170: 0.4055537058 | J170: 7118349.489 | K170: 6861203.859 | L170: 1 | N170: 810000 | O170: 0.979
B171: 164 | C171: 333818.0016 | D171: 9.434321423 | E171: 187577.651 | F171: 8.907992509 | G171: 146240.3507 | H171: 0.5263289148 | J171: 9100503.422 | K171: 8720414.858 | L171: 1 | N171: 815000 | O171: 0.98
B172: 165 | C172: 309579.0364 | D172: 6.896446256 | E172: 152743.2679 | F172: 6.468332754 | G172: 156835.7685 | H172: 0.4281135026 | J172: 6586867.22 | K172: 6315589.486 | L172: 1 | N172: 820000 | O172: 0.98
B173: 166 | C173: 296044.8479 | D173: 6.806296614 | E173: 157592.0666 | F173: 6.32033028 | G173: 138452.7813 | H173: 0.4859663342 | J173: 6510251.766 | K173: 6162738.213 | L173: 1 | N173: 825000 | O173: 0.98
B174: 167 | C174: 289400.3837 | D174: 8.310736622 | E174: 148710.7312 | F174: 7.868691739 | G174: 140689.6525 | H174: 0.4420448837 | J174: 8021336.239 | K174: 7719981.008 | L174: 1 | N174: 830000 | O174: 0.98
B175: 168 | C175: 308200.2805 | D175: 9.166372101 | E175: 155919.093 | F175: 8.538114895 | G175: 152281.1876 | H175: 0.6282572064 | J175: 8858171.821 | K175: 8382195.802 | L175: 1 | N175: 835000 | O175: 0.98
B176: 169 | C176: 338224.3029 | D176: 8.171517308 | E176: 158638.4139 | F176: 7.856999248 | G176: 179585.889 | H176: 0.3145180597 | J176: 7833293.005 | K176: 7698360.834 | L176: 1 | N176: 840000 | O176: 0.981
B177: 170 | C177: 278944.6896 | D177: 5.824115034 | E177: 148162.8807 | F177: 5.663579731 | G177: 130781.809 | H177: 0.1605353032 | J177: 5545170.344 | K177: 5515416.85 | L177: 1 | N177: 845000 | O177: 0.981
B178: 171 | C178: 326274.1649 | D178: 8.507632094 | E178: 201521.2661 | F178: 7.996618649 | G178: 124752.8988 | H178: 0.5110134454 | J178: 8181357.929 | K178: 7795097.382 | L178: 1 | N178: 850000 | O178: 0.981
B179: 172 | C179: 332525.3244 | D179: 8.168418463 | E179: 171945.5255 | F179: 7.901941861 | G179: 160579.7989 | H179: 0.2664766019 | J179: 7835893.138 | K179: 7729996.335 | L179: 1 | N179: 855000 | O179: 0.982
B180: 173 | C180: 343519.5225 | D180: 5.836434392 | E180: 180533.0409 | F180: 5.645348426 | G180: 162986.4816 | H180: 0.1910859659 | J180: 5492914.87 | K180: 5464815.386 | L180: 1 | N180: 860000 | O180: 0.983
B181: 174 | C181: 327700.9016 | D181: 8.358318891 | E181: 179126.1317 | F181: 8.248529694 | G181: 148574.7698 | H181: 0.1097891977 | J181: 8030617.99 | K181: 8069403.562 | L181: 0 | N181: 865000 | O181: 0.984
B182: 175 | C182: 295540.6715 | D182: 8.783627233 | E182: 145509.2362 | F182: 8.397472557 | G182: 150031.4354 | H182: 0.3861546766 | J182: 8488086.562 | K182: 8251963.32 | L182: 1 | N182: 870000 | O182: 0.984
B183: 176 | C183: 297335.2 | D183: 9.654784499 | E183: 157699.7462 | F183: 8.96265927 | G183: 139635.4538 | H183: 0.6921252292 | J183: 9357449.299 | K183: 8804959.524 | L183: 1 | N183: 875000 | O183: 0.984
B184: 177 | C184: 351278.9255 | D184: 9.443875483 | E184: 197356.3307 | F184: 8.953125244 | G184: 153922.5947 | H184: 0.4907502397 | J184: 9092596.558 | K184: 8755768.913 | L184: 1 | N184: 880000 | O184: 0.984
B185: 178 | C185: 325098.9382 | D185: 9.301633508 | E185: 187480.1407 | F185: 9.071427334 | G185: 137618.7974 | H185: 0.230206174 | J185: 8976534.57 | K185: 8883947.193 | L185: 1 | N185: 885000 | O185: 0.984
B186: 179 | C186: 315353.1482 | D186: 7.760211391 | E186: 166707.8384 | F186: 7.324609514 | G186: 148645.3098 | H186: 0.4356018767 | J186: 7444858.242 | K186: 7157901.676 | L186: 1 | N186: 890000 | O186: 0.984
B187: 180 | C187: 325890.8199 | D187: 7.136171617 | E187: 197394.0349 | F187: 6.748536755 | G187: 128496.7849 | H187: 0.3876348614 | J187: 6810280.797 | K187: 6551142.72 | L187: 1 | N187: 895000 | O187: 0.985
B188: 181 | C188: 297576.5877 | D188: 9.825370599 | E188: 162682.157 | F188: 8.949617464 | G188: 134894.4307 | H188: 0.8757531351 | J188: 9527794.011 | K188: 8786935.307 | L188: 1 | N188: 900000 | O188: 0.985
B189: 182 | C189: 325238.7964 | D189: 8.715445106 | E189: 156128.8379 | F189: 8.399006891 | G189: 169109.9585 | H189: 0.3164382157 | J189: 8390206.31 | K189: 8242878.053 | L189: 1 | N189: 905000 | O189: 0.985
B190: 183 | C190: 334779.7884 | D190: 8.596794419 | E190: 209763.2832 | F190: 7.982689334 | G190: 125016.5052 | H190: 0.6141050842 | J190: 8262014.63 | K190: 7772926.051 | L190: 1 | N190: 910000 | O190: 0.985
B191: 184 | C191: 280120.9125 | D191: 8.184431773 | E191: 158409.1837 | F191: 7.610138739 | G191: 121711.7288 | H191: 0.5742930347 | J191: 7904310.861 | K191: 7451729.555 | L191: 1 | N191: 915000 | O191: 0.986
B192: 185 | C192: 298443.16 | D192: 7.529427681 | E192: 184844.3658 | F192: 7.146879317 | G192: 113598.7942 | H192: 0.3825483638 | J192: 7230984.52 | K192: 6962034.951 | L192: 1 | N192: 920000 | O192: 0.986
B193: 186 | C193: 290945.5683 | D193: 9.210729342 | E193: 174928.3146 | F193: 8.57036585 | G193: 116017.2537 | H193: 0.6403634912 | J193: 8919783.773 | K193: 8395437.536 | L193: 1 | N193: 925000 | O193: 0.986
B194: 187 | C194: 307457.7043 | D194: 9.482584326 | E194: 161759.4778 | F194: 8.747329676 | G194: 145698.2265 | H194: 0.73525465 | J194: 9175126.622 | K194: 8585570.198 | L194: 1 | N194: 930000 | O194: 0.987
B195: 188 | C195: 337262.5248 | D195: 9.382867634 | E195: 181093.4331 | F195: 8.841281588 | G195: 156169.0917 | H195: 0.5415860452 | J195: 9045605.109 | K195: 8660188.155 | L195: 1 | N195: 935000 | O195: 0.987
B196: 189 | C196: 320056.1018 | D196: 8.30864202 | E196: 181619.087 | F196: 7.996476314 | G196: 138437.0148 | H196: 0.3121657065 | J196: 7988585.918 | K196: 7814857.227 | L196: 1 | N196: 940000 | O196: 0.988
B197: 190 | C197: 334852.0003 | D197: 9.421135577 | E197: 174314.0398 | F197: 8.96604788 | G197: 160537.9606 | H197: 0.4550876963 | J197: 9086283.576 | K197: 8791733.841 | L197: 1 | N197: 945000 | O197: 0.988
B198: 191 | C198: 345429.0761 | D198: 7.263417792 | E198: 172041.5027 | F198: 6.917381056 | G198: 173387.5734 | H198: 0.3460367367 | J198: 6917988.716 | K198: 6745339.553 | L198: 1 | N198: 950000 | O198: 0.989
B199: 192 | C199: 359405.7912 | D199: 8.931100896 | E199: 186022.007 | F199: 8.380430174 | G199: 173383.7842 | H199: 0.550670722 | J199: 8571695.105 | K199: 8194408.167 | L199: 1 | N199: 955000 | O199: 0.989
B200: 193 | C200: 347098.9879 | D200: 9.362139187 | E200: 203402.0651 | F200: 8.715658802 | G200: 143696.9228 | H200: 0.6464803851 | J200: =D200*wtp-C200 -> 9015040.199 | K200: =F200*wtp-E200 -> 8512256.736 | L200: 1 | N200: 960000 | O200: 0.989
B201: 194 | C201: 319751.8314 | D201: 8.955922615 | E201: 188501.2391 | F201: 8.409817851 | G201: 131250.5923 | H201: 0.5461047639 | J201: 8636170.784 | K201: 8221316.612 | L201: =IF(J201>K201,1,0) -> 1 | N201: 965000 | O201: 0.989
B202: 195 | C202: 332216.1856 | D202: 9.059380747 | E202: 167167.3713 | F202: 8.66560581 | G202: 165048.8143 | H202: 0.3937749372 | J202: 8727164.561 | K202: 8498438.438 | L202: 1 | N202: 970000 | O202: 0.989
B203: 196 | C203: 320141.396 | D203: 9.662837622 | E203: 165470.6818 | F203: 8.968079222 | G203: 154670.7142 | H203: 0.6947583998 | J203: 9342696.226 | K203: 8802608.54 | L203: 1 | N203: 975000 | O203: 0.989
... 804 more rows

Sheet prodloss
I1: Sammanräknad förvärvsinkomst
I2: Summan av inkomst av tjänst och inkomst av näringsverksamhet.
I3: Den sammanräknade förvärvsinkomsten består av de sammanlagda löpande skattepliktiga inkomsterna, vilket avser inkomster från anställning, företagande, pension, sjukpenning och andra skattepliktiga transfereringar. I sammanräknad förvärvsinkomst ingår inte inkomst av kapital.
I4: From Statistics Sweden
B5: table_prodloss | I5: Sammanräknad förvärvsinkomst, medelinkomst för boende i Sverige den 31/12, tkr efter kön, ålder, inkomstklass och tid
B6: age | C6: to model | D6: prodloss | E6: plus social fees
B8: 20 | C8: =IF(perspective=1,0,E8) -> 158623.94 | D8: =$L$16*1000 -> 120700 | E8: =(1+$K$8)*D8 -> 158623.94 | J8: social fee: | K8: 0.3142
B9: 21 | C9: 158623.94 | D9: =$L$16*1000 -> 120700 | E9: =(1+$K$8)*D9 -> 158623.94
B10: 22 | C10: 158623.94 | D10: 120700 | E10: 158623.94 | L10: 2013
B11: 23 | C11: 158623.94 | D11: 120700 | E11: 158623.94 | I11: totalt | J11: totalt 16+ år | K11: totalt | L11: 243.2
B12: 24 | C12: 158623.94 | D12: 120700 | E12: 158623.94 | J12: 16-19 år | K12: totalt | L12: 19.9
B13: 25 | C13: 254560.54 | D13: =$L$17*1000 -> 193700 | E13: 254560.54 | J13: totalt 20+ år | K13: totalt | L13: 258.1
B14: 26 | C14: 254560.54 | D14: =$L$17*1000 -> 193700 | E14: 254560.54 | J14: 20-64 år | K14: totalt | L14: 274.4
B15: 27 | C15: 254560.54 | D15: =$L$17*1000 -> 193700 | E15: 254560.54 | J15: 65+ år | K15: totalt | L15: 207.7
B16: 28 | C16: 254560.54 | D16: =$L$17*1000 -> 193700 | E16: 254560.54 | J16: 20-24 år | K16: totalt | L16: 120.7
B17: 29 | C17: 254560.54 | D17: =$L$17*1000 -> 193700 | E17: 254560.54 | J17: 25-29 år | K17: totalt | L17: 193.7
B18: 30 | C18: 332361.18 | D18: =$L$18*1000 -> 252900 | E18: 332361.18 | J18: 30-34 år | K18: totalt | L18: 252.9
B19: 31 | C19: 332361.18 | D19: =$L$18*1000 -> 252900 | E19: 332361.18 | J19: 35-39 år | K19: totalt | L19: 298.1
B20: 32 | C20: 332361.18 | D20: =$L$18*1000 -> 252900 | E20: 332361.18 | J20: 40-44 år | K20: totalt | L20: 326
B21: 33 | C21: 332361.18 | D21: =$L$18*1000 -> 252900 | E21: 332361.18 | J21: 45-49 år | K21: totalt | L21: 334
B22: 34 | C22: 332361.18 | D22: =$L$18*1000 -> 252900 | E22: 332361.18 | J22: 50-54 år | K22: totalt | L22: 326.8
B23: 35 | C23: 391763.02 | D23: =$L$19*1000 -> 298100 | E23: 391763.02 | J23: 55-59 år | K23: totalt | L23: 318.4
B24: 36 | C24: 391763.02 | D24: =$L$19*1000 -> 298100 | E24: 391763.02 | J24: 60-64 år | K24: totalt | L24: 302.9
B25: 37 | C25: 391763.02 | D25: =$L$19*1000 -> 298100 | E25: 391763.02 | J25: 65-69 år | K25: totalt | L25: 263.6
B26: 38 | C26: 391763.02 | D26: =$L$19*1000 -> 298100 | E26: 391763.02 | J26: 70-74 år | K26: totalt | L26: 203
B27: 39 | C27: 391763.02 | D27: =$L$19*1000 -> 298100 | E27: 391763.02 | J27: 75-79 år | K27: totalt | L27: 179.9
B28: 40 | C28: 428429.2 | D28: =$L$20*1000 -> 326000 | E28: 428429.2 | J28: 80-84 år | K28: totalt | L28: 169
B29: 41 | C29: 428429.2 | D29: =$L$20*1000 -> 326000 | E29: 428429.2 | J29: 85+ år | K29: totalt | L29: 158.7
B30: 42 | C30: 428429.2 | D30: =$L$20*1000 -> 326000 | E30: 428429.2
B31: 43 | C31: 428429.2 | D31: =$L$20*1000 -> 326000 | E31: 428429.2
B32: 44 | C32: 428429.2 | D32: =$L$20*1000 -> 326000 | E32: 428429.2
B33: 45 | C33: 438942.8 | D33: =$L$21*1000 -> 334000 | E33: 438942.8
B34: 46 | C34: 438942.8 | D34: =$L$21*1000 -> 334000 | E34: 438942.8
B35: 47 | C35: 438942.8 | D35: =$L$21*1000 -> 334000 | E35: 438942.8
B36: 48 | C36: 438942.8 | D36: =$L$21*1000 -> 334000 | E36: 438942.8
B37: 49 | C37: 438942.8 | D37: =$L$21*1000 -> 334000 | E37: 438942.8
B38: 50 | C38: 429480.56 | D38: =$L$22*1000 -> 326800 | E38: 429480.56
B39: 51 | C39: 429480.56 | D39: =$L$22*1000 -> 326800 | E39: 429480.56
B40: 52 | C40: 429480.56 | D40: =$L$22*1000 -> 326800 | E40: 429480.56
B41: 53 | C41: 429480.56 | D41: =$L$22*1000 -> 326800 | E41: 429480.56
B42: 54 | C42: 429480.56 | D42: =$L$22*1000 -> 326800 | E42: 429480.56
B43: 55 | C43: 418441.28 | D43: =$L$23*1000 -> 318400 | E43: 418441.28
B44: 56 | C44: 418441.28 | D44: =$L$23*1000 -> 318400 | E44: 418441.28
B45: 57 | C45: 418441.28 | D45: =$L$23*1000 -> 318400 | E45: 418441.28
B46: 58 | C46: 418441.28 | D46: =$L$23*1000 -> 318400 | E46: 418441.28
B47: 59 | C47: 418441.28 | D47: =$L$23*1000 -> 318400 | E47: 418441.28
B48: 60 | C48: 398071.18 | D48: =$L$24*1000 -> 302900 | E48: 398071.18
B49: 61 | C49: 398071.18 | D49: =$L$24*1000 -> 302900 | E49: 398071.18
B50: 62 | C50: 398071.18 | D50: =$L$24*1000 -> 302900 | E50: 398071.18
B51: 63 | C51: 398071.18 | D51: =$L$24*1000 -> 302900 | E51: 398071.18
B52: 64 | C52: 398071.18 | D52: =$L$24*1000 -> 302900 | E52: 398071.18
B53: 65 | C53: 346423.12 | D53: =$L$25*1000 -> 263600 | E53: 346423.12
B54: 66 | C54: 0

Sheet consumption
H1: Consumption (Ekman et al)
H2: Referens: Ekman, Mattias. Consumption and production by age in Sweden: Basic facts and health economic implications. In: Ekman M. Studies in health economics: Modelling and data analysis of costs and survival. Dissertation for the degree of Doctor of Philosophy at the Stockholm School of Economics. EFI, Stockholm Sweden 2002.
B3: table_consumption | H3: Kostnader angivna i 1997 års penningvärde. Justering kan göras med KPI från www.scb.se.
B4: age | C4: to model | D4: consumption
B6: 0 | C6: =IF(perspective=1,0,D6) -> 156216.2217 | D6: =$I$32 -> 156216.2217 | H6: SEK 1997
B7: 1 | C7: 156216.2217 | D7: =$I$32 -> 156216.2217 | H7: age | I7: 00-19 | J7: 20-34 | K7: 35-49 | L7: 50-64 | M7: 65-74 | N7: 75-84 | O7: 85+ | P7: all | R7: År | S7: Årsmedel
B8: 2 | C8: 156216.2217 | D8: 156216.2217 | R8: 2014 | S8: 313.49 | T8: =S8/S25 -> 1.21838321
B9: 3 | C9: 156216.2217 | D9: 156216.2217 | H9: Type of consumption | R9: 2013 | S9: 314.06
B10: 4 | C10: 156216.2217 | D10: 156216.2217 | R10: 2012 | S10: 314.2
B11: 5 | C11: 156216.2217 | D11: 156216.2217 | H11: Health care | I11: 5914 | J11: 7529 | K11: 9652 | L11: 13623 | M11: 20395 | N11: 26732 | O11: 27601 | P11: 11449 | R11: 2011 | S11: 311.43
B12: 6 | C12: 156216.2217 | D12: 156216.2217 | H12: Pharmaceuticals | I12: 539 | J12: 795 | K12: 1349 | L12: 2425 | M12: 3485 | N12: 3946 | O12: 3324 | P12: 1627 | R12: 2010 | S12: 303.46
B13: 7 | C13: 156216.2217 | D13: 156216.2217 | H13: Primary and hospital care | I13: 4535 | J13: 5648 | K13: 7012 | L13: 9795 | M13: 15530 | N13: 21442 | O13: 22945 | P13: 8652 | R13: 2009 | S13: 299.66
B14: 8 | C14: 156216.2217 | D14: 156216.2217 | H14: Dental care | I14: 840 | J14: 1086 | K14: 1291 | L14: 1403 | M14: 1380 | N14: 1344 | O14: 1332 | P14: 1171 | R14: 2008 | S14: 300.61
B15: 9 | C15: 156216.2217 | D15: 156216.2217 | R15: 2007 | S15: 290.51
B16: 10 | C16: 156216.2217 | D16: 156216.2217 | H16: Social services | I16: 2138 | J16: 3417 | K16: 3417 | L16: 3417 | M16: 8159 | N16: 46113 | O16: 149219 | P16: 9486 | R16: 2006 | S16: 284.22
B17: 11 | C17: 156216.2217 | D17: 156216.2217 | H17: Elderly care | I17: 0 | J17: 0 | K17: 0 | L17: 0 | M17: 7186 | N17: 44690 | O17: 146510 | P17: 6740 | R17: 2005 | S17: 280.4
B18: 12 | C18: 156216.2217 | D18: 156216.2217 | H18: Services to impaired people | I18: 2097 | J18: 3376 | K18: 3376 | L18: 3376 | M18: 710 | N18: 710 | O18: 710 | P18: 2600 | R18: 2004 | S18: 279.2
B19: 13 | C19: 156216.2217 | D19: 156216.2217 | H19: Transportation services | I19: 41 | J19: 41 | K19: 41 | L19: 41 | M19: 263 | N19: 713 | O19: 1999 | P19: 147 | R19: 2003 | S19: 278.1
B20: 14 | C20: 156216.2217 | D20: 156216.2217 | R20: 2002 | S20: 272.8
B21: 15 | C21: 156216.2217 | D21: 156216.2217 | H21: Education | I21: 50502 | J21: 10865 | K21: 2807 | L21: 760 | M21: 13 | N21: 0 | O21: 0 | P21: 15232 | R21: 2001 | S21: 267.1
B22: 16 | C22: 156216.2217 | D22: 156216.2217 | H22: Schools and child care | I22: 49962 | J22: 0 | K22: 0 | L22: 0 | M22: 0 | N22: 0 | O22: 0 | P22: 12181 | R22: 2000 | S22: 260.7
B23: 17 | C23: 156216.2217 | D23: 156216.2217 | H23: Universities | I23: 403 | J23: 8274 | K23: 1555 | L23: 283 | M23: 13 | N23: 0 | O23: 0 | P23: 2152 | R23: 1999 | S23: 258.1
B24: 18 | C24: 156216.2217 | D24: 156216.2217 | H24: Adult schooling | I24: 83 | J24: 1914 | K24: 768 | L24: 105 | M24: 0 | N24: 0 | O24: 0 | P24: 585 | R24: 1998 | S24: 257
B25: 19 | C25: 156216.2217 | D25: 156216.2217 | H25: Labour market training | I25: 53 | J25: 677 | K25: 483 | L25: 372 | M25: 0 | N25: 0 | O25: 0 | P25: 314 | R25: 1997 | S25: 257.3
B26: 20 | C26: 147421.9317 | D26: =$J$32 -> 147421.9317
B27: 21 | C27: 147421.9317 | D27: =$J$32 -> 147421.9317 | H27: General public consumption | I27: 18330 | J27: 18330 | K27: 18330 | L27: 18330 | M27: 18330 | N27: 18330 | O27: 18330 | P27: 18330
B28: 22 | C28: 147421.9317 | D28: 147421.9317
B29: 23 | C29: 147421.9317 | D29: 147421.9317 | H29: Other private consumption | I29: 56406 | J29: 87300 | K29: 80721 | L29: 105942 | M29: 95523 | N29: 71909 | O29: 49219 | P29: 80596
B30: 24 | C30: 147421.9317 | D30: 147421.9317 | H30: age | I30: 00-19 | J30: 20-34 | K30: 35-49 | L30: 50-64 | M30: 65-74 | N30: 75-84 | O30: 85+
B31: 25 | C31: 147421.9317 | D31: 147421.9317 | H31: Non-health care consumption (SEK 1997) | I31: =I29+I27+I21+I16+I14 -> 128216 | J31: =J29+J27+J21+J16+J14 -> 120998 | K31: 106566 | L31: 129852 | M31: 123405 | N31: 137696 | O31: 218100
B32: 26 | C32: 147421.9317 | D32: 147421.9317 | H32: Non-health care consumption (SEK 2014) | I32: =I31*$T$8 -> 156216.2217 | J32: =J31*$T$8 -> 147421.9317 | K32: 129838.2252 | L32: 158209.4966 | M32: 150354.5801 | N32: 167766.4945 | O32: 265729.3782
B33: 27 | C33: 147421.9317 | D33: 147421.9317
B34: 28 | C34: 147421.9317 | D34: 147421.9317
B35: 29 | C35: 147421.9317 | D35: 147421.9317
B36: 30 | C36: 147421.9317 | D36: 147421.9317
B37: 31 | C37: 147421.9317 | D37: 147421.9317
B38: 32 | C38: =IF(perspective=1,0,D38) -> 147421.9317 | D38: 147421.9317
B39: 33 | C39: 147421.9317 | D39: 147421.9317
B40: 34 | C40: 147421.9317 | D40: 147421.9317
B41: 35 | C41: 129838.2252 | D41: =$K$32 -> 129838.2252
B42: 36 | C42: 129838.2252 | D42: =$K$32 -> 129838.2252
B43: 37 | C43: 129838.2252 | D43: 129838.2252
B44: 38 | C44: 129838.2252 | D44: 129838.2252
B45: 39 | C45: 129838.2252 | D45: 129838.2252
B46: 40 | C46: 129838.2252 | D46: 129838.2252
B47: 41 | C47: 129838.2252 | D47: 129838.2252
B48: 42 | C48: 129838.2252 | D48: 129838.2252
B49: 43 | C49: 129838.2252 | D49: 129838.2252
B50: 44 | C50: 129838.2252 | D50: 129838.2252
B51: 45 | C51: 129838.2252 | D51: 129838.2252
B52: 46 | C52: 129838.2252 | D52: 129838.2252
B53: 47 | C53: 129838.2252 | D53: 129838.2252
B54: 48 | C54: 129838.2252 | D54: 129838.2252
B55: 49 | C55: 129838.2252 | D55: 129838.2252
B56: 50 | C56: 158209.4966 | D56: =$L$32 -> 158209.4966
B57: 51 | C57: 158209.4966 | D57: =$L$32 -> 158209.4966
B58: 52 | C58: 158209.4966 | D58: 158209.4966
B59: 53 | C59: 158209.4966 | D59: 158209.4966
B60: 54 | C60: 158209.4966 | D60: 158209.4966
B61: 55 | C61: 158209.4966 | D61: 158209.4966
B62: 56 | C62: 158209.4966 | D62: 158209.4966
B63: 57 | C63: 158209.4966 | D63: 158209.4966
B64: 58 | C64: 158209.4966 | D64: 158209.4966
B65: 59 | C65: 158209.4966 | D65: 158209.4966
B66: 60 | C66: 158209.4966 | D66: 158209.4966
B67: 61 | C67: 158209.4966 | D67: 158209.4966
B68: 62 | C68: 158209.4966 | D68: 158209.4966
B69: 63 | C69: 158209.4966 | D69: 158209.4966
B70: 64 | C70: =IF(perspective=1,0,D70) -> 158209.4966 | D70: 158209.4966
B71: 65 | C71: 150354.5801 | D71: =$M$32 -> 150354.5801
B72: 66 | C72: 150354.5801 | D72: =$M$32 -> 150354.5801
B73: 67 | C73: 150354.5801 | D73: 150354.5801
B74: 68 | C74: 150354.5801 | D74: 150354.5801
B75: 69 | C75: 150354.5801 | D75: 150354.5801
B76: 70 | C76: 150354.5801 | D76: 150354.5801
B77: 71 | C77: 150354.5801 | D77: 150354.5801
B78: 72 | C78: 150354.5801 | D78: 150354.5801
B79: 73 | C79: 150354.5801 | D79: 150354.5801
B80: 74 | C80: 150354.5801 | D80: 150354.5801
B81: 75 | C81: 167766.4945 | D81: =$N$32 -> 167766.4945
B82: 76 | C82: 167766.4945 | D82: =$N$32 -> 167766.4945
B83: 77 | C83: 167766.4945 | D83: 167766.4945
B84: 78 | C84: 167766.4945 | D84: 167766.4945
B85: 79 | C85: 167766.4945 | D85: 167766.4945
B86: 80 | C86: 167766.4945 | D86: 167766.4945
B87: 81 | C87: 167766.4945 | D87: 167766.4945
B88: 82 | C88: 167766.4945 | D88: 167766.4945
B89: 83 | C89: 167766.4945 | D89: 167766.4945
B90: 84 | C90: 167766.4945 | D90: 167766.4945
B91: 85 | C91: 265729.3782 | D91: =$O$32 -> 265729.3782
B92: 86 | C92: 265729.3782 | D92: =$O$32 -> 265729.3782
B93: 87 | C93: 265729.3782 | D93: 265729.3782
B94: 88 | C94: 265729.3782 | D94: 265729.3782
B95: 89 | C95: 265729.3782 | D95: 265729.3782
B96: 90 | C96: 265729.3782 | D96: 265729.3782
B97: 91 | C97: 265729.3782 | D97: 265729.3782
B98: 92 | C98: 265729.3782 | D98: 265729.3782
B99: 93 | C99: 265729.3782 | D99: 265729.3782
B100: 94 | C100: 265729.3782 | D100: 265729.3782
B101: 95 | C101: 265729.3782 | D101: 265729.3782
B102: 96 | C102: =IF(perspective=1,0,D102) -> 265729.3782 | D102: 265729.3782
B103: 97 | C103: 265729.3782 | D103: 265729.3782
B104: 98 | C104: 265729.3782 | D104: 265729.3782
B105: 99 | C105: 265729.3782 | D105: 265729.3782
B106: 100 | C106: 265729.3782 | D106: 265729.3782
B107: 101 | C107: 265729.3782 | D107: 265729.3782
B108: 102 | C108: 265729.3782 | D108: 265729.3782
B109: 103 | C109: 265729.3782 | D109: 265729.3782
B110: 104 | C110: 265729.3782 | D110: 265729.3782
B111: 105 | C111: 265729.3782 | D111: 265729.3782
B112: 106 | C112: 265729.3782 | D112: 265729.3782
B113: 107 | C113: 265729.3782 | D113: 265729.3782
B114: 108 | C114: 265729.3782 | D114: 265729.3782
B115: 109 | C115: 265729.3782 | D115: 265729.3782
B116: 110 | C116: 265729.3782 | D116: 265729.3782

Sheet CPI
C2: Consumer Price Index
C3: År | D3: Jan | E3: Feb | F3: Mar | G3: Apr | H3: Maj | I3: Jun | J3: Jul | K3: Aug | L3: Sep | M3: Okt | N3: Nov | O3: Dec | P3: Årsmedel
C4: 2014 | D4: 311.39 | E4: 312.7 | F4: 312.68 | G4: 313.89 | H4: 314.05 | I4: 314.7 | J4: 313.67 | K4: 313.35 | L4: 313.85 | M4: 314.02 | N4: 313.56 | O4: 314.05 | P4: 313.49
C5: 2013 | D5: 312 | E5: 313.39 | F5: 314.65 | G5: 314.03 | H5: 314.54 | I5: 313.99 | J5: 313.55 | K5: 313.84 | L5: 315.05 | M5: 314.4 | N5: 314.2 | O5: 315.04 | P5: 314.06
C6: 2012 | D6: 311.85 | E6: 313.92 | F6: 314.8 | G6: 315.49 | H6: 315.23 | I6: 314.45 | J6: 313.23 | K6: 313.55 | L6: 314.81 | M6: 314.59 | N6: 313.82 | O6: 314.61 | P6: 314.2
C7: 2011 | D7: 306.15 | E7: 308.02 | F7: 310.11 | G7: 311.44 | H7: 312.02 | I7: 311.28 | J7: 311.13 | K7: 311.23 | L7: 313.41 | M7: 313.42 | N7: 314.16 | O7: 314.78 | P7: 311.43
C8: 2010 | D8: 299.79 | E8: 301.59 | F8: 302.32 | G8: 302.36 | H8: 302.92 | I8: 302.97 | J8: 302.04 | K8: 302.06 | L8: 304.6 | M8: 305.57 | N8: 306.58 | O8: 308.73 | P8: 303.46
C9: 2009 | D9: 297.88 | E9: 297.95 | F9: 298.8 | G9: 299.26 | H9: 299.45 | I9: 300.17 | J9: 298.8 | K9: 299.42 | L9: 300.35 | M9: 301.11 | N9: 301.03 | O9: 301.69 | P9: 299.66
C10: 2008 | D10: 294.09 | E10: 295.28 | F10: 298.08 | G10: 299.67 | H10: 300.99 | I10: 302.45 | J10: 302.11 | K10: 301.98 | L10: 305.08 | M10: 305.56 | N10: 303.06 | O10: 298.99 | P10: 300.61
C11: 2007 | D11: 285.01 | E11: 286.45 | F11: 288.33 | G11: 289.79 | H11: 289.48 | I11: 289.95 | J11: 289.49 | K11: 289.41 | L11: 292.3 | M11: 293.85 | N11: 295.75 | O11: 296.32 | P11: 290.51
C12: 2006 | D12: 279.59 | E12: 280.9 | F12: 282.89 | G12: 284.32 | H12: 284.76 | I12: 284.68 | J12: 284.19 | K12: 284.38 | L12: 286.04 | M12: 286.07 | N12: 286.43 | O12: 286.43 | P12: 284.22
C13: 2005 | D13: 277.9 | E13: 279.2 | F13: 279.8 | G13: 280.2 | H13: 280.3 | I13: 280.4 | J13: 279.4 | K13: 279.9 | L13: 281.9 | M13: 282.4 | N13: 281.7 | O13: 281.8 | P13: 280.4
C14: 2004 | D14: 278 | E14: 277.3 | F14: 279.4 | G14: 279.4 | H14: 280.1 | I14: 278.9 | J14: 278.5 | K14: 278.2 | L14: 280.2 | M14: 281 | N14: 279.4 | O14: 279.4 | P14: 279.2
C15: 2003 | D15: 276 | E15: 278.4 | F15: 279.8 | G15: 278.8 | H15: 278.5 | I15: 277.7 | J15: 276.8 | K15: 276.7 | L15: 278.7 | M15: 278.9 | N15: 278.3 | O15: 278.6 | P15: 278.1
C16: 2002 | D16: 268.8 | E16: 269.4 | F16: 271.8 | G16: 272.9 | H16: 273.6 | I16: 273.2 | J16: 272.3 | K16: 272.4 | L16: 274.5 | M16: 275.4 | N16: 274.7 | O16: 275.1 | P16: 272.8
C17: 2001 | D17: 261.7 | E17: 262.6 | F17: 264.6 | G17: 266.9 | H17: 268.7 | I17: 268.3 | J17: 266.9 | K17: 267.6 | L17: 269.9 | M17: 269.1 | N17: 269.2 | O17: 269.5 | P17: 267.1
C18: 2000 | D18: 257.5 | E18: 258.7 | F18: 259.9 | G18: 260 | H18: 261.3 | I18: 261.2 | J18: 260 | K18: 260.2 | L18: 262 | M18: 262.6 | N18: 262.7 | O18: 262.5 | P18: 260.7
C19: 1999 | D19: 256.2 | E19: 256.3 | F19: 257.3 | G19: 257.9 | H19: 258.3 | I19: 258.7 | J19: 257.6 | K19: 257.6 | L19: 259.4 | M19: 259.7 | N19: 259 | O19: 259.6 | P19: 258.1
C20: 1998 | D20: 256.9 | E20: 256.6 | F20: 257 | G20: 257.7 | H20: 258.1 | I20: 257.6 | J20: 257 | K20: 255.7 | L20: 256.8 | M20: 257.3 | N20: 256.7 | O20: 256.2 | P20: 257
C21: 1997 | D21: 254.6 | E21: 254.2 | F21: 255.2 | G21: 257 | H21: 257 | I21: 257.4 | J21: 257.3 | K21: 257.4 | L21: 259.8 | M21: 259.6 | N21: 259.2 | O21: 259.1 | P21: 257.3
C22: 1996 | D22: 255.6 | E22: 255.8 | F22: 257 | G22: 257.6 | H22: 257.3 | I22: 256.3 | J22: 255.7 | K22: 254.5 | L22: 256 | M22: 255.9 | N22: 255.3 | O22: 254.9 | P22: 256
C23: 1995 | D23: 251.3 | E23: 252.3 | F23: 253.3 | G23: 255 | H23: 255.3 | I23: 255.1 | J23: 254.8 | K23: 254.5 | L23: 256.2 | M23: 256.9 | N23: 256.8 | O23: 256 | P23: 254.8
C24: 1994 | D24: 245.1 | E24: 245.9 | F24: 246.8 | G24: 247.8 | H24: 248.3 | I24: 248.4 | J24: 248.4 | K24: 248.5 | L24: 250.7 | M24: 251 | N24: 250.8 | O24: 250.4 | P24: 248.5
C25: 1993 | D25: 241 | E25: 241.6 | F25: 242.7 | G25: 243.7 | H25: 243.1 | I25: 242.3 | J25: 241.9 | K25: 242.3 | L25: 244.5 | M25: 245.2 | N25: 245.3 | O25: 244.3 | P25: 243.2
C26: 1992 | D26: 230.2 | E26: 230.3 | F26: 231.3 | G26: 231.9 | H26: 232 | I26: 231.5 | J26: 231.2 | K26: 231.3 | L26: 234.6 | M26: 235.1 | N26: 234 | O26: 234.9 | P26: 232.4
C27: 1991 | D27: 218.9 | E27: 225 | F27: 225.8 | G27: 227.1 | H27: 227.3 | I27: 227 | J27: 227.1 | K27: 226.7 | L27: 229.2 | M27: 230.1 | N27: 231.1 | O27: 230.8 | P27: 227.2
C28: 1990 | D28: 199 | E28: 199.9 | F28: 205.4 | G28: 205.2 | H28: 206.4 | I28: 206.2 | J28: 208.2 | K28: 209.6 | L28: 212 | M28: 213.4 | N28: 214.1 | O28: 213.9 | P28: 207.8
C29: 1989 | D29: 183 | E29: 184 | F29: 184.7 | G29: 186.5 | H29: 187.3 | I29: 187.9 | J29: 187.9 | K29: 188.7 | L29: 190.2 | M29: 191.8 | N29: 192.2 | O29: 192.8 | P29: 188.1
C30: 1988 | D30: 171.6 | E30: 172.9 | F30: 173.7 | G30: 175.2 | H30: 175.8 | I30: 176.3 | J30: 177.1 | K30: 177.5 | L30: 178.8 | M30: 180.2 | N30: 180.5 | O30: 180.9 | P30: 176.7
C31: 1987 | D31: 164.4 | E31: 164.4 | F31: 164.7 | G31: 165.1 | H31: 165.2 | I31: 164.9 | J31: 166.9 | K31: 167.8 | L31: 169.4 | M31: 170.1 | N31: 170.7 | O31: 170.7 | P31: 167
C32: 1986 | D32: 158.9 | E32: 159 | F32: 158.7 | G32: 159.7 | H32: 159.7 | I32: 159.7 | J32: 160.1 | K32: 159.9 | L32: 161.3 | M32: 161.9 | N32: 161.9 | O32: 162.3 | P32: 160.3
C33: 1985 | D33: 149.6 | E33: 151 | F33: 152.1 | G33: 152.7 | H33: 154.5 | I33: 153.9 | J33: 153.8 | K33: 153.8 | L33: 154.5 | M33: 155.5 | N33: 156.5 | O33: 157.1 | P33: 153.8
C34: 1984 | D34: 139.4 | E34: 138.9 | F34: 140.9 | G34: 141.8 | H34: 142.8 | I34: 142.4 | J34: 142.8 | K34: 143.9 | L34: 144.8 | M34: 145.5 | N34: 146.4 | O34: 148.8 | P34: 143.2
C35: 1983 | D35: 129.1 | E35: 128.8 | F35: 129.3 | G35: 130.3 | H35: 131.1 | I35: 131.8 | J35: 132.9 | K35: 133.5 | L35: 134.5 | M35: 135.6 | N35: 136.4 | O35: 137.5 | P35: 132.6
C36: 1982 | D36: 117.4 | E36: 119 | F36: 119.3 | G36: 120.1 | H36: 120.7 | I36: 121.1 | J36: 121.9 | K36: 122.2 | L36: 122.9 | M36: 124.6 | N36: 125.6 | O36: 125.9 | P36: 121.7
C37: 1981 | D37: 107.2 | E37: 109.3 | F37: 109.8 | G37: 110.5 | H37: 111.2 | I37: 111.6 | J37: 112.6 | K37: 113.5 | L37: 114.3 | M37: 115 | N37: 115.4 | O37: 114.9 | P37: 112.1
C38: 1980 | D38: 95.3 | E38: 96.8 | F38: 97.2 | G38: 97.9 | H38: 98.2 | I38: 98.5 | J38: 99.3 | K38: 99.9 | L38: 102.7 | M38: 104.2 | N38: 104.8 | O38: 105.2 | P38: 100
